{"text_format":"1","workbook":"xlsx","n_sheets":15,"sheets":["Préparation de terrain","Régénération artificielle","Éducation de peuplement","Éclaircie commerciale EAF","Travaux de planification","Dispersion 2018-2019","Versions du fichier","Étapes calcul majorations","Calculs grille","Menus","Traitements admissibles","Formules","Majorations applicables","Log","Martelage"],"not_rendered":{"charts":0,"images":4,"macros":1,"external_links":1,"defined_names":113,"comments":0,"pivot_tables":0},"unopened":[],"bounds":{"document_bytes":16777216,"sheet_cells":100000,"rows_first":2000,"rows_last":500,"rows_between":2000,"halvings":0,"cell_chars":16384,"cell_head_chars":4096},"cells_cut":0,"cells_raw":0,"read":"whole","date_system":"1900"}

{"sheet":"Préparation de terrain","index":0,"n_rows":286,"n_cols":24,"rows_kept":286,"cut":false,"hidden":false,"merged":[[43,2,43,3],[44,2,44,3],[45,2,45,3],[2,0,2,5],[34,4,34,5],[35,4,35,5],[34,2,34,3],[35,2,35,3],[36,2,36,3],[37,2,37,3],[38,2,38,3],[39,2,39,3],[36,4,36,5],[37,4,37,5],[38,4,38,5],[39,4,39,5],[34,0,34,1],[35,0,35,1],[36,0,36,1],[37,0,37,1],[38,0,38,1],[39,0,39,1],[60,0,60,6],[59,0,59,6],[70,4,70,5],[71,4,71,5],[21,1,21,4],[46,4,46,5],[47,4,47,5],[43,0,43,1],[44,0,44,1],[45,0,45,1],[46,0,46,1],[47,0,47,1],[43,4,43,5],[44,4,44,5],[45,4,45,5],[40,0,40,5],[42,0,42,6],[41,0,41,6],[29,0,29,5],[30,0,30,5],[31,0,31,5],[32,0,32,6],[33,0,33,6],[57,4,57,5],[46,2,46,3],[47,2,47,3],[48,4,48,5],[53,0,53,1],[54,0,54,1],[55,0,55,1],[49,0,49,5],[50,0,50,6],[52,4,52,5],[48,0,48,1],[48,2,48,3],[52,0,52,1],[53,4,53,5],[54,4,54,5],[55,4,55,5],[51,0,51,6],[99,0,99,1],[67,0,67,2],[68,0,68,2],[56,4,56,5],[69,0,69,6],[92,0,92,1],[87,2,87,3],[94,0,94,6],[63,0,63,2],[64,0,64,2],[65,0,65,2],[66,0,66,2],[74,4,74,5],[75,4,75,5],[70,2,70,3],[71,2,71,3],[72,2,72,3],[73,2,73,3],[90,2,90,3],[91,2,91,3],[89,4,89,5],[90,4,90,5],[92,4,92,5],[85,0,85,2],[135,0,135,5],[142,0,142,5],[127,1,127,3],[136,0,136,6],[124,0,124,5],[120,0,120,6],[102,0,102,6],[106,0,106,6],[126,4,129,4],[128,1,128,3],[116,0,116,6],[118,0,118,4],[126,1,126,3],[129,1,129,3],[130,1,130,5],[112,0,112,6],[126,0,130,0],[125,0,125,5],[132,0,132,5],[131,0,131,6],[133,0,133,6],[122,0,122,5],[121,0,121,5],[123,0,123,6],[206,0,206,5],[137,0,137,4],[138,0,138,4],[140,0,140,6],[162,0,162,5],[149,0,149,5],[144,0,144,5],[148,0,148,5],[163,0,163,5],[190,0,190,5],[143,0,143,5],[183,0,183,5],[188,0,188,5],[185,0,185,5],[194,0,194,5],[152,0,152,5],[198,0,198,5],[199,0,199,5],[174,0,174,5],[195,0,195,5],[156,0,156,6],[197,0,197,5],[171,0,171,6],[157,0,157,5],[236,0,236,5],[232,0,232,5],[240,0,240,5],[237,0,237,5],[241,0,241,6],[239,0,239,5],[165,0,165,5],[161,0,161,5],[166,0,166,5],[226,0,226,5],[169,0,169,5],[214,0,214,5],[209,0,209,5],[191,0,191,5],[173,0,173,5],[175,0,175,5],[176,0,176,5],[228,0,228,6],[193,0,193,5],[200,0,200,5],[196,0,196,5],[212,0,212,5],[204,0,204,5],[205,0,205,5],[247,0,247,5],[257,0,257,6],[258,0,258,6],[238,0,238,5],[251,0,251,5],[254,0,254,5],[242,0,242,5],[255,0,255,5],[248,0,248,5],[246,0,246,5],[245,0,245,5],[244,0,244,5],[243,0,243,5],[253,0,253,5],[213,0,213,5],[210,0,210,5],[216,0,216,6],[215,0,215,5],[208,0,208,5],[221,0,221,5],[263,0,263,5],[271,2,272,4],[256,0,256,6],[234,0,234,5],[235,0,235,5],[223,0,223,5],[252,0,252,5],[266,0,266,5],[260,6,262,6],[259,0,259,6],[233,0,233,5],[264,6,265,6],[264,0,265,5],[269,0,269,4],[218,0,218,5],[260,0,262,5],[249,0,249,5],[250,0,250,5],[158,0,158,5],[159,0,159,5],[160,0,160,5],[139,0,139,6],[186,0,186,6],[145,0,145,5],[168,0,168,5],[167,0,167,5],[147,0,147,5],[146,0,146,5],[182,0,182,5],[164,0,164,5],[180,0,180,5],[179,0,179,5],[178,0,178,5],[172,0,172,5],[170,0,170,5],[153,0,153,5],[154,0,154,5],[217,0,217,5],[150,0,150,5],[231,0,231,5],[230,0,230,5],[229,0,229,5],[151,0,151,5],[202,0,202,5],[225,0,225,5],[227,0,227,5],[201,0,201,6],[224,0,224,5],[220,0,220,5],[222,0,222,5],[219,0,219,5],[211,0,211,5],[203,0,203,5],[155,0,155,5],[189,0,189,5],[181,0,181,5],[192,0,192,5],[207,0,207,5],[184,0,184,5],[177,0,177,5],[187,0,187,5],[93,0,93,6],[88,2,88,3],[61,0,61,6],[72,4,72,5],[92,2,92,3],[87,4,87,5],[88,4,88,5],[79,0,79,2],[90,0,90,1],[91,0,91,1],[89,2,89,3],[88,0,88,1],[83,0,83,2],[84,0,84,2],[89,0,89,1],[91,4,91,5],[86,0,86,6],[87,0,87,1],[70,0,70,1],[71,0,71,1],[72,0,72,1],[73,0,73,1],[74,0,74,1],[75,0,75,1],[77,0,77,6],[81,0,81,2],[82,0,82,2],[78,0,78,6],[73,4,73,5],[80,0,80,2],[76,0,76,6],[74,2,74,3],[75,2,75,3],[62,0,62,2],[8,0,8,5],[9,0,9,5],[1,0,1,5],[23,1,23,3],[27,0,27,6],[141,0,141,5],[56,0,56,1],[57,0,57,1],[52,2,52,3],[53,2,53,3],[54,2,54,3],[55,2,55,3],[56,2,56,3],[57,2,57,3],[104,0,104,5],[111,0,111,5],[114,0,114,4],[115,0,115,4],[105,0,105,5],[96,0,96,1],[97,0,97,1],[95,4,95,5],[58,0,58,5],[0,0,0,6],[3,0,3,6],[25,0,25,6],[15,0,15,1],[24,0,24,5],[10,0,10,6],[28,0,28,6],[16,0,16,6],[12,0,12,4],[19,1,19,3],[20,1,20,3],[22,1,22,3],[26,0,26,6],[4,0,4,5],[5,0,5,5],[6,0,6,5],[7,0,7,5],[11,0,11,4],[13,0,13,5],[14,0,14,5],[15,2,15,6],[17,0,17,6],[18,1,18,2],[18,3,18,5],[95,0,95,1],[95,2,95,3],[100,4,100,5],[101,0,101,5],[113,0,113,6],[117,0,117,6],[96,4,96,5],[107,0,107,6],[134,0,134,5],[108,0,108,5],[100,0,100,1],[96,2,96,3],[97,2,97,3],[98,2,98,3],[99,2,99,3],[100,2,100,3],[103,0,103,6],[109,0,109,5],[110,0,110,5],[119,0,119,6],[97,4,97,5],[98,4,98,5],[99,4,99,5],[98,0,98,1]]}
[]
["Annexe au calcul des taux des traitements non commerciaux      2018-2019                                                                                                                                                                                                                                                                                                                                                                                                                                                                                                                                                 Préparation de terrain                                                                            Forêt publique"]
[" *** Veuillez saisir les informations dans les cellules blanches seulement ***",null,null,null,null,null,"Version 1 : 2018-01-17"]
["Identification"]
["Unité d'aménagement (UA)"]
["Secteur d'intervention"]
["Unité de compilation"]
["Numéro de la prescription"]
["Traitement (code DICA)"]
["Traitement (code RATF)"]
["Traitement de préparation de terrain à taux fixe ou variable"]
["Traitement",null,null,null,null,{"$f":"IFERROR((VLOOKUP($G$12,Menus!$A$4:$B$11,2,FALSE)),\"\")","v":"PRT_Inscrire_une_valeur"},"Inscrire une valeur"]
["Équipement ou modalité",null,null,null,null,{"$f":"IF($G$13=Menus!$D$6,Menus!$E$6,IF($G$13=Menus!$D$11,Menus!$E$11,\"\"))","v":""},"Inscrire une valeur"]
[{"$f":"IFERROR(IF(OR($G$13=Menus!$D$14,$G$13=Menus!$D$15,$G$13=Menus!$D$17,$G$13=Menus!$D$18),\"Taux de base en fonction d'une distance entre les passages de 5 mètres - Voir majoration PA0\",\"Taux de base\"),\"Taux de base\")","v":"Taux de base"},null,null,null,null,null,{"$f":"IF($G$13=Menus!$D$4,Menus!$H$4,IF($G$13=Menus!$D$5,Menus!$H$5,IF($G$13=Menus!$D$6,Menus!$H$6,IF($G$13=Menus!$D$7,Menus!$H$7,IF($G$13=Menus!$D$8,Menus!$H$8,IF($G$13=Menus!$D$9,Menus!$H$9,IF($G$13=Menus!$D$10,Menus!$H$10,IF($G$13=Menus!$D$11,Menus!$H$11,IF($G$13=Menus!$D$12,Menus!$H$12,IF($G$13=Menus!$D$13,Menus!$H$13,IF($G$13=Menus!$D$14,Menus!$H$14,IF($G$13=Menus!$D$15,Menus!$H$15,IF($G$13=Menus!$D$16,Menus!$H$16,IF(G13=Menus!$D$17,Menus!$H$17,IF($G$13=Menus!$D$18,Menus!$H$18,IF($G$13=Menus!$D$19,Menus!$H$19,\"\"))))))))))))))))","v":0}]
["Unité de mesure",null,null,null,null,null,{"$f":"IF($G$13=Menus!$D$4,Menus!$I$4,IF($G$13=Menus!$D$5,Menus!$I$5,IF($G$13=Menus!$D$6,Menus!$I$6,IF($G$13=Menus!$D$7,Menus!$I$7,IF($G$13=Menus!$D$8,Menus!$I$8,IF($G$13=Menus!$D$9,Menus!$I$9,IF($G$13=Menus!$D$10,Menus!$I$10,IF($G$13=Menus!$D$11,Menus!$I$11,IF($G$13=Menus!$D$12,Menus!$I$12,IF($G$13=Menus!$D$13,Menus!$I$13,IF($G$13=Menus!$D$14,Menus!$I$14,IF($G$13=Menus!$D$15,Menus!$I$15,IF($G$13=Menus!$D$16,Menus!$I$16,IF($G$13=Menus!$D$17,Menus!$I$17,IF($G$13=Menus!$D$18,Menus!$I$18,IF($G$13=Menus!$D$19,Menus!$I$19,\"\"))))))))))))))))","v":"-"}]
[{"$f":"\"Formule (e=Constante \"&Menus!$C$52&\")\"","v":"Formule (e=Constante 2,718)"},null,{"$f":"IF($G$13=Formules!$B$8,Formules!$D$8,IF($G$13=Formules!$B$9,Formules!$D$9,\"\"))","v":""}]
[{"$f":"\"Valeurs spécifiques à remplir selon le traitement - \"&$G$12&\" - \"&$G$13","v":"Valeurs spécifiques à remplir selon le traitement - Inscrire une valeur - Inscrire une valeur"}]
["Taux variable - Déblaiement des résidus de coupe (Excavatrice ou débusqueuse ou abatteuse) et Scarifiage par monticule ou inversion par placeau ou décapage par placeau"]
["R","Superficie préparée",null,"Scarifiage partiel :  \n- 100-125 poquets/ha soit ((125 * 6 m²) / 10 000) : 8%\n- 300-400 poquets/ha soit ((375 * 6 m²) / 10 000) : 22%\n- 900-1200 monticules/ha soit ((1 100 * 3 m²) / 10 000) : 33%\nDéblaiement en plein :\n- 85% déblayé et 15% andains : 85%"]
["TP","Type de couvert",null,null,{"$f":"IF($G$13=Menus!$D$6,Menus!$F$6,IF($G$13=Menus!$D$11,Menus!$F$11,\"\"))","v":""},{"$f":"IF($G$20=Menus!$B$53,Menus!$C$53,IF($G$20=Menus!$B$54,Menus!$C$54,IF($G$20=Menus!$B$55,Menus!$C$55,\"\")))","v":""}]
["TR","Type de procédé de récolte",null,null,{"$f":"IF($G$21=Menus!$B$56,Menus!$D$56,IF($G$21=Menus!$B$57,Menus!$D$57,IF($G$21=Menus!$B$58,Menus!$D$58,IF($G$21=Menus!$B$59,Menus!$D$59,\"\"))))","v":""},{"$f":"IF($G$21=Menus!$B$56,Menus!$C$56,IF($G$21=Menus!$B$57,Menus!$C$57,IF($G$21=Menus!$B$58,Menus!$C$58,IF($G$21=Menus!$B$59,Menus!$C$59,\"\"))))","v":""}]
["PER","Type de perturbation",null,null,null,{"$f":"IF($G$22=Menus!$B$60,Menus!$C$60,IF($G$22=Menus!$B$61,Menus!$C$61,\"\"))","v":""}]
["VEH","Type d'engin forestier",null,null,{"$f":"IF($G$13=Menus!$D$6,Menus!$G$6,IF($G$13=Menus!$D$11,Menus!$G$11,\"\"))","v":""},{"$f":"IF($G$23=Menus!$B$62,Menus!$C$62,IF($G$23=Menus!$B$63,Menus!$C$63,IF($G$23=Menus!$B$64,Menus!$C$64,\"\")))","v":""}]
["Valeur","VEH utilisée dans la formule",null,null,{"$f":"IF($G$20=Menus!$B$53,Menus!$D$53,IF($G$20=Menus!$B$54,Menus!$D$54,IF($G$20=Menus!$B$55,Menus!$D$55,\"\")))","v":""},{"$f":"IFERROR((IF($F$23=\"\",\"\",IF($F$23=3,0.33,IF($F$23=2,1,(1/(1.4063*POWER($G$19,0.069))*0.85))))),\"\")","v":""}]
["Taux calculé à partir de l'équation et des variables reliées au traitement",null,null,null,null,null,{"$f":"IFERROR(IF($G$19=\"\",0,IF(ISNUMBER($G$19)=FALSE,\"Valeur R non valide\",IF(AND((ROUND($G$19,2)=$G$19),$G$19>=0.01,$G$19<=1),((('Calculs grille'!$I$13*'Préparation de terrain'!$G$19)/EXP(1.683*'Préparation de terrain'!$G$19-0.299*'Préparation de terrain'!$F$20-0.313*'Préparation de terrain'!$F$21+0.17*'Préparation de terrain'!$F$22+2.014))*'Préparation de terrain'!$F$24),\"Valeur R non valide\"))),0)","v":0}]
[{"$f":"\"Majorations et/ou réduction applicables à l'exécution - \"&$G$12&\" - \"&$G$13","v":"Majorations et/ou réduction applicables à l'exécution - Inscrire une valeur - Inscrire une valeur"}]
[{"$f":"IF($G$13='Majorations applicables'!$C$2,'Majorations applicables'!$K$2,IF($G$13='Majorations applicables'!$C$3,'Majorations applicables'!$K$3,IF($G$13='Majorations applicables'!$C$4,'Majorations applicables'!$K$4,IF($G$13='Majorations applicables'!$C$5,'Majorations applicables'!$K$5,IF($G$13='Majorations applicables'!$C$6,'Majorations applicables'!$K$6,IF($G$13='Majorations applicables'!$C$7,'Majorations applicables'!$K$7,IF($G$13='Majorations applicables'!$C$8,'Majorations applicables'!$K$8,IF($G$13='Majorations applicables'!$C$9,'Majorations applicables'!$K$9,IF($G$13='Majorations applicables'!$C$10,'Majorations applicables'!$K$10,IF($G$13='Majorations applicables'!$C$11,'Majorations applicables'!$K$11,IF($G$13='Majorations applicables'!$C$12,'Majorations applicables'!$K$12,IF($G$13='Majorations applicables'!$C$13,'Majorations applicables'!$K$13,IF($G$13='Majorations applicables'!$C$14,'Majorations applicables'!$K$14,IF($G$13='Majorations applicables'!$C$15,'Majorations applicables'!$K$15,IF($G$13='Majorations applicables'!$C$16,'Majorations applicables'!$K$16,\"\")))))))))))))))","v":""}]
["Majoration selon la distance entre les passages (PA0)"]
["Majoration selon la distance entre les passages (PA0) - Disque-Bracke-Wadell"]
["Distance entre les passages de l'engin forestier «DP» (Valeur de 3,50m à 5,00m inclusivement)"]
["Nombre de microsite par hectare désiré calculé à partir d'une valeur standard de distance entre les passages de l'engin forestier",null,null,null,null,null,{"$f":"IFERROR((IF($G$30=\"\",\"\",IF('Préparation de terrain'!$G$30=Menus!A23,Menus!$B$23,IF('Préparation de terrain'!$G$30=Menus!$A$24,Menus!$B$24,IF('Préparation de terrain'!$G$30=Menus!$A$25,Menus!$B$25,IF('Préparation de terrain'!$G$30=Menus!$A$26,Menus!$B$26,\"La valeur de distance entre les passages est différente des valeurs standards (classes de 50cm), calcul à titre indicatif seulement «\"&ROUND(10000/$G$30,0)&\"» microsites par hectare\")))))),\"\")","v":""}]
[{"$f":"IF($G$30=\"\",\"Majoration du taux d'exécution de base calculé à partir de la valeur inscrite de distance entre les passages de l'engin forestier\",IF(ROUND($G$30,2)<>$G$30,\"Majoration du taux d'exécution de base calculé à partir de la valeur inscrite de distance entre les passages de l'engin forestier - Valeur «Distance entre les passages» non valide\",IF(AND($G$30>=3.5,$G$30<=5),\"Majoration du taux d'exécution de base calculé à partir de la valeur inscrite de distance entre les passages de l'engin forestier selon la formule suivante : \"&Menus!$B$30,\"Majoration du taux d'exécution de base calculé à partir de la valeur inscrite de distance entre les passages de l'engin forestier - Valeur «Distance entre les passages» non valide\")))","v":"Majoration du taux d'exécution de base calculé à partir de la valeur inscrite de distance entre les passages de l'engin forestier"},null,null,null,null,null,{"$f":"IF($G$30=\"\",\"\",IF(ROUND($G$30,2)<>$G$30,\"Valeur «Distance entre les passages» non valide\",IF(AND($G$30>=3.5,$G$30<=5),ROUND(Menus!$B$28*EXP(Menus!$B$29*ROUND('Préparation de terrain'!$G$30,2)),4),\"Valeur «Distance entre les passages» non valide\")))","v":""}]
["Majoration pour la pente (PE1)"]
["Majoration pour la pente (PE1) - Disque-Bracke-Wadell-M36"]
["Classe de pente\nnumérique",null,"Taux calculé",null,"Écart",null,"Superficie (ha)"]
["Pente A",null,{"$f":"IFERROR($G$14,0)","v":0},null,{"$f":"IFERROR($C$36-$G$14,0)","v":0}]
["Pente B",null,{"$f":"IFERROR($G$14,0)","v":0},null,{"$f":"IFERROR($C$37-$G$14,0)","v":0}]
["Pente C",null,{"$f":"IFERROR($G$14*(1+'Majorations applicables'!$A$41),0)","v":0},null,{"$f":"IFERROR($C$38-$G$14,0)","v":0}]
["Pente D",null,{"$f":"IFERROR($G$14*(1+'Majorations applicables'!$A$42),0)","v":0},null,{"$f":"IFERROR($C$39-$G$14,0)","v":0}]
["Pente E",null,{"$f":"IFERROR($G$14*(1+'Majorations applicables'!$A$43),0)","v":0},null,{"$f":"IFERROR($C$40-$G$14,0)","v":0}]
["Total",null,null,null,null,null,{"$f":"IFERROR(SUM($G$36:$G$40),0)","v":0}]
["Majoration pour la pente (PE2)"]
["Majoration pour la pente (PE2) - Abatteuse-Rouleau"]
["Classe de pente numérique",null,"Taux calculé",null,"Écart",null,"Superficie (ha)"]
["Pente A",null,{"$f":"IFERROR($G$14,0)","v":0},null,{"$f":"IFERROR($C$45-$G$14,0)","v":0}]
["Pente B",null,{"$f":"IFERROR($G$14,0)","v":0},null,{"$f":"IFERROR($C$46-$G$14,0)","v":0}]
["Pente C",null,{"$f":"IFERROR($G$14*(1+'Majorations applicables'!$A$46),0)","v":0},null,{"$f":"IFERROR($C$47-$G$14,0)","v":0}]
["Pente D",null,{"$f":"IFERROR($G$14*(1+'Majorations applicables'!$A$47),0)","v":0},null,{"$f":"IFERROR($C$48-$G$14,0)","v":0}]
["Pente E",null,{"$f":"IFERROR($G$14*(1+'Majorations applicables'!$A$48),0)","v":0},null,{"$f":"IFERROR($C$49-$G$14,0)","v":0}]
["Total",null,null,null,null,null,{"$f":"IFERROR(SUM($G$45:$G$49),0)","v":0}]
["Majoration pour la pente (PE4)"]
["Majoration pour la pente (PE4) - Bouteur"]
["Classe de pente numérique",null,"Taux calculé",null,"Écart",null,"Superficie (ha)"]
["Pente A",null,{"$f":"IFERROR($G$14,0)","v":0},null,{"$f":"IFERROR($C$54-$G$14,0)","v":0}]
["Pente B",null,{"$f":"IFERROR($G$14,0)","v":0},null,{"$f":"IFERROR($C$55-$G$14,0)","v":0}]
["Pente C",null,{"$f":"IFERROR($G$14*(1+'Majorations applicables'!$A$56),0)","v":0},null,{"$f":"IFERROR($C$56-$G$14,0)","v":0}]
["Pente D",null,{"$f":"IFERROR($G$14*(1+'Majorations applicables'!$A$57),0)","v":0},null,{"$f":"IFERROR($C$57-$G$14,0)","v":0}]
["Pente E",null,{"$f":"IFERROR($G$14*(1+'Majorations applicables'!$A$58),0)","v":0},null,{"$f":"IFERROR($C$58-$G$14,0)","v":0}]
["Total",null,null,null,null,null,{"$f":"IFERROR(SUM($G$54:$G$58),0)","v":0}]
["Majoration pour le nombre de passage et la pente (PA1 et PE1)"]
["Majoration pour le nombre de passage et la pente (PA1 et PE1) - Disque-Bracke-Wadell"]
["Superficie  (hectares)"]
["Classe de pente numérique",null,null,"Simple passage ","Double passage","Triple passage","Total"]
["Pente A",null,null,null,null,null,{"$f":"SUM($D$64:$F$64)","v":0}]
["Pente B",null,null,null,null,null,{"$f":"SUM($D$65:F65)","v":0}]
["Pente C",null,null,null,null,null,{"$f":"SUM($D$66:$F$66)","v":0}]
["Pente D",null,null,null,null,null,{"$f":"SUM($D$67:$F$67)","v":0}]
["Pente E",null,null,null,null,null,{"$f":"SUM($D$68:$F$68)","v":0}]
["Total",null,null,{"$f":"IFERROR(SUM($D$64:$D$68),0)","v":0},{"$f":"IFERROR(SUM($E$64:$E$68),0)","v":0},{"$f":"IFERROR(SUM($F$64:$F$68),0)","v":0},{"$f":"IFERROR(SUM($G$64:$G$68),0)","v":0}]
["Taux calculé ($/hectare)"]
["Nombre de passage",null,1,null,2,null,3]
["Pente A",null,{"$f":"IFERROR(SUM($G$142:$G$143),0)","v":0},null,{"$f":"IFERROR(SUM($G$142:$G$143)+SUM($G$142:$G$143)*'Majorations applicables'!$A$35,0)","v":0},null,{"$f":"IFERROR(SUM($G$142:$G$143)+SUM($G$142:$G$143)*'Majorations applicables'!$A$35+SUM($G$142:$G$143)*POWER('Majorations applicables'!$A$35,2),0)","v":0}]
["Pente B",null,{"$f":"IFERROR(SUM($G$142:$G$143),0)","v":0},null,{"$f":"IFERROR(SUM($G$142:$G$143)+SUM($G$142:$G$143)*'Majorations applicables'!$A$35,0)","v":0},null,{"$f":"IFERROR(SUM($G$142:$G$143)+SUM($G$142:$G$143)*'Majorations applicables'!$A$35+SUM($G$142:$G$143)*POWER('Majorations applicables'!$A$35,2),0)","v":0}]
["Pente C",null,{"$f":"IFERROR(SUM($G$142:$G$143)*(1+'Majorations applicables'!$A$41),0)","v":0},null,{"$f":"IFERROR(SUM($G$142:$G$143)*(1+'Majorations applicables'!$A$41)+SUM($G$142:$G$143)*(1+'Majorations applicables'!$A$41)*'Majorations applicables'!$A$35,0)","v":0},null,{"$f":"IFERROR(SUM($G$142:$G$143)*(1+'Majorations applicables'!$A$41)+SUM($G$142:$G$143)*(1+'Majorations applicables'!$A$41)*'Majorations applicables'!$A$35+SUM($G$142:$G$143)*(1+'Majorations applicables'!$A$41)*POWER('Majorations applicables'!$A$35,2),0)","v":0}]
["Pente D",null,{"$f":"IFERROR(SUM($G$142:$G$143)*(1+'Majorations applicables'!$A$42),0)","v":0},null,{"$f":"IFERROR(SUM($G$142:$G$143)*(1+'Majorations applicables'!$A$42)+SUM($G$142:$G$143)*(1+'Majorations applicables'!$A$42)*'Majorations applicables'!$A$35,0)","v":0},null,{"$f":"IFERROR(SUM($G$142:$G$143)*(1+'Majorations applicables'!$A$42)+SUM($G$142:$G$143)*(1+'Majorations applicables'!$A$42)*'Majorations applicables'!$A$35+SUM($G$142:$G$143)*(1+'Majorations applicables'!$A$42)*POWER('Majorations applicables'!$A$35,2),0)","v":0}]
["Pente E",null,{"$f":"IFERROR(SUM($G$142:$G$143)*(1+'Majorations applicables'!$A$43),0)","v":0},null,{"$f":"IFERROR(SUM($G$142:$G$143)*(1+'Majorations applicables'!$A$43)+SUM($G$142:$G$143)*(1+'Majorations applicables'!$A$43)*'Majorations applicables'!$A$35,0)","v":0},null,{"$f":"IFERROR(SUM($G$142:$G$143)*(1+'Majorations applicables'!$A$43)+SUM($G$142:$G$143)*(1+'Majorations applicables'!$A$43)*'Majorations applicables'!$A$35+SUM($G$142:$G$143)*(1+'Majorations applicables'!$A$43)*POWER('Majorations applicables'!$A$35,2),0)","v":0}]
["Majoration pour le nombre de passage et la pente (PA2 et PE2)"]
["Majoration pour le nombre de passage et la pente (PA2 et PE2) - Herse"]
["Superficie (hectares)"]
["Classe de pente numérique",null,null,"Simple passage ","Double passage","Triple passage","Total"]
["Pente A",null,null,null,null,null,{"$f":"SUM($D$81:$F$81)","v":0}]
["Pente B",null,null,null,null,null,{"$f":"SUM($D$82:$F$82)","v":0}]
["Pente C",null,null,null,null,null,{"$f":"SUM($D$83:$F$83)","v":0}]
["Pente D",null,null,null,null,null,{"$f":"SUM($D$84:$F$84)","v":0}]
["Pente E",null,null,null,null,null,{"$f":"SUM($D$85:$F$85)","v":0}]
["Total",null,null,{"$f":"IFERROR(SUM($D$81:$D$85),0)","v":0},{"$f":"IFERROR(SUM($E$81:$E$85),0)","v":0},{"$f":"IFERROR(SUM($F$81:$F$85),0)","v":0},{"$f":"IFERROR(SUM($G$81:$G$85),0)","v":0}]
["Taux calculé ($/hectare)"]
["Nombre de passage",null,1,null,2,null,3]
["Pente A",null,{"$f":"IFERROR($G$14,0)","v":0},null,{"$f":"IFERROR($G$14+$G$14*'Majorations applicables'!$A$38,0)","v":0},null,{"$f":"IFERROR($G$14+$G$14*'Majorations applicables'!$A$38+$G$14*POWER('Majorations applicables'!$A$38,2),0)","v":0}]
["Pente B",null,{"$f":"IFERROR($G$14,0)","v":0},null,{"$f":"IFERROR($G$14+$G$14*'Majorations applicables'!$A$38,0)","v":0},null,{"$f":"IFERROR($G$14+$G$14*'Majorations applicables'!$A$38+$G$14*POWER('Majorations applicables'!$A$38,2),0)","v":0}]
["Pente C",null,{"$f":"IFERROR($G$14*(1+'Majorations applicables'!$A$46),0)","v":0},null,{"$f":"IFERROR($G$14*(1+'Majorations applicables'!$A$46)+$G$14*(1+'Majorations applicables'!$A$46)*'Majorations applicables'!$A$38,0)","v":0},null,{"$f":"IFERROR($G$14*(1+'Majorations applicables'!$A$46)+$G$14*(1+'Majorations applicables'!$A$46)*'Majorations applicables'!$A$38+$G$14*(1+'Majorations applicables'!$A$46)*POWER('Majorations applicables'!$A$38,2),0)","v":0}]
["Pente D",null,{"$f":"IFERROR($G$14*(1+'Majorations applicables'!$A$47),0)","v":0},null,{"$f":"IFERROR($G$14*(1+'Majorations applicables'!$A$47)+$G$14*(1+'Majorations applicables'!$A$47)*'Majorations applicables'!$A$38,0)","v":0},null,{"$f":"IFERROR($G$14*(1+'Majorations applicables'!$A$47)+$G$14*(1+'Majorations applicables'!$A$47)*'Majorations applicables'!$A$38+$G$14*(1+'Majorations applicables'!$A$47)*POWER('Majorations applicables'!$A$38,2),0)","v":0}]
["Pente E",null,{"$f":"IFERROR($G$14*(1+'Majorations applicables'!$A$48),0)","v":0},null,{"$f":"IFERROR($G$14*(1+'Majorations applicables'!$A$48)+$G$14*(1+'Majorations applicables'!$A$48)*'Majorations applicables'!$A$38,0)","v":0},null,{"$f":"IFERROR($G$14*(1+'Majorations applicables'!$A$48)+$G$14*(1+'Majorations applicables'!$A$48)*'Majorations applicables'!$A$38+$G$14*(1+'Majorations applicables'!$A$48)*POWER('Majorations applicables'!$A$38,2),0)","v":0}]
[{"$f":"IFERROR(IF($G$23=\"\",\"Majoration pour la pente (PE2 ou PE3 selon le type d'équipement)\",IF($G$23<>Menus!$B$64,\"Majoration pour la pente (PE2)\",\"Majoration pour la pente (PE3)\")),\"Majoration pour la pente (PE2 ou PE3 selon le type d'équipement)\")","v":"Majoration pour la pente (PE2 ou PE3 selon le type d'équipement)"}]
["Majoration pour la pente (PE2 ou PE3 selon le type d'équipement) - Variable"]
["Classe de pente numérique",null,"Taux calculé",null,"Écart",null,"Superficie (hectare)"]
["Pente A",null,{"$f":"IFERROR(SUM($G$25),0)","v":0},null,{"$f":"IFERROR($C$97-$G$25,0)","v":0}]
["Pente B",null,{"$f":"IFERROR(SUM($G$25),0)","v":0},null,{"$f":"IFERROR($C$98-$G$25,0)","v":0}]
["Pente C",null,{"$f":"IFERROR(IF($F$23=1,$G$25*(1+'Majorations applicables'!$A$51),$G$25*(1+'Majorations applicables'!$A$46)),0)","v":0},null,{"$f":"IFERROR($C$99-$G$25,0)","v":0}]
["Pente D",null,{"$f":"IFERROR(IF($F$23=1,$G$25*(1+'Majorations applicables'!$A$52),$G$25*(1+'Majorations applicables'!$A$47)),0)","v":0},null,{"$f":"IFERROR($C$100-$G$25,0)","v":0}]
["Pente E",null,{"$f":"IFERROR(IF($F$23=1,$G$25*(1+'Majorations applicables'!$A$53),$G$25*(1+'Majorations applicables'!$A$48)),0)","v":0},null,{"$f":"IFERROR($C$101-$G$25,0)","v":0}]
["Total",null,null,null,null,null,{"$f":"IFERROR(SUM($G$97:$G$101),0)","v":0}]
[{"$f":"\"Unités de mesure pour le traitement \"&D13","v":"Unités de mesure pour le traitement "}]
["Unités de mesure pour le traitement - Drainage-Taupe-pioche"]
["Nombre de kilomètres ou Mm³"]
["Nombre de milliers de microsites"]
["Majoration en fonction de l'indice de dispersion (DISP1 ou DISP2)"]
["Majoration en fonction de l'indice de dispersion (DISP1 ou DISP2) - Tous sauf Taupe et Drainage"]
["Unité d'aménagement (UA)",null,null,null,null,null,{"$f":"IF($G$5<>\"\",$G$5,\"\")","v":""}]
["Indice de dispersion",null,null,null,null,null,{"$f":"IFERROR(VLOOKUP($G$109,'Dispersion 2018-2019'!$A$7:$D$66,2,FALSE),0)","v":0}]
["Majoration DISP1",null,null,null,null,null,{"$f":"IFERROR(VLOOKUP($G$109,'Dispersion 2018-2019'!$A$7:$D$66,3,FALSE),0)","v":0}]
["Majoration DISP2",null,null,null,null,null,{"$f":"IFERROR(VLOOKUP($G$109,'Dispersion 2018-2019'!$A$7:$D$66,4,FALSE),0)","v":0}]
["Majoration pour l'hébergement et la distance du secteur d'intervention (H1 et D200)"]
["Majoration pour l'hébergement et la distance du secteur d'intervention (H1 et D200) - Tous "]
["Hébergement (H1)",null,null,null,null,{"$f":"IF($G$115=\"\",\"\",IF($G$115=Menus!$A$33,Menus!$B$33,IF($G$115=Menus!$A$34,Menus!$B$34,IF($G$115=Menus!$A$35,Menus!$B$35,IF($G$115<=Menus!$B$34,$G$115,\"Max \"&TEXT(Menus!$B$34,\"0,00%\"))))))","v":""}]
["Distance du secteur d'intervention (D200)",null,null,null,null,{"$f":"IF($G$116=Menus!$A$43,Menus!$B$43,IF($G$116=Menus!$A$44,Menus!$B$44,\"\"))","v":""}]
["Majoration pour la certification (CEAF1 ou ISO1)"]
["Majoration pour la certification (CEAF1 ou ISO1) - Tous"]
["Certification (CEAF1 ou ISO1)",null,null,null,null,{"$f":"IF($G$119=Menus!$A$47,Menus!$B$47,IF($G$119=Menus!$A$48,Menus!$B$48,IF($G$119=Menus!$A$49,Menus!$B$49,\"\")))","v":""}]
["Vérification"]
["Vérification - Tous"]
["Délimitation des secteurs (taux par kilomètre délimité)"]
["Nombre de kilomètres délimités"]
["Vérification - Disque-Bracke-Wadell/M36/Variable/Herse/Bouteur/Abatteuse-Rouleau"]
["Inventaire après traitement (taux par placette inventoriée)"]
["Nombre de placettes inventoriées"]
["Critère 1","Dénombrement des microsites (densité par hectare)",null,null,{"$f":"IFERROR(SUM($F$127:$F$130)*'Calculs grille'!$I$78,0)","v":0},{"$f":"IF($G$127=\"Oui\",1,IF($G$127=\"Non\",0,\"\"))","v":""}]
[null,"Qualification des microsites",null,null,null,{"$f":"IF($G$128=\"Oui\",1,IF($G$128=\"Non\",0,\"\"))","v":""}]
[null,"Mesure des distances entre les sillons sans contraintes (nettes)",null,null,null,{"$f":"IF($G$129=\"Oui\",1,IF($G$129=\"Non\",0,\"\"))","v":""}]
[null,"Évaluation du type de plants, de l'essence reboisée et du choix de site",null,null,null,{"$f":"IF($G$130=\"Oui\",1,IF($G$130=\"Non\",0,\"\"))","v":""}]
[null,"Nombre total de critères",null,null,null,null,{"$f":"SUM($F$127:$F$130)","v":0}]
["Vérification - Drainage"]
["Inventaire après traitement (taux par kilomètre ou millier de mètres cubes)"]
["Vérification - Taupe"]
["Inventaire après traitement (taux par placette inventoriée)"]
["Nombre de placettes inventoriées"]
["Vérification - Majoration pour l'hébergement et la distance du secteur d'intervention (H3 et D200)"]
["Hébergement (H3)",null,null,null,null,{"$f":"IF($G$138=\"\",\"\",IF($G$138=Menus!$A$38,Menus!$B$38,IF($G$138=Menus!$A$39,Menus!$B$39,IF($G$138=Menus!A40,Menus!$B$40,IF($G$138<=Menus!$B$39,$G$138,\"Max \"&TEXT(Menus!B39,\"0,0%\"))))))","v":""}]
["Distance du secteur d'intervention (D200)",null,null,null,null,{"$f":"IF($G$139=Menus!$A$43,Menus!$B$43,IF($G$139=Menus!$A$44,Menus!$B$44,\"\"))","v":""}]
["Total"]
["Calculs - Disque-Bracke-Wadell"]
["Taux d'exécution de base",null,null,null,null,null,{"$f":"IFERROR(IF($G$14=\"\",0,IF($G$32=\"Valeur «Distance entre les passages» non valide\",\"Valeur «Distance entre les passages» non valide\",$G$14)),0)","v":0}]
["Taux PA0",null,null,null,null,null,{"$f":"IFERROR(IF($G$30=\"\",0,-($G$14*(1-$G$32))),0)","v":0}]
["Taux PA1 et PE1",null,null,null,null,null,{"$f":"IFERROR(((SUMPRODUCT($C$72:$C$76,$D$64:$D$68)+SUMPRODUCT($E$72:$E$76,$E$64:$E$68)+SUMPRODUCT($G$72:$G$76,$F$64:$F$68))/$G$69)-($G$142+$G$143),0)","v":0}]
["Taux sous-total exécution",null,null,null,null,null,{"$f":"IFERROR(SUM($G$142:$G$144),0)","v":0}]
["Taux DISP1",null,null,null,null,null,{"$f":"IFERROR(($G$145*$G$111),0)","v":0}]
["Taux H1",null,null,null,null,null,{"$f":"IFERROR((SUM($G$145:$G$146)*$F$115),0)","v":0}]
["Taux CEAF1 ou ISO1",null,null,null,null,null,{"$f":"IFERROR((SUM($G$145:$G$147)*$F$119),0)","v":0}]
["Taux exécution total et majorations et réduction admissibles",null,null,null,null,null,{"$f":"IFERROR(ROUND(SUM($G$145:$G$148),2),0)","v":0}]
["Taux vérification",null,null,null,null,null,{"$f":"IFERROR(((($G$122*$G$123)+($G$125+($G$131*'Calculs grille'!$I$78))*$G$126)/$G$153),0)","v":0}]
["Taux H3 et/ou D200",null,null,null,null,null,{"$f":"IFERROR((SUM($F$138:$F$139)*$G$150),0)","v":0}]
["Taux exécution et vérification total",null,null,null,null,null,{"$f":"IFERROR(ROUND(SUM($G$149:$G$151),2),0)","v":0}]
["Superficie",null,null,null,null,null,{"$f":"IFERROR(ROUND($G$69,2),0)","v":0}]
["Total exécution",null,null,null,null,null,{"$f":"IFERROR(($G$149*$G$153),0)","v":0}]
["Total vérification",null,null,null,null,null,{"$f":"IFERROR((ROUND(SUM($G$150:$G$151),2)*$G$153),0)","v":0}]
["Grand total admissible",null,null,null,null,null,{"$f":"IFERROR(SUM($G$154:$G$155),0)","v":0}]
["Calculs - M36"]
["Taux d'exécution de base",null,null,null,null,null,{"$f":"IFERROR(IF($G$14=\"\",0,$G$14),0)","v":0}]
["Taux PE1",null,null,null,null,null,{"$f":"IFERROR((SUMPRODUCT($E$36:$E$40,$G$36:$G$40)/$G$41),0)","v":0}]
["Taux sous-total exécution",null,null,null,null,null,{"$f":"IFERROR(SUM($G$158:$G$159),0)","v":0}]
["Taux DISP1",null,null,null,null,null,{"$f":"IFERROR(($G$160*$G$111),0)","v":0}]
["Taux H1",null,null,null,null,null,{"$f":"IFERROR((SUM($G$160:$G$161)*$F$115),0)","v":0}]
["Taux CEAF1 ou ISO1",null,null,null,null,null,{"$f":"IFERROR((SUM($G$160:$G$162)*$F$119),0)","v":0}]
["Taux exécution total et majoration(s) admissible(s)",null,null,null,null,null,{"$f":"IFERROR(ROUND(SUM($G$160:$G$163),2),0)","v":0}]
["Taux vérification",null,null,null,null,null,{"$f":"IFERROR(((($G$122*$G$123)+($G$125+($G$131*'Calculs grille'!$I$78))*$G$126)/$G$168),0)","v":0}]
["Taux H3 et/ou D200",null,null,null,null,null,{"$f":"IFERROR((SUM($F$138:$F$139)*$G$165),0)","v":0}]
["Taux exécution et vérification total",null,null,null,null,null,{"$f":"IFERROR(ROUND(SUM($G$164:$G$166),2),0)","v":0}]
["Superficie",null,null,null,null,null,{"$f":"IFERROR(ROUND($G$41,2),0)","v":0}]
["Total exécution",null,null,null,null,null,{"$f":"IFERROR(($G$164*$G$168),0)","v":0}]
["Total vérification",null,null,null,null,null,{"$f":"IFERROR((ROUND(SUM($G$165:$G$166),2)*$G$168),0)","v":0}]
["Grand total admissible",null,null,null,null,null,{"$f":"IFERROR(SUM($G$169:$G$170),0)","v":0}]
["Calculs - Herse"]
["Taux d'exécution de base",null,null,null,null,null,{"$f":"IFERROR(IF($G$14=\"\",0,$G$14),0)","v":0}]
["Taux PA2 et PE2",null,null,null,null,null,{"$f":"IFERROR(((SUMPRODUCT($C$89:$C$93,$D$81:$D$85)+SUMPRODUCT($E$89:$E$93,$E$81:$E$85)+SUMPRODUCT($G$89:$G$93,$F$81:$F$85))/$G$86)-($G$173),0)","v":0}]
["Taux sous-total exécution",null,null,null,null,null,{"$f":"IFERROR(SUM($G$173:$G$174),0)","v":0}]
["Taux DISP1",null,null,null,null,null,{"$f":"IFERROR(($G$175*$G$111),0)","v":0}]
["Taux H1",null,null,null,null,null,{"$f":"IFERROR((SUM($G$175:$G$176)*$F$115),0)","v":0}]
["Taux CEAF1 ou ISO1",null,null,null,null,null,{"$f":"IFERROR((SUM($G$175:$G$177)*$F$119),0)","v":0}]
["Taux exécution total et majoration(s) admissible(s)",null,null,null,null,null,{"$f":"IFERROR((ROUND(SUM($G$175:$G$178),2)),0)","v":0}]
["Taux vérification",null,null,null,null,null,{"$f":"IFERROR(((($G$122*$G$123)+($G$125+($G$131*'Calculs grille'!$I$78))*$G$126)/$G$183),0)","v":0}]
["Taux H3 et/ou D200",null,null,null,null,null,{"$f":"IFERROR((SUM($F$138:$F$139)*$G$180),0)","v":0}]
["Taux exécution et vérification total",null,null,null,null,null,{"$f":"IFERROR((ROUND(SUM($G$179:$G$181),2)),0)","v":0}]
["Superficie",null,null,null,null,null,{"$f":"IFERROR(ROUND($G$86,2),0)","v":0}]
["Total exécution",null,null,null,null,null,{"$f":"IFERROR(($G$179*$G$183),0)","v":0}]
["Total vérification",null,null,null,null,null,{"$f":"IFERROR((ROUND(SUM($G$180:$G$181),2)*$G$183),0)","v":0}]
["Grand total admissible",null,null,null,null,null,{"$f":"IFERROR(SUM($G$184:$G$185),0)","v":0}]
["Calculs - Bouteur"]
["Taux d'exécution de base",null,null,null,null,null,{"$f":"IFERROR(IF($G$14=\"\",0,$G$14),0)","v":0}]
["Taux PE4",null,null,null,null,null,{"$f":"IFERROR((SUMPRODUCT($E$54:$E$58,$G$54:$G$58)/$G$59),0)","v":0}]
["Taux sous-total exécution",null,null,null,null,null,{"$f":"IFERROR(SUM($G$188:$G$189),0)","v":0}]
["Taux DISP2",null,null,null,null,null,{"$f":"IFERROR(($G$190*$G$112),0)","v":0}]
["Taux H1",null,null,null,null,null,{"$f":"IFERROR((SUM($G$190:$G$191)*$F$115),0)","v":0}]
["Taux CEAF1 ou ISO1",null,null,null,null,null,{"$f":"IFERROR((SUM($G$190:$G$192)*$F$119),0)","v":0}]
["Taux exécution total  et majoration(s) admissible(s)",null,null,null,null,null,{"$f":"IFERROR((ROUND(SUM($G$190:$G$193),2)),0)","v":0}]
["Taux vérification",null,null,null,null,null,{"$f":"IFERROR(((($G$122*$G$123)+($G$125+($G$131*'Calculs grille'!$I$78))*$G$126)/$G$198),0)","v":0}]
["Taux H3 et/ou D200",null,null,null,null,null,{"$f":"IFERROR((SUM($F$138:$F$139)*$G$195),0)","v":0}]
["Taux exécution et vérification total",null,null,null,null,null,{"$f":"IFERROR((ROUND(SUM($G$194:$G$196),2)),0)","v":0}]
["Superficie",null,null,null,null,null,{"$f":"IFERROR(ROUND($G$59,2),0)","v":0}]
["Total exécution",null,null,null,null,null,{"$f":"IFERROR(($G$194*$G$198),0)","v":0}]
["Total vérification",null,null,null,null,null,{"$f":"IFERROR((ROUND(SUM($G$195:$G$196),2)*$G$198),0)","v":0}]
["Grand total admissible",null,null,null,null,null,{"$f":"IFERROR(SUM($G$199:$G$200),0)","v":0}]
["Calculs - Abatteuse/Rouleau"]
["Taux d'exécution de base",null,null,null,null,null,{"$f":"IFERROR(IF($G$14=\"\",0,$G$14),0)","v":0}]
["Taux PE2",null,null,null,null,null,{"$f":"IFERROR((SUMPRODUCT($E$45:$E$49,$G$45:$G$49)/$G$50),0)","v":0}]
["Taux sous-total exécution",null,null,null,null,null,{"$f":"IFERROR(SUM($G$203:$G$204),0)","v":0}]
["Taux DISP2",null,null,null,null,null,{"$f":"IFERROR(($G$205*$G$112),0)","v":0}]
["Taux H1",null,null,null,null,null,{"$f":"IFERROR((SUM($G$205:$G$206)*$F$115),0)","v":0}]
["Taux CEAF1 ou ISO1",null,null,null,null,null,{"$f":"IFERROR((SUM($G$205:$G$207)*$F$119),0)","v":0}]
["Taux exécution total et majoration(s) admissible(s)",null,null,null,null,null,{"$f":"IFERROR((ROUND(SUM($G$205:$G$208),2)),0)","v":0}]
["Taux vérification",null,null,null,null,null,{"$f":"IFERROR(((($G$122*$G$123)+($G$125+($G$131*'Calculs grille'!$I$78))*$G$126)/$G$213),0)","v":0}]
["Taux H3 et/ou D200",null,null,null,null,null,{"$f":"IFERROR((SUM($F$138:$F$139)*$G$210),0)","v":0}]
["Taux exécution et vérification total",null,null,null,null,null,{"$f":"IFERROR((ROUND(SUM($G$209:$G$211),2)),0)","v":0}]
["Superficie",null,null,null,null,null,{"$f":"IFERROR(ROUND($G$50,2),0)","v":0}]
["Total exécution",null,null,null,null,null,{"$f":"IFERROR(($G$209*$G$213),0)","v":0}]
["Total vérification",null,null,null,null,null,{"$f":"IFERROR((ROUND(SUM($G$210:$G$211),2)*$G$213),0)","v":0}]
["Grand total admissible",null,null,null,null,null,{"$f":"IFERROR(SUM(G214:G215),0)","v":0}]
["Calculs - Drainage"]
["Taux d'exécution de base",null,null,null,null,null,{"$f":"IFERROR(IF($G$14=\"\",0,$G$14),0)","v":0}]
["Taux H1",null,null,null,null,null,{"$f":"IFERROR(($G$218*$F$115),0)","v":0}]
["Taux CEAF1 ou ISO1",null,null,null,null,null,{"$f":"IFERROR((SUM($G$218:$G$219)*$F$119),0)","v":0}]
["Taux exécution total et majoration(s) admissible(s)",null,null,null,null,null,{"$f":"IFERROR((ROUND(SUM($G$218:$G$220),2)),0)","v":0}]
["Taux vérification",null,null,null,null,null,{"$f":"IFERROR(((($G$122*$G$123)+($G$133*$G$225))/$G$225),0)","v":0}]
["Taux H3 et/ou D200",null,null,null,null,null,{"$f":"IFERROR((SUM($F$138:$F$139)*$G$222),0)","v":0}]
["Taux exécution et vérification total",null,null,null,null,null,{"$f":"IFERROR((ROUND(SUM($G$221:$G$223),2)),0)","v":0}]
["Nombre de kilomètres ou Mm³",null,null,null,null,null,{"$f":"IFERROR(ROUND($G$105,2),0)","v":0}]
["Total exécution",null,null,null,null,null,{"$f":"IFERROR(($G$221*$G$225),0)","v":0}]
["Total vérification",null,null,null,null,null,{"$f":"IFERROR((ROUND(SUM($G$222:$G$223),2)*$G$225),0)","v":0}]
["Grand total admissible",null,null,null,null,null,{"$f":"IFERROR(SUM($G$226:$G$227),0)","v":0}]
["Calculs - Taupe"]
["Taux d'exécution de base",null,null,null,null,null,{"$f":"IFERROR(IF($G$14=\"\",0,$G$14),0)","v":0}]
["Taux H1",null,null,null,null,null,{"$f":"IFERROR(($F$115*$G$230),0)","v":0}]
["Taux D200",null,null,null,null,null,{"$f":"IFERROR(($F$116*$G$230),0)","v":0}]
["Taux CEAF1 ou ISO1",null,null,null,null,null,{"$f":"IFERROR((SUM($G$230:$G$232)*$F$119),0)","v":0}]
["Taux exécution total  et majoration(s) admissible(s)",null,null,null,null,null,{"$f":"IFERROR((ROUND(SUM($G$230:$G$233),2)),0)","v":0}]
["Taux vérification",null,null,null,null,null,{"$f":"IFERROR(((($G$122*$G$123)+($G$135*$G$136))/$G$238),0)","v":0}]
["Taux H3 et/ou D200",null,null,null,null,null,{"$f":"IFERROR((SUM($F$138:$F$139)*$G$235),0)","v":0}]
["Taux exécution et vérification total",null,null,null,null,null,{"$f":"IFERROR((ROUND(SUM($G$234:$G$236),2)),0)","v":0}]
["Nombre de milliers de microsites",null,null,null,null,null,{"$f":"IFERROR(ROUND($G$106,3),0)","v":0}]
["Total exécution",null,null,null,null,null,{"$f":"IFERROR(($G$234*$G$238),0)","v":0}]
["Total vérification",null,null,null,null,null,{"$f":"IFERROR((ROUND(SUM($G$235:$G$236),2)*$G$238),0)","v":0}]
["Grand total admissible",null,null,null,null,null,{"$f":"IFERROR(SUM($G$239:$G$240),0)","v":0}]
["Calculs - Variable"]
["Taux d'exécution de base",null,null,null,null,null,{"$f":"IFERROR($G$25,0)","v":0}]
[{"$f":"IFERROR(IF($G$23=\"\",\"Taux PE2 ou PE3\",IF($G$23<>Menus!$B$64,\"Taux PE2\",\"Taux PE3\")),\"Taux PE2 ou PE3\")","v":"Taux PE2 ou PE3"},null,null,null,null,null,{"$f":"IFERROR((IF($G$102=0,0,(SUMPRODUCT($E$97:$E$101,$G$97:$G$101)/$G$102))),0)","v":0}]
["Taux sous-total exécution",null,null,null,null,null,{"$f":"IFERROR(SUM($G$243:$G$244),0)","v":0}]
[{"$f":"IFERROR(IF($G$23=\"\",\"Taux DISP1 ou DISP2\",IF($G$23<>Menus!$B$64,\"Taux DISP2\",\"Taux DISP1\")),\"Taux DISP1 ou DISP2\")","v":"Taux DISP1 ou DISP2"},null,null,null,null,null,{"$f":"IFERROR(IF($G$23<>Menus!$B$64,($G$245*$G$112),($G$245*$G$111)),0)","v":0}]
["Taux H1",null,null,null,null,null,{"$f":"IFERROR((SUM($G$245:$G$246)*$F$115),0)","v":0}]
["Taux CEAF1 ou ISO1",null,null,null,null,null,{"$f":"IFERROR((SUM($G$245:$G$247)*$F$119),0)","v":0}]
["Taux exécution total et majoration(s) admissible(s)",null,null,null,null,null,{"$f":"IFERROR((ROUND(SUM($G$245:$G$248),2)),0)","v":0}]
["Taux vérification",null,null,null,null,null,{"$f":"IFERROR(((($G$122*$G$123)+($G$125+($G$131*'Calculs grille'!$I$78))*$G$126)/$G$253),0)","v":0}]
["Taux H3 et/ou D200",null,null,null,null,null,{"$f":"IFERROR((SUM($F$138:$F$139)*$G$250),0)","v":0}]
["Taux exécution et vérification total",null,null,null,null,null,{"$f":"IFERROR((ROUND(SUM($G$249:$G$251),2)),0)","v":0}]
["Superficie",null,null,null,null,null,{"$f":"IFERROR(ROUND($G$102,2),0)","v":0}]
["Total exécution",null,null,null,null,null,{"$f":"IFERROR(($G$249*$G$253),0)","v":0}]
["Total vérification",null,null,null,null,null,{"$f":"IFERROR((ROUND(SUM($G$250:$G$251),2)*$G$253),0)","v":0}]
["Grand total admissible",null,null,null,null,null,{"$f":"IFERROR(SUM($G$254:$G$255),0)","v":0},null,null,null,null,null,null,null,null,null,null,null,null,null,null,{"$f":"N256&H256","v":""},{"$f":"J256&H256","v":""},{"$f":"P256&H256","v":""}]
[null,null,null,null,null,null,null,null,null,null,null,null,null,null,null,null,null,null,null,null,null,"","",""]
["Remarques"]
[]
["J'atteste que les renseignements fournis dans ce document afin de calculer le taux du traitement sont complets et conformes à la vérité, au meilleur de mes connaissances.",null,null,null,null,null,null,null,null,null,null,null,null,null,null,null,null,null,null,null,null,"","",""]
[]
[null,null,null,null,null,null,null,null,null,null,null,null,null,null,null,null,null,null,null,null,null,"","",""]
[null,null,null,null,null,null,null,null,null,null,null,null,null,null,null,null,null,null,null,null,null,"","",""]
["Nom et prénom de l'ingénieur forestier",null,null,null,null,null,"No de permis",null,null,null,null,null,null,null,null,null,null,null,null,null,null,"","",""]
[null,null,null,null,null,null,{"$f":"TODAY()","v":"2018-01-17"},null,null,null,null,null,null,null,null,null,null,null,null,null,null,"","",""]
[null,null,null,null,null,null,null,null,null,null,null,null,null,null,null,null,null,null,null,null,null,"","",""]
["Signature de l'ingénieur forestier",null,null,null,null,null,"Date (AAAA-MM-JJ)",null,null,null,null,null,null,null,null,null,null,null,null,null,null,"",{"$f":"J267&H267","v":""},{"$f":"P267&H267","v":""}]
[null,null,null,null,null,null,null,null,null,null,null,null,null,null,null,null,null,null,null,null,null,"","",""]
[null,null,null,null,null,null,null,null,null,null,null,null,null,null,null,null,null,null,null,null,null,"","",""]
["Section réservée au suivi du contrat",null,null,null,null,null,null,null,null,null,null,null,null,null,null,null,null,null,null,null,null,"","",""]
[null,null,null,null,null,null,null,null,null,null,null,null,null,null,null,null,null,null,null,null,null,"","",""]
[null,"Numéro de la prescription :",{"$f":"IF(G8<>\"\",G8,\"\")","v":""},null,null,null,null,null,null,null,null,null,null,null,null,null,null,null,null,null,null,"","",""]
[null,null,null,null,null,null,null,null,null,null,null,null,null,null,null,null,null,null,null,null,null,"","",""]
[null,"Numéro du contrat :",null,null,null,null,null,null,null,null,null,null,null,null,null,null,null,null,null,null,null,"","",""]
[null,"Numéro du projet :",null,null,null,null,null,null,null,null,null,null,null,null,null,null,null,null,null,null,null,"","",""]
[null,"U.G. :",null,null,null,null,null,null,null,null,null,null,null,null,null,null,null,null,null,null,null,"","",""]
[null,"MRC :",null,null,null,null,null,null,null,null,null,null,null,null,null,null,null,null,null,null,null,"","",""]
[null,"Code de traitement DICA :",{"$f":"IF(G9<>\"\",G9,\"\")","v":""},null,null,null,null,null,null,null,null,null,null,null,null,null,null,null,null,null,null,"","",""]
[null,"Code de traitement RATF :",{"$f":"IF(G10<>\"\",G10,\"\")","v":""},null,null,null,null,null,null,null,null,null,null,null,null,null,null,null,null,null,null,"","",""]
[null,"Type d'attribution :",null,null,null,null,null,null,null,null,null,null,null,null,null,null,null,null,null,null,null,"","",""]
[null,"Taux AOP :",null,null,null,null,null,null,null,null,null,null,null,null,null,null,null,null,null,null,null,"","",""]
[null,"Nom de l'entrepreneur :",null,null,null,null,null,null,null,null,null,null,null,null,null,null,null,null,null,null,null,"","",""]
[null,"Numéro de fournisseur :",null,null,null,null,null,null,null,null,null,null,null,null,null,null,null,null,null,null,null,"","",""]
[null,"Date de début :"]
[null,"Date de fin :"]
[null,"Commentaires :"]

{"sheet":"Régénération artificielle","index":1,"n_rows":197,"n_cols":7,"rows_kept":197,"cut":false,"hidden":false,"merged":[[1,0,1,5],[121,0,121,5],[110,0,110,6],[58,3,58,5],[38,2,38,4],[39,1,39,4],[40,0,40,5],[41,0,41,5],[42,0,42,5],[57,3,57,5],[56,1,56,2],[58,1,58,2],[43,0,43,5],[47,0,47,5],[48,0,48,5],[49,0,49,5],[45,0,45,5],[54,3,54,5],[55,3,55,5],[56,3,56,5],[52,0,52,6],[53,0,53,6],[57,1,57,2],[55,1,55,2],[59,3,59,5],[61,0,61,6],[88,0,88,5],[77,0,77,6],[135,0,135,5],[145,0,145,5],[129,0,129,5],[116,0,116,5],[117,0,117,5],[119,0,119,5],[120,0,120,5],[72,0,72,5],[73,0,73,5],[97,0,97,5],[87,0,87,5],[84,0,84,5],[85,0,85,5],[102,0,102,5],[111,0,111,5],[105,0,105,5],[70,0,70,5],[67,0,67,3],[69,0,69,6],[59,1,59,2],[177,0,177,5],[171,0,173,5],[152,0,152,6],[153,0,153,5],[107,0,107,5],[108,0,108,5],[71,0,71,5],[82,0,82,6],[83,0,83,5],[80,0,80,3],[95,0,95,5],[74,0,75,0],[76,0,76,6],[93,0,93,5],[81,0,81,6],[148,0,148,5],[168,0,168,6],[169,0,169,6],[174,0,174,5],[162,0,162,5],[158,0,158,5],[170,0,170,6],[159,0,159,5],[157,0,157,5],[182,2,183,4],[60,0,60,2],[79,0,79,3],[80,4,80,5],[74,4,75,4],[75,1,75,3],[74,1,74,3],[144,0,144,5],[143,0,143,5],[141,0,141,5],[123,0,123,5],[180,0,180,4],[165,0,165,5],[166,0,166,5],[154,0,154,5],[124,0,124,5],[96,0,96,6],[64,0,64,3],[137,0,137,5],[138,0,138,5],[60,3,60,5],[156,0,156,5],[63,0,63,3],[118,0,118,5],[0,0,0,6],[3,0,3,6],[15,0,15,6],[16,0,16,6],[25,0,25,6],[28,1,30,1],[24,0,24,5],[10,0,10,6],[14,0,14,6],[17,0,17,6],[4,0,4,5],[5,0,5,5],[6,0,6,5],[7,0,7,5],[22,1,22,4],[11,0,11,5],[13,0,13,5],[18,1,18,4],[23,0,23,5],[2,0,2,5],[8,0,8,5],[9,0,9,5],[12,0,12,5],[19,1,19,5],[51,0,51,6],[54,1,54,2],[35,0,35,6],[46,0,46,6],[44,0,44,6],[37,1,38,1],[37,0,38,0],[31,1,31,4],[20,2,20,5],[20,1,21,1],[20,0,21,0],[37,2,37,5],[33,0,33,5],[34,0,34,5],[36,1,36,5],[29,2,29,4],[28,2,28,5],[28,0,30,0],[30,2,30,5],[21,2,21,4],[32,0,32,5],[50,0,50,6],[65,0,65,6],[66,0,66,6],[79,4,79,5],[94,0,94,5],[27,1,27,5],[26,1,26,4],[175,0,176,5],[175,6,176,6],[68,0,68,6],[62,0,62,6],[86,0,86,5],[100,0,100,5],[114,0,114,5],[122,0,122,5],[112,0,112,5],[113,0,113,5],[109,0,109,5],[98,0,98,5],[99,0,99,5],[104,0,104,5],[103,0,103,5],[106,0,106,5],[63,4,63,5],[78,0,78,3],[64,4,64,5],[78,4,78,5],[149,0,149,5],[128,0,128,5],[125,0,125,6],[126,0,126,5],[101,0,101,5],[92,0,92,5],[115,0,115,5],[127,0,127,5],[90,0,90,5],[89,0,89,5],[91,0,91,5],[67,4,67,5],[147,0,147,5],[131,0,131,5],[133,0,133,5],[134,0,134,5],[130,0,130,5],[132,0,132,5],[139,0,139,6],[136,0,136,5],[140,0,140,5],[142,0,142,5],[155,0,155,5],[146,0,146,5],[150,0,150,5],[151,0,151,5],[167,0,167,6],[164,0,164,5],[160,0,160,5],[161,0,161,5],[171,6,173,6],[163,0,163,5]]}
[]
["Annexe au calcul des taux des traitements non commerciaux                                                                                                                                                                                                                                            2018-2019                                                                                                                                                                                                                                                                              Régénération artificielle                                                                                                    Forêt publique"]
[" *** Veuillez saisir les informations dans les cellules blanches seulement ***",null,null,null,null,null,"Version 1 : 2018-01-17"]
["Identification"]
["Unité d'aménagement (UA)"]
["Secteur d'intervention"]
["Unité de compilation"]
["Numéro de la prescription"]
["Traitement (code DICA)"]
["Traitement (code RATF)"]
["Traitement de régénération artificielle à taux fixe ou variable"]
["Traitement",null,null,null,null,null,"Inscrire une valeur"]
["Taux de base",null,null,null,null,null,{"$f":"IFERROR(VLOOKUP($G$12,Menus!$A$163:$C$169,2,FALSE),0)","v":0}]
["Unité de mesure",null,null,null,null,null,{"$f":"IFERROR(VLOOKUP($G$12,Menus!$A$163:$C$169,3,FALSE),\"\")","v":"-"}]
["Taux d'exécution à déterminer selon la formule suivante"]
[{"$f":"IF($G$12=Formules!$B$10,Formules!$D$10,IF($G$12=Formules!$B$11,Formules!$D$11,IF($G$12=Formules!$B$12,Formules!$D$12,\"\")))","v":""}]
[{"$f":"\"Valeurs spécifiques à remplir selon le traitement - \"&$G$12","v":"Valeurs spécifiques à remplir selon le traitement - Inscrire une valeur"}]
["Valeurs spécifiques à remplir selon le traitement - Plantation uniforme et regarni en plein manuel sauf PEH"]
["PR","Préparation de terrain",null,null,null,{"$f":"IF($G$19=Menus!$A$172,Menus!$B$172,IF($G$19=Menus!$A$173,Menus!$B$173,\"\"))","v":""}]
["DE","Densité totale (nombre de plants à mettre en terre par hectare)"]
["DS","Distance entre les rangées de plants","Objectif de densité de plantation à terme : Outil de calcul afin de permettre d'afficher une valeur suggérée pour DS"]
[null,null,"Outil de calcul de la valeur de la variable «DS» en fonction de «Objectif de densité de plantation à terme». Une valeur différente peut être inscrite",null,null,{"$f":"IFERROR(ROUND(SQRT(10000/$G$21),2),0)","v":0}]
["Gabarit","Constante liée au gabarit retenu",null,null,null,{"$f":"IFERROR(VLOOKUP($G$23,Menus!$A$176:$B$181,2,FALSE),\"\")","v":""}]
["Nombre total de milliers de plants à mettre en terre"]
["Taux calculé à partir de l'équation et des variables reliées au traitement",null,null,null,null,null,{"$f":"IFERROR(('Calculs grille'!$I$18+'Calculs grille'!$I$19*$F$19+('Calculs grille'!$I$20/($G$20*$G$22))+$F$23),0)","v":0}]
["Valeurs spécifiques à remplir selon le traitement - Regarni de sentier et enrichissement manuel sauf PEH"]
["PR","Préparation de terrain",null,null,null,{"$f":"IFERROR(VLOOKUP($G$27,Menus!$A$172:$B$173,2,FALSE),\"\")","v":""}]
["DE","Densité totale (nombre de plants à mettre en terre par hectare)"]
["DS","Distance entre les rangées de plants","Objectif de densité de plantation à terme"]
[null,null,"Outil de calcul de la valeur de la variable «DS» en fonction de «Objectif de densité de plantation à terme». Une valeur différente peut être inscrite",null,null,{"$f":"IFERROR(ROUND(SQRT(10000/$G$29),2),\"\")","v":""}]
[null,null,"Calcul de la distance ajustée entre les plants (DSA), en fonction de «Objectif de densité de plantation à terme» et de «Pourcentage d'occupation des sentiers (regarni) ou proportion de la superficie traitée (enrichissement)». La valeur DSA calculée et la valeur DS inscrite par l'utilisateur seront utilisées pour calculer le taux.",null,null,null,{"$f":"IFERROR(($F$30/$G$33),\"\")","v":""}]
["Gabarit","Constante liée au gabarit retenu",null,null,null,{"$f":"IFERROR(VLOOKUP($G$32,Menus!$A$176:$B$181,2,FALSE),\"\")","v":""}]
["Pourcentage d'occupation des sentiers (regarni) ou proportion de la superficie traitée (enrichissement)"]
["Nombre total de milliers de plants à mettre en terre"]
["Taux calculé à partir de l'équation et des variables reliées au traitement",null,null,null,null,null,{"$f":"IFERROR(IF($G$33=\"\",('Calculs grille'!$I$18+'Calculs grille'!$I$19*$F$27+('Calculs grille'!$I$20/($G$28*$G$30))+$F$32),('Calculs grille'!$I$18+'Calculs grille'!$I$19*$F$27+('Calculs grille'!$I$20/($G$28*$G$31))+$F$32)*(1+((('Calculs grille'!$I$18+'Calculs grille'!$I$19*$F$27+('Calculs grille'!$I$20/($G$29*$G$30))+$F$32)-('Calculs grille'!$I$18+'Calculs grille'!$I$19*$F$27+('Calculs grille'!$I$20/($G$29*$G$31))+$F$32))/('Calculs grille'!$I$18+'Calculs grille'!$I$19*$F$27+('Calculs grille'!$I$20/($G$29*$G$31))+$F$32)))),0)","v":0}]
["Valeurs spécifiques à remplir selon le traitement - Plantation uniforme et regarni en plein manuel sentier préparé sauf PEH"]
["DE","Densité totale (indiquer le nombre de plants à mettre en terre par hectare)"]
["DS","Distance entre les rangées de plants","Objectif de densité de plantation à terme : Outil de calcul afin de permettre d'afficher une valeur suggérée pour DS"]
[null,null,"Outil de calcul de la valeur de la variable «DS» en fonction de «Objectif de densité de plantation à terme». Une valeur différente peut être inscrite",null,null,{"$f":"IFERROR(ROUND(SQRT(10000/$G$38),2),0)","v":0}]
["Gabarit","Constante liée au gabarit retenu",null,null,null,{"$f":"IFERROR(VLOOKUP($G$40,Menus!$A$176:$B$181,2,FALSE),\"\")","v":""}]
["Nombre total de milliers de plants à mettre en terre dans les SENTIERS"]
["Nombre total de milliers de plants à mettre en terre dans les BANDES"]
["Taux calculé à partir de l'équation et des variables reliées au traitement AVEC préparation de terrain",null,null,null,null,null,{"$f":"IFERROR(('Calculs grille'!$I$18+'Calculs grille'!$I$19*1+('Calculs grille'!$I$20/($G$37*$G$39))+$F$40),0)","v":0}]
["Taux calculé à partir de l'équation et des variables reliées au traitement SANS préparation de terrain",null,null,null,null,null,{"$f":"IFERROR(('Calculs grille'!$I$18+'Calculs grille'!$I$19*0+('Calculs grille'!$I$20/($G$37*$G$39))+$F$40),0)","v":0}]
["Valeurs spécifiques à remplir selon le traitement - Plantation uniforme PEH"]
["Nombre de milliers de plants à mettre en terre"]
["Valeurs spécifiques à remplir selon le traitement - Plantation uniforme et regarni mécanique (Scarificateur-planteur Bracke P-11a)"]
["Spécification"]
["Nombre de milliers de plants à mettre en terre"]
["Taux",null,null,null,null,null,{"$f":"IFERROR(VLOOKUP($G$48,Menus!$A$184:$B$187,2,FALSE),0)","v":0}]
[{"$f":"\"Majorations applicables à l'exécution - \"&$G$12","v":"Majorations applicables à l'exécution - Inscrire une valeur"}]
[{"$f":"IF($G$12='Majorations applicables'!$C$23,'Majorations applicables'!$K$23,IF($G$12='Majorations applicables'!$C$24,'Majorations applicables'!$K$24,IF($G$12='Majorations applicables'!$C$25,'Majorations applicables'!$K$25,IF($G$12='Majorations applicables'!$C$26,'Majorations applicables'!$K$26,IF($G$12='Majorations applicables'!$C$27,'Majorations applicables'!$K$27,IF($G$12='Majorations applicables'!$C$28,'Majorations applicables'!$K$28,\"\"))))))","v":""}]
["Majoration pour la pente (PE2)"]
["Majoration pour la pente (PE2) - Ensemencement terrestre manuel"]
["Classe de pente numérique","Taux calculé",null,"Écart",null,null,"Superficie (hectare)"]
["Pente A",{"$f":"IFERROR($G$13,0)","v":0},{"$f":"B56-$G$12","v":{"$error":"#VALUE!"}},{"$f":"IFERROR($B$56-$G$13,0)","v":0}]
["Pente B",{"$f":"IFERROR($G$13,0)","v":0},{"$f":"B57-$G$12","v":{"$error":"#VALUE!"}},{"$f":"IFERROR($B$57-$G$13,0)","v":0}]
["Pente C",{"$f":"IFERROR($G$13*(1+'Majorations applicables'!$A$46),0)","v":0},{"$f":"B58-$G$12","v":{"$error":"#VALUE!"}},{"$f":"IFERROR($B$58-$G$13,0)","v":0}]
["Pente D",{"$f":"IFERROR($G$13*(1+'Majorations applicables'!$A$47),0)","v":0},{"$f":"B59-$G$12","v":{"$error":"#VALUE!"}},{"$f":"IFERROR($B$59-$G$13,0)","v":0}]
["Pente E",{"$f":"IFERROR($G$13*(1+'Majorations applicables'!$A$48),0)","v":0},{"$f":"B60-$G$12","v":{"$error":"#VALUE!"}},{"$f":"IFERROR($B$60-$G$13,0)","v":0}]
[null,null,null,"Total",null,null,{"$f":"IFERROR(SUM($G$56:$G$60),0)","v":0}]
["Majoration pour l'hébergement, le transport collectif et la distance du secteur d'intervention (H2, TC et D200)"]
["Majoration pour l'hébergement, le transport collectif et la distance du secteur d'intervention (H2, TC et D200) - Tous sauf D200 pour Bracke"]
["Hébergement (H2 ou TC)",null,null,null,{"$f":"IF($G$64=\"\",\"\",IF($G$64=Menus!$A$190,Menus!$B$190,IF($G$64=Menus!$A$191,Menus!$B$191,IF($G$64=Menus!$A$192,Menus!$B$192,IF($G$64=Menus!$A$193,Menus!$B$193,IF($G$64<=Menus!$B$191,$G$64,\"Max \"&TEXT(Menus!B191,\"0,0%\")))))))","v":""}]
["Distance du secteur d'intervention (D200)",null,null,null,{"$f":"IFERROR(VLOOKUP($G$65,Menus!$A$201:$B$202,2,FALSE),\"\")","v":""}]
["Majoration pour la certification (CEAF2 ou ISO2)"]
["Majoration pour la certification (CEAF2 ou ISO2) - Tous"]
["Certification (CEAF2 ou ISO2)",null,null,null,{"$f":"IFERROR(VLOOKUP($G$68,Menus!$A$205:$B$207,2,FALSE),\"\")","v":""}]
["Vérification"]
["Vérification - Tous"]
["Délimitation des secteurs (taux par kilomètre délimité)"]
["Nombre de kilomètres délimités"]
["Inventaire après traitement (taux par placette inventoriée)"]
["Nombre de placettes inventoriées"]
["Critères 2","Coefficient de distribution de placette en partie ou en totalité sur un andain",null,null,{"$f":"IFERROR(SUM($F$75:$F$76)*'Calculs grille'!$I$82,0)","v":0},{"$f":"IF($G$75=\"Oui\",1,IF($G$75=\"Non\",0,\"\"))","v":""}]
[null,"Évaluation qualitative de l'alignement des plants",null,null,null,{"$f":"IF($G$76=\"Oui\",1,IF($G$76=\"Non\",0,\"\"))","v":""}]
["Vérification - Majoration pour l'hébergement, la distance du secteur d'intervention et la traçabilité des plants (H3, D200 et TRA)"]
["Vérification - Majoration pour l'hébergement, la distance du secteur d'intervention et la traçabilité des plants (H3, D200 et TRA) - Tous sauf TRA pour Ensemencement terrestre manuel"]
["Hébergement (H3)",null,null,null,{"$f":"IF($G$79=\"\",\"\",IF($G$79=Menus!$A$196,Menus!$B$196,IF($G$79=Menus!$A$197,Menus!$B$197,IF($G$79=Menus!$A$198,Menus!$B$198,IF($G$79<=Menus!$B$197,$G$79,\"Max \"&TEXT(Menus!B197,\"0,0%\"))))))","v":""}]
["Distance du secteur d'intervention (D200)",null,null,null,{"$f":"IFERROR(VLOOKUP($G$80,Menus!$A$201:$B$202,2,FALSE),\"\")","v":""}]
["Traçabilité (TRA) taux par milliers de plants",null,null,null,{"$f":"IFERROR(VLOOKUP($G$81,Menus!$A$222:$B$223,2,FALSE),\"\")","v":""}]
["Total"]
["Calculs - Plantation uniforme et regarni en plein manuel sauf PEH"]
["Taux d'exécution de base",null,null,null,null,null,{"$f":"IFERROR($G$25,0)","v":0}]
["Taux H2 ou TC",null,null,null,null,null,{"$f":"IFERROR(($G$84*$E$64),0)","v":0}]
["Taux D200",null,null,null,null,null,{"$f":"IFERROR(($G$84*$E$65),0)","v":0}]
["Taux CEAF2 ou ISO2",null,null,null,null,null,{"$f":"IFERROR((SUM($G$84:$G$86)*$E$68),0)","v":0}]
["Taux exécution total et majoration(s) admissible(s)",null,null,null,null,null,{"$f":"IFERROR((ROUND(SUM($G$84:$G$87),2)),0)","v":0}]
["Taux vérification",null,null,null,null,null,{"$f":"IFERROR(((($G$71*$G$72)+(($G$73+(SUM($F$75:$F$76)*'Calculs grille'!$I$82))*$G$74))/$G$93),0)","v":0}]
["Taux H3 et/ou D200",null,null,null,null,null,{"$f":"IFERROR(($G$89*SUM($E$79:$F$80)),0)","v":0}]
["Taux TRA",null,null,null,null,null,{"$f":"IFERROR(SUM($E$81),0)","v":0}]
["Taux exécution et vérification total",null,null,null,null,null,{"$f":"IFERROR(ROUND(SUM($G$88:$G$91),2),0)","v":0}]
["Nombre de milliers de plants",null,null,null,null,null,{"$f":"IFERROR(ROUND($G$24,3),0)","v":0}]
["Total exécution",null,null,null,null,null,{"$f":"IFERROR(($G$88*$G$93),0)","v":0}]
["Total vérification",null,null,null,null,null,{"$f":"IFERROR((ROUND(SUM($G$89:$G$91),2)*$G$93),0)","v":0}]
["Grand total admissible",null,null,null,null,null,{"$f":"IFERROR(SUM($G$94:$G$95),0)","v":0}]
["Calculs - Regarni de sentier et enrichissement manuel sauf PEH"]
["Taux d'exécution de base",null,null,null,null,null,{"$f":"IFERROR($G$35,0)","v":0}]
["Taux H2 ou TC",null,null,null,null,null,{"$f":"IFERROR(($G$98*$E$64),0)","v":0}]
["Taux D200",null,null,null,null,null,{"$f":"IFERROR(($G$98*$E$65),0)","v":0}]
["Taux CEAF2 ou ISO2",null,null,null,null,null,{"$f":"IFERROR((SUM($G$98:$G$100)*$E$68),0)","v":0}]
["Taux exécution total et majoration(s) admissible(s)",null,null,null,null,null,{"$f":"IFERROR((ROUND(SUM($G$98:$G$101),2)),0)","v":0}]
["Taux vérification",null,null,null,null,null,{"$f":"IFERROR(((($G$71*$G$72)+(($G$73+(SUM($F$75:$F$76)*'Calculs grille'!$I$82))*$G$74))/$G$107),0)","v":0}]
["Taux H3 et/ou D200",null,null,null,null,null,{"$f":"IFERROR(($G$103*SUM($E$79:$F$80)),0)","v":0}]
["Taux TRA",null,null,null,null,null,{"$f":"IFERROR(SUM($E$81),0)","v":0}]
["Taux exécution et vérification total",null,null,null,null,null,{"$f":"IFERROR((ROUND(SUM($G$102:$G$105),2)),0)","v":0}]
["Nombre de milliers de plants",null,null,null,null,null,{"$f":"IFERROR(ROUND($G$34,3),0)","v":0}]
["Total exécution",null,null,null,null,null,{"$f":"IFERROR(($G$102*$G$107),0)","v":0}]
["Total vérification",null,null,null,null,null,{"$f":"IFERROR((ROUND(SUM($G$103:$G$105),2)*$G$107),0)","v":0}]
["Grand total admissible",null,null,null,null,null,{"$f":"IFERROR(SUM($G$108:$G$109),0)","v":0}]
["Calculs - Plantation uniforme et regarni en plein manuel sentier préparé sauf PEH"]
["Taux d'exécution de base",null,null,null,null,null,{"$f":"IFERROR((SUMPRODUCT($G$41:$G$42,$G$43:$G$44)/SUM($G$41:$G$42)),0)","v":0}]
["Taux H2 ou TC",null,null,null,null,null,{"$f":"IFERROR(($G$112*$E$64),0)","v":0}]
["Taux D200",null,null,null,null,null,{"$f":"IFERROR(($G$112*$E$65),0)","v":0}]
["Taux CEAF2 ou ISO2",null,null,null,null,null,{"$f":"IFERROR((SUM($G$112:$G$114)*$E$68),0)","v":0}]
["Taux exécution total et majoration(s) admissible(s)",null,null,null,null,null,{"$f":"IFERROR((ROUND(SUM($G$112:$G$115),2)),0)","v":0}]
["Taux vérification",null,null,null,null,null,{"$f":"IFERROR((($G$71*$G$72)+(($G$73+(SUM($F$75:$F$76)*'Calculs grille'!$I$82))*$G$74))/SUM($G$121:$G$122),0)","v":0}]
["Taux H3 et/ou D200",null,null,null,null,null,{"$f":"IFERROR((G117*SUM($E$79:$F$80)),0)","v":0}]
["Taux TRA",null,null,null,null,null,{"$f":"IFERROR(SUM($E$81),0)","v":0}]
["Taux exécution et vérification total",null,null,null,null,null,{"$f":"IFERROR((ROUND(SUM($G$116:$G$119),2)),0)","v":0}]
["Nombre de milliers de plants dans les SENTIERS",null,null,null,null,null,{"$f":"IFERROR(ROUND($G$41,3),0)","v":0}]
["Nombre de milliers de plants dans les BANDES",null,null,null,null,null,{"$f":"IFERROR(ROUND($G$42,3),0)","v":0}]
["Total exécution",null,null,null,null,null,{"$f":"IFERROR(($G$116*SUM($G$121:$G$122)),0)","v":0}]
["Total vérification",null,null,null,null,null,{"$f":"IFERROR((ROUND(SUM($G$117:$G$119),2)*SUM($G$121:$G$122)),0)","v":0}]
["Grand total admissible",null,null,null,null,null,{"$f":"IFERROR(SUM($G$123:$G$124),0)","v":0}]
["Calculs - Plantation uniforme PEH"]
["Taux d'exécution de base",null,null,null,null,null,{"$f":"IFERROR($G$13,0)","v":0}]
["Taux H2 ou TC",null,null,null,null,null,{"$f":"IFERROR(($G$127*$E$64),0)","v":0}]
["Taux D200",null,null,null,null,null,{"$f":"IFERROR(($G$127*$E$65),0)","v":0}]
["Taux CEAF2 ou ISO2",null,null,null,null,null,{"$f":"IFERROR((SUM($G$127:$G$129)*$E$68),0)","v":0}]
["Taux exécution total et majoration(s) admissible(s)",null,null,null,null,null,{"$f":"IFERROR((ROUND(SUM($G$127:$G$130),2)),0)","v":0}]
["Taux vérification",null,null,null,null,null,{"$f":"IFERROR(((($G$71*$G$72)+(($G$73+(SUM($F$75:$F$76)*'Calculs grille'!$I$82))*$G$74))/$G$136),0)","v":0}]
["Taux H3 et/ou D200",null,null,null,null,null,{"$f":"IFERROR(($G$132*SUM($E$79:$F$80)),0)","v":0}]
["Taux TRA",null,null,null,null,null,{"$f":"IFERROR(SUM($E$81),0)","v":0}]
["Taux exécution et vérification total",null,null,null,null,null,{"$f":"IFERROR((ROUND(SUM($G$131:$G$134),2)),0)","v":0}]
["Nombre de milliers de plants",null,null,null,null,null,{"$f":"IFERROR(ROUND($G$46,3),0)","v":0}]
["Total exécution",null,null,null,null,null,{"$f":"IFERROR(($G$131*$G$136),0)","v":0}]
["Total vérification",null,null,null,null,null,{"$f":"IFERROR((ROUND(SUM($G$132:$G$134),2)*$G$136),0)","v":0}]
["Grand total admissible",null,null,null,null,null,{"$f":"IFERROR(SUM($G$137:$G$138),0)","v":0}]
["Calculs - Plantation uniforme et regarni mécanique (Scarificateur-planteur Bracke P-11a)"]
["Taux d'exécution de base",null,null,null,null,null,{"$f":"IFERROR(IF($G$50=\"\",0,$G$50),0)","v":0}]
["Taux H2",null,null,null,null,null,{"$f":"IFERROR(($G$141*$E$64),0)","v":0}]
["Taux CEAF2 ou ISO2",null,null,null,null,null,{"$f":"IFERROR((SUM($G$141:$G$142)*$E$68),0)","v":0}]
["Taux exécution total et majoration(s) admissible(s)",null,null,null,null,null,{"$f":"IFERROR((ROUND(SUM($G$141:$G$143),2)),0)","v":0}]
["Taux vérification",null,null,null,null,null,{"$f":"IFERROR(((($G$71*$G$72)+(($G$73+((SUM($F$75:$F$76)))*'Calculs grille'!$I$82)*$G$74))/$G$149),0)","v":0}]
["Taux H3 et/ou D200",null,null,null,null,null,{"$f":"IFERROR(($G$145*SUM($E$79:$F$80)),0)","v":0}]
["Taux TRA",null,null,null,null,null,{"$f":"IFERROR(SUM($E$81),0)","v":0}]
["Taux exécution et vérification total",null,null,null,null,null,{"$f":"IFERROR((ROUND(SUM($G$144:$G$147),2)),0)","v":0}]
["Nombre de milliers de plants",null,null,null,null,null,{"$f":"IFERROR(ROUND($G$49,3),0)","v":0}]
["Total exécution",null,null,null,null,null,{"$f":"IFERROR(($G$144*$G$149),0)","v":0}]
["Total vérification",null,null,null,null,null,{"$f":"IFERROR((ROUND(SUM($G$145:$G$147),2)*$G$149),0)","v":0}]
["Grand total admissible",null,null,null,null,null,{"$f":"IFERROR(SUM($G$150:$G$151),0)","v":0}]
["Calculs - Ensemencement terrestre manuel"]
["Taux d'exécution de base",null,null,null,null,null,{"$f":"IFERROR($G$13,0)","v":0}]
["Taux PE2",null,null,null,null,null,{"$f":"IFERROR((SUMPRODUCT($D$56:$D$60,$G$56:$G$60)/$G$61),0)","v":0}]
["Taux sous-total exécution",null,null,null,null,null,{"$f":"IFERROR(SUM($G$154:$G$155),0)","v":0}]
["Taux H2 ou TC",null,null,null,null,null,{"$f":"IFERROR(($G$156*$E$64),0)","v":0}]
["Taux D200",null,null,null,null,null,{"$f":"IFERROR(($G$156*$E$65),0)","v":0}]
["Taux CEAF2 ou ISO2",null,null,null,null,null,{"$f":"IFERROR((SUM($G$156:$G$158)*$E$68),0)","v":0}]
["Taux exécution total et majoration(s) admissible(s)",null,null,null,null,null,{"$f":"IFERROR((ROUND(SUM($G$156:$G$159),2)),0)","v":0}]
["Taux vérification",null,null,null,null,null,{"$f":"IFERROR(((($G$71*$G$72)+(($G$73+((SUM($F$75:$F$76)))*'Calculs grille'!$I$82)*$G$74))/$G$164),0)","v":0}]
["Taux H3 et/ou D200",null,null,null,null,null,{"$f":"IFERROR(($G$161*SUM(($E$79:$F$80))),0)","v":0}]
["Taux exécution et vérification total",null,null,null,null,null,{"$f":"IFERROR((ROUND(SUM($G$160:$G$162),2)),0)","v":0}]
["Superficie",null,null,null,null,null,{"$f":"IFERROR(ROUND($G$61,2),0)","v":0}]
["Total exécution",null,null,null,null,null,{"$f":"IFERROR(($G$160*$G$164),0)","v":0}]
["Total vérification",null,null,null,null,null,{"$f":"IFERROR((ROUND(SUM($G$161:$G$162),2)*$G$164),0)","v":0}]
["Grand total admissible",null,null,null,null,null,{"$f":"IFERROR(SUM($G$165:$G$166),0)","v":0}]
[]
["Remarques"]
[]
["J'atteste que les renseignements fournis dans ce document afin de calculer le taux du traitement sont complets et conformes à la vérité, au meilleur de mes connaissances."]
[]
[]
[]
["Nom et prénom de l'ingénieur forestier",null,null,null,null,null,"No de permis"]
[null,null,null,null,null,null,{"$f":"TODAY()","v":"2018-01-17"}]
[]
["Signature de l'ingénieur forestier",null,null,null,null,null,"Date (AAAA-MM-JJ)"]
[]
[]
["Section réservée au suivi du contrat"]
[]
[null,"Numéro de la prescription :",{"$f":"IF($G$8<>\"\",$G$8,\"\")","v":""}]
[]
[null,"Numéro du contrat :"]
[null,"Numéro du projet :"]
[null,"U.G. :"]
[null,"MRC :"]
[null,"Code de traitement DICA :",{"$f":"IF($G$9<>\"\",$G$9,\"\")","v":""}]
[null,"Code de traitement RATF :",{"$f":"IF($G$10<>\"\",$G$10,\"\")","v":""}]
[null,"Type d'attribution : "]
[null,"Taux AOP : "]
[null,"Nom de l'entrepreneur : "]
[null,"Numéro de fournisseur : "]
[null,"Date de début :"]
[null,"Date de fin :"]
[null,"Commentaires :"]

{"sheet":"Éducation de peuplement","index":2,"n_rows":253,"n_cols":7,"rows_kept":253,"cut":false,"hidden":false,"merged":[[1,0,1,5],[31,0,31,4],[33,1,33,5],[2,0,2,5],[223,0,223,6],[151,0,151,5],[167,0,167,5],[183,0,183,5],[116,4,119,4],[120,4,122,4],[114,1,114,3],[97,2,97,3],[98,2,98,3],[99,2,99,3],[100,0,100,3],[147,0,147,5],[130,0,130,5],[131,0,131,5],[133,0,133,5],[134,0,134,5],[136,0,136,5],[140,0,140,5],[137,0,137,5],[138,0,138,5],[139,0,139,5],[135,0,135,5],[124,0,124,6],[128,0,128,6],[89,0,89,1],[90,0,90,1],[111,0,111,5],[114,0,115,0],[113,0,113,5],[112,0,112,5],[116,0,119,0],[101,0,101,6],[103,0,103,4],[106,0,106,6],[107,0,107,4],[126,0,126,4],[127,0,127,4],[100,4,100,5],[92,4,92,5],[92,0,92,3],[94,2,94,3],[95,2,95,3],[96,2,96,3],[114,4,115,4],[125,0,125,6],[45,1,45,5],[46,1,46,5],[47,1,47,5],[48,1,48,5],[49,0,49,5],[86,2,86,3],[87,2,87,3],[63,0,63,1],[76,0,76,2],[84,0,84,2],[70,0,70,1],[74,0,74,1],[75,0,75,1],[67,0,67,1],[120,0,122,0],[104,0,104,4],[94,4,94,5],[95,4,95,5],[96,4,96,5],[97,4,97,5],[98,4,98,5],[99,4,99,5],[102,0,102,6],[4,0,4,5],[5,0,5,5],[6,0,6,5],[7,0,7,5],[8,0,8,5],[9,0,9,5],[11,0,11,5],[16,1,16,5],[17,1,17,5],[15,0,15,6],[14,0,14,6],[19,0,19,5],[18,1,18,4],[21,2,21,5],[22,3,22,5],[23,3,23,4],[24,0,24,5],[108,0,108,6],[109,0,109,6],[95,0,95,1],[44,0,44,6],[30,0,30,6],[23,1,23,2],[20,0,20,6],[22,1,22,2],[61,0,61,6],[69,0,69,6],[88,2,88,3],[89,2,89,3],[90,2,90,3],[86,4,86,5],[87,4,87,5],[88,4,88,5],[89,4,89,5],[90,4,90,5],[26,2,26,5],[27,2,27,4],[28,2,28,4],[29,0,29,5],[37,0,37,5],[36,0,36,5],[35,1,35,4],[34,1,34,5],[91,2,91,3],[91,4,91,5],[54,0,54,1],[55,0,55,1],[56,0,56,1],[57,0,57,1],[58,0,58,1],[59,0,59,1],[62,0,62,1],[52,0,52,6],[60,0,60,2],[38,0,38,6],[53,0,53,6],[51,0,51,6],[41,1,41,5],[43,0,43,5],[192,0,192,5],[194,0,194,5],[195,0,195,5],[193,0,193,6],[196,0,196,5],[169,0,169,5],[187,0,187,5],[175,0,175,5],[217,0,217,5],[178,0,178,5],[185,0,185,5],[186,0,186,5],[171,0,171,5],[177,0,177,6],[176,0,176,5],[199,0,199,5],[214,0,214,5],[227,0,229,5],[227,6,229,6],[230,0,230,5],[231,0,232,5],[212,0,212,5],[208,0,208,6],[197,0,197,5],[198,0,198,5],[200,0,200,5],[204,0,204,5],[201,0,201,5],[202,0,202,5],[203,0,203,5],[205,0,205,5],[209,0,209,5],[210,0,210,5],[211,0,211,5],[213,0,213,5],[215,0,215,5],[219,0,219,5],[218,0,218,5],[224,0,224,6],[226,0,226,6],[225,0,225,6],[236,0,236,4],[231,6,232,6],[233,0,233,5],[238,2,239,4],[174,0,174,5],[160,0,160,5],[145,0,145,6],[144,0,144,5],[141,0,141,5],[142,0,142,5],[143,0,143,5],[157,0,157,5],[182,0,182,5],[154,0,154,5],[163,0,163,5],[165,0,165,5],[166,0,166,5],[173,0,173,5],[153,0,153,5],[188,0,188,5],[189,0,189,5],[181,0,181,5],[222,0,222,5],[207,0,207,5],[105,0,105,6],[123,0,123,5],[148,0,148,5],[220,0,220,5],[221,0,221,5],[162,0,162,5],[190,0,190,5],[129,0,129,6],[191,0,191,5],[149,0,149,5],[150,0,150,5],[170,0,170,5],[146,0,146,5],[206,0,206,5],[216,0,216,5],[172,0,172,5],[132,0,132,5],[155,0,155,5],[158,0,158,5],[184,0,184,5],[179,0,179,5],[180,0,180,5],[156,0,156,5],[159,0,159,5],[164,0,164,5],[161,0,161,6],[0,0,0,6],[3,0,3,6],[50,0,50,6],[10,0,10,6],[12,0,12,6],[13,0,13,6],[152,0,152,5],[115,1,115,3],[116,1,116,3],[117,1,117,3],[118,1,118,3],[119,1,119,3],[120,1,120,3],[121,1,121,3],[122,1,122,3],[25,0,25,6],[110,0,110,5],[96,0,96,1],[97,0,97,1],[98,0,98,1],[99,0,99,1],[68,0,68,2],[168,0,168,5],[42,1,42,4],[40,1,40,4],[39,1,39,5],[94,0,94,1],[72,0,72,1],[73,0,73,1],[85,0,85,6],[93,0,93,6],[86,0,86,1],[87,0,87,1],[88,0,88,1],[79,0,79,1],[78,0,78,1],[80,0,80,1],[81,0,81,1],[83,0,83,1],[77,0,77,6],[82,0,82,1],[64,0,64,1],[71,0,71,1],[91,0,91,1],[65,0,65,1],[66,0,66,1]]}
[]
["Annexe au calcul des taux des traitements non commerciaux                                                                                                                                                                                                                                            2018-2019                                                                                                                                                                                                                                                                              Éducation de peuplement                                                                                                                   Forêt publique"]
[" *** Veuillez saisir les informations dans les cellules blanches seulement ***",null,null,null,null,null,"Version 1 : 2018-01-17"]
["Identification"]
["Unité d'aménagement (UA)"]
["Secteur d'intervention"]
["Unité de compilation"]
["Numéro de la prescription"]
["Traitement (code DICA)"]
["Traitement (code RATF)"]
["Traitement d'éducation de peuplement à taux variable"]
["Traitement",null,null,null,null,null,"Inscrire une valeur"]
["Taux d'exécution à déterminer selon la formule suivante"]
[{"$f":"IF($G$12=Formules!$B$2,Formules!$D$2,IF($G$12=Formules!$B$3,Formules!$D$3,IF($G$12=Formules!$B$4,Formules!$D$4,IF($G$12=Formules!$B$5,Formules!$D$5,IF($G$12=Formules!$B$6,Formules!$D$6,IF($G$12=Formules!$B$7,Formules!$D$7,\"\"))))))","v":""}]
[{"$f":"\"Valeurs spécifiques à remplir selon le traitement - \"&$G$12","v":"Valeurs spécifiques à remplir selon le traitement - Inscrire une valeur"}]
["Valeurs spécifiques à remplir selon le traitement - Dégagement mécanique"]
["RECFFE","Pourcentage de superficie couverte par le framboisier, la fougère et l'épilobe"]
["DI","Densité initiale à l'hectare soit le dénombrement de toutes les tiges de 1 m et plus de hauteur  "]
["MODE","Mode d'établissement de la régénération",null,null,null,{"$f":"IF($G$19=Menus!$B$275,Menus!$C$275,IF($G$19=Menus!$B$276,Menus!$C$276,\"\"))","v":""}]
["Taux calculé à partir de l'équation et des variables reliées au traitement",null,null,null,null,null,{"$f":"IFERROR((('Calculs grille'!$I$36+('Calculs grille'!$I$37*'Éducation de peuplement'!$G$17*100)+('Calculs grille'!$I$38*'Éducation de peuplement'!$G$18)+('Calculs grille'!$I$39*'Éducation de peuplement'!$F$19))),0)","v":0}]
["Valeurs spécifiques à remplir selon le traitement - Gaulis I (interspécifique et sans espacement)"]
["DI","Densité totale (tiges/hectare)","Dénombrement de toutes les tiges dont le diamètre à hauteur de souche (15cm) est supérieur à 1,5cm. Inventaire un an avant exécution: Résineux > 1,0m et Feuillus > 1,6m de hauteur. Inventaire même année qu'exécution: Résineux > 1,2 m et Feuillus > 1,8 m de hauteur. NB: Le dénombrement des tiges peut être effectué à partir de la hauteur de la tige ou du diamètre à hauteur de souche après entente avec les autorités."]
["SRLC","Stocking résineux libre de croître (%)",null,"Nombre de placettes contenant un résineux libre de croître sur le nombre total de placettes"]
["CP","Composition de peuplement",null,"Facteur d'ajustement",null,{"$f":"IF($G$24=Menus!$B$279,Menus!$C$279,IF($G$24=Menus!$B$280,Menus!$C$280,IF($G$24=Menus!$B$281,Menus!$C$281,IF($G$24=Menus!$B$282,Menus!$C$282,\"\"))))","v":""}]
["Taux calculé à partir de l'équation et des variables reliées au traitement",null,null,null,null,null,{"$f":"IFERROR((('Calculs grille'!$I$41+('Calculs grille'!$I$42*'Éducation de peuplement'!$G$22)-(ABS('Calculs grille'!$I$43)*'Éducation de peuplement'!$G$23))*'Éducation de peuplement'!$F$24),0)","v":0}]
["Valeurs spécifiques à remplir selon le traitement - Gaulis II (intraspécifique avec espacement OU résineux sans espacement)"]
["DI","Densité totale (tiges/hectare)","Dénombrement de toutes les tiges dont le diamètre à hauteur de souche (15cm) est supérieur à 1,5cm. Inventaire un an avant exécution: Résineux > 1,0m et Feuillus > 1,6m de hauteur. Inventaire même année qu'exécution: Résineux > 1,2m et Feuillus > 1,8m de hauteur. NB: Le dénombrement des tiges peut être effectué à partir de la hauteur de la tige ou du diamètre à hauteur de souche après entente avec les autorités."]
["TP","Type de composition visée","Facteur d'ajustement",null,null,{"$f":"IF($G$28=Menus!$B$285,Menus!$C$285,IF($G$28=Menus!$B$286,Menus!$C$286,IF($G$28=Menus!$B$287,Menus!$C$287,\"\")))","v":""}]
["CP1","Composition de peuplement","Facteur d'ajustement",null,null,{"$f":"IF($G$29=Menus!$B$288,Menus!$C$288,IF($G$29=Menus!$B$289,Menus!$C$289,IF($G$29=Menus!$B$290,Menus!$C$290,IF($G$29=Menus!$B$291,Menus!$C$291,\"\"))))","v":""}]
["Taux calculé à partir de l'équation et des variables reliées au traitement",null,null,null,null,null,{"$f":"IFERROR((('Calculs grille'!$I$45*LN($G$27)-'Calculs grille'!$I$46)*$F$28*$F$29),0)","v":0}]
["Valeurs spécifiques à remplir selon le traitement - EPC par puit de lumière ET Taille de formation avec martelage"]
["Éclaircie précommerciale",null,null,null,null,{"$f":"IF($G$32=Menus!$B$302,Menus!$C$302,IF($G$32=Menus!$B$303,Menus!$C$303,\"\"))","v":""}]
["Martelage",null,null,null,null,{"$f":"IF($G$33=Menus!$B$298,Menus!$C$298,IF($G$33=Menus!$B$299,Menus!$C$299,\"\"))","v":""}]
["DENSTIGE","Densité d'arbres à éclaircir et/ou marteler et/ou tailler (tiges/ha)"]
["HTTIGE","Hauteur totale des arbres à éclaircir et/ou marteler et/ou tailler (m)"]
["TAIL","Taille de formation",null,null,null,{"$f":"IF($G$36=Menus!$B$294,Menus!$C$294,IF($G$36=Menus!$B$295,Menus!$C$295,\"\"))","v":""}]
[{"$f":"IF($G$32=\"\",\"Taux calculé pour le traitement à partir de l'équation et des variables\",\"Taux calculé pour le traitement à partir de l'équation et des variables - \"&$G$32)","v":"Taux calculé pour le traitement à partir de l'équation et des variables"},null,null,null,null,null,{"$f":"IFERROR((('Calculs grille'!$I$48*$G$34*EXP('Calculs grille'!$I$49*$G$35)+'Calculs grille'!$I$56)*$F$32),0)","v":0}]
[{"$f":"\"Taux calculé pour \"&IF(AND($F$36=0,$F$33=1)=TRUE,\"le martelage sans taille de formation\",IF(AND($F$36=1,$F$33=0)=TRUE,\"la taille de formation sans martelage\",IF(AND($F$36=1,$F$33=1)=TRUE,\"le martelage et la taille de formation\",\"la taille de formation et le martelage\")))","v":"Taux calculé pour la taille de formation et le martelage"},null,null,null,null,null,{"$f":"IFERROR(IF((AND($F$33=1,$F$36=1))=TRUE,(('Calculs grille'!$I$50*$G$34/(('Calculs grille'!$I$51*$G$34)+'Calculs grille'!$I$52)+'Calculs grille'!$I$53*$F$36)+'Calculs grille'!$I$58+'Calculs grille'!$I$59),IF((AND($F$33=1,$F$36=0))=TRUE,(('Calculs grille'!$I$50*$G$34/(('Calculs grille'!$I$51*$G$34)+'Calculs grille'!$I$52)+'Calculs grille'!$I$53*$F$36)+'Calculs grille'!$I$55),IF((AND($F$32=0,$F$33=0,$F$36=1))=TRUE,\"Cette combinaison n'est pas possible\",IF((AND($F$33=0,$F$36=1))=TRUE,(('Calculs grille'!$I$50*$G$34/(('Calculs grille'!$I$51*$G$34)+'Calculs grille'!$I$52)+'Calculs grille'!$I$53*$F$36)+'Calculs grille'!$I$59),0)))),0)","v":0}]
["Valeurs spécifiques à remplir selon le traitement - Élagage pour fins de qualité du pin blanc et rouge"]
["BRAN","Nombre de branches à couper par tige"]
["LONGELA","Longueur d'élagage ",null,null,null,{"$f":"IF($G$41=Menus!$B$306,Menus!$C$306,IF($G$41=Menus!$B$307,Menus!$C$307,\"\"))","v":""}]
["DENSELA","Densité d'arbres à élaguer par hectare"]
["MP","Martelage positif selon le nombre de tiges/ha",null,null,null,{"$f":"IFERROR(VLOOKUP($G$43,Menus!$A$310:$B$312,2,FALSE),\"\")","v":""}]
["Taux calculé à partir de l'équation et des variables reliées au traitement",null,null,null,null,null,{"$f":"IFERROR(((('Calculs grille'!$I$61*$G$40+'Calculs grille'!$I$62+'Calculs grille'!$I$63*$F$41)+(-'Calculs grille'!$I$64*LN($G$42)+'Calculs grille'!$I$65))*$G$42+$F$43+'Calculs grille'!$I$68),0)","v":0}]
["Valeurs spécifiques à remplir selon le traitement - Taille phytosanitaire"]
["BRAN","Nombre de branches à couper par tige"]
["DENSELA","Densité de tiges à élaguer à l'hectare"]
["DENSCO","Densité de tiges à couper à l'hectare"]
["DENSTF","Densité de tiges à tailler à l'hectare"]
["Taux calculé à partir de l'équation et des variables reliées au traitement",null,null,null,null,null,{"$f":"IFERROR(((('Calculs grille'!$I$70*'Éducation de peuplement'!$G$46+'Calculs grille'!$I$71+(-'Calculs grille'!$I$72*LN('Éducation de peuplement'!$G$47)+'Calculs grille'!$I$73))*'Éducation de peuplement'!$G$47)+'Calculs grille'!$I$74*'Éducation de peuplement'!$G$48+'Calculs grille'!$I$75*'Éducation de peuplement'!$G$49+'Calculs grille'!$I$76),0)","v":0}]
[{"$f":"\"Majorations applicables à l'exécution - \"&$G$12","v":"Majorations applicables à l'exécution - Inscrire une valeur"}]
[{"$f":"IF($G$12='Majorations applicables'!$C$17,'Majorations applicables'!$K$17,IF($G$12='Majorations applicables'!$C$18,'Majorations applicables'!$K$18,IF($G$12='Majorations applicables'!$C$19,'Majorations applicables'!$K$19,IF($G$12='Majorations applicables'!$C$20,'Majorations applicables'!$K$20,IF($G$12='Majorations applicables'!$C$21,'Majorations applicables'!$K$21,IF($G$12='Majorations applicables'!$C$22,'Majorations applicables'!$K$22,\"\"))))))","v":""}]
["Majoration pour la pente (PE2)"]
["Majoration pour la pente (PE2) - Dégagement mécanique"]
["Classe de pente numérique",null,"Taux calculé","Écart","Superficie nette (ha) excluant les andains","Superficie brute (hectare)","% andains"]
["Pente A",null,{"$f":"IFERROR($G$20,0)","v":0},{"$f":"IFERROR($C$56-$G$20,0)","v":0},{"$f":"IFERROR($F$56*(1-$G$56),0)","v":0}]
["Pente B",null,{"$f":"IFERROR($G$20,0)","v":0},{"$f":"IFERROR($C$57-$G$20,0)","v":0},{"$f":"IFERROR($F$57*(1-$G$57),0)","v":0}]
["Pente C",null,{"$f":"IFERROR($G$20*(1+'Majorations applicables'!$A$46),0)","v":0},{"$f":"IFERROR($C$58-$G$20,0)","v":0},{"$f":"IFERROR($F$58*(1-$G$58),0)","v":0}]
["Pente D",null,{"$f":"IFERROR($G$20*(1+'Majorations applicables'!$A$47),0)","v":0},{"$f":"IFERROR($C$59-$G$20,0)","v":0},{"$f":"IFERROR($F$59*(1-$G$59),0)","v":0}]
["Pente E",null,{"$f":"IFERROR($G$20*(1+'Majorations applicables'!$A$48),0)","v":0},{"$f":"IFERROR($C$60-$G$20,0)","v":0},{"$f":"IFERROR($F$60*(1-$G$60),0)","v":0}]
[null,null,null,"Total",{"$f":"IFERROR(SUM($E$56:$E$60),0)","v":0},{"$f":"IFERROR(SUM($F$56:$F$60),0)","v":0},{"$f":"IFERROR((SUMPRODUCT($G$56:$G$60,$F$56:$F$60)/$F$61),0)","v":0}]
["Majoration pour la pente (PE2) - Gaulis I (interspécifique et sans espacement)"]
["Classe de pente numérique",null,"Taux calculé","Écart","Superficie nette (ha) excluant les andains","Superficie brute (hectare)","% andains"]
["Pente A",null,{"$f":"IFERROR($G$25,0)","v":0},{"$f":"IFERROR($C$64-$G$25,0)","v":0},{"$f":"IFERROR($F$64*(1-$G$64),0)","v":0}]
["Pente B",null,{"$f":"IFERROR($G$25,0)","v":0},{"$f":"IFERROR($C$65-$G$25,0)","v":0},{"$f":"IFERROR($F$65*(1-$G$65),0)","v":0}]
["Pente C",null,{"$f":"IFERROR($G$25*(1+'Majorations applicables'!$A$46),0)","v":0},{"$f":"IFERROR($C$66-$G$25,0)","v":0},{"$f":"IFERROR($F$66*(1-$G$66),0)","v":0}]
["Pente D",null,{"$f":"IFERROR($G$25*(1+'Majorations applicables'!$A$47),0)","v":0},{"$f":"IFERROR($C$67-$G$25,0)","v":0},{"$f":"IFERROR($F$67*(1-$G$67),0)","v":0}]
["Pente E",null,{"$f":"IFERROR($G$25*(1+'Majorations applicables'!$A$48),0)","v":0},{"$f":"IFERROR($C$68-$G$25,0)","v":0},{"$f":"IFERROR($F$68*(1-$G$68),0)","v":0}]
[null,null,null,"Total",{"$f":"IFERROR(SUM($E$64:$E$68),0)","v":0},{"$f":"IFERROR(SUM($F$64:$F$68),0)","v":0},{"$f":"IFERROR((SUMPRODUCT($G$64:$G$68,$F$64:$F$68)/$F$69),0)","v":0}]
["Majoration pour la pente (PE2) - Gaulis II (intraspécifique avec espacement OU résineux sans espacement)"]
["Classe de pente numérique",null,"Taux calculé","Écart","Superficie nette (ha) excluant les andains","Superficie brute (hectare)","% andains"]
["Pente A",null,{"$f":"IFERROR($G$30,0)","v":0},{"$f":"IFERROR($C$72-$G$30,0)","v":0},{"$f":"IFERROR($F$72*(1-$G$72),0)","v":0}]
["Pente B",null,{"$f":"IFERROR($G$30,0)","v":0},{"$f":"IFERROR($C$73-$G$30,0)","v":0},{"$f":"IFERROR($F$73*(1-$G$73),0)","v":0}]
["Pente C",null,{"$f":"IFERROR($G$30*(1+'Majorations applicables'!$A$46),0)","v":0},{"$f":"IFERROR($C$74-$G$30,0)","v":0},{"$f":"IFERROR($F$74*(1-$G$74),0)","v":0}]
["Pente D",null,{"$f":"IFERROR($G$30*(1+'Majorations applicables'!$A$47),0)","v":0},{"$f":"IFERROR($C$75-$G$30,0)","v":0},{"$f":"IFERROR($F$75*(1-$G$75),0)","v":0}]
["Pente E",null,{"$f":"IFERROR($G$30*(1+'Majorations applicables'!$A$48),0)","v":0},{"$f":"IFERROR($C$76-$G$30,0)","v":0},{"$f":"IFERROR($F$76*(1-$G$76),0)","v":0}]
[null,null,null,"Total",{"$f":"IFERROR(SUM($E$72:$E$76),0)","v":0},{"$f":"IFERROR(SUM($F$72:$F$76),0)","v":0},{"$f":"IFERROR((SUMPRODUCT($G$72:$G$76,$F$72:$F$76)/$F$77),0)","v":0}]
["Majoration pour la pente (PE2) - EPC par puit de lumière ET Taille de formation avec martelage"]
["Classe de pente numérique",null,"Taux calculé","Écart","Superficie nette (ha) excluant les andains","Superficie brute (hectare)","% andains"]
["Pente A",null,{"$f":"IFERROR(($G$37+$G$38),0)","v":0},{"$f":"IFERROR($C$80-($G$37+$G$38),0)","v":0},{"$f":"IFERROR($F$80*(1-$G$80),0)","v":0}]
["Pente B",null,{"$f":"IFERROR(($G$37+$G$38),0)","v":0},{"$f":"IFERROR($C$81-($G$37+$G$38),0)","v":0},{"$f":"IFERROR($F$81*(1-$G$81),0)","v":0}]
["Pente C",null,{"$f":"IFERROR(($G$37+$G$38)*(1+'Majorations applicables'!$A$46),0)","v":0},{"$f":"IFERROR($C$82-($G$37+$G$38),0)","v":0},{"$f":"IFERROR($F$82*(1-$G$82),0)","v":0}]
["Pente D",null,{"$f":"IFERROR(($G$37+$G$38)*(1+'Majorations applicables'!$A$47),0)","v":0},{"$f":"IFERROR($C$83-($G$37+$G$38),0)","v":0},{"$f":"IFERROR($F$83*(1-$G$83),0)","v":0}]
["Pente E",null,{"$f":"IFERROR(($G$37+$G$38)*(1+'Majorations applicables'!$A$48),0)","v":0},{"$f":"IFERROR($C$84-($G$37+$G$38),0)","v":0},{"$f":"IFERROR($F$84*(1-$G$84),0)","v":0}]
[null,null,null,"Total",{"$f":"IFERROR(SUM($E$80:$E$84),0)","v":0},{"$f":"IFERROR(SUM($F$80:$F$84),0)","v":0},{"$f":"IFERROR((SUMPRODUCT($G$80:$G$84,$F$80:$F$84)/$F$85),0)","v":0}]
["Majoration pour la pente (PE2) - Élagage pour fins de qualité du pin blanc et rouge"]
["Classe de pente numérique",null,"Taux calculé",null,"Écart",null,"Superficie (hectare)"]
["Pente A",null,{"$f":"IFERROR($G$44,0)","v":0},null,{"$f":"IFERROR($C$88-$G$44,0)","v":0}]
["Pente B",null,{"$f":"IFERROR($G$44,0)","v":0},null,{"$f":"IFERROR($C$89-$G$44,0)","v":0}]
["Pente C",null,{"$f":"IFERROR($G$44*(1+'Majorations applicables'!$A$46),0)","v":0},null,{"$f":"IFERROR($C$90-$G$44,0)","v":0}]
["Pente D",null,{"$f":"IFERROR($G$44*(1+'Majorations applicables'!$A$47),0)","v":0},null,{"$f":"IFERROR($C$91-$G$44,0)","v":0}]
["Pente E",null,{"$f":"IFERROR($G$44*(1+'Majorations applicables'!$A$48),0)","v":0},null,{"$f":"IFERROR($C$92-$G$44,0)","v":0}]
[null,null,null,null,"Total",null,{"$f":"IFERROR(SUM($F$88:$G$92),0)","v":0}]
["Majoration pour la pente (PE2) - Taille phytosanitaire"]
["Classe de pente numérique",null,"Taux calculé",null,"Écart",null,"Superficie (hectare)"]
["Pente A",null,{"$f":"IFERROR($G$50,0)","v":0},null,{"$f":"IFERROR($C$96-$G$50,0)","v":0}]
["Pente B",null,{"$f":"IFERROR($G$50,0)","v":0},null,{"$f":"IFERROR($C$97-$G$50,0)","v":0}]
["Pente C",null,{"$f":"IFERROR($G$50*(1+'Majorations applicables'!$A$46),0)","v":0},null,{"$f":"IFERROR($C$98-$G$50,0)","v":0}]
["Pente D",null,{"$f":"IFERROR($G$50*(1+'Majorations applicables'!$A$47),0)","v":0},null,{"$f":"IFERROR($C$99-$G$50,0)","v":0}]
["Pente E",null,{"$f":"IFERROR($G$50*(1+'Majorations applicables'!$A$48),0)","v":0},null,{"$f":"IFERROR($C$100-$G$50,0)","v":0}]
[null,null,null,null,"Total",null,{"$f":"IFERROR(SUM($F$96:$G$100),0)","v":0}]
["Majoration pour l'hébergement, le transport collectif et la distance du secteur d'intervention (H2, TC et D200)"]
["Majoration pour l'hébergement, le transport collectif et la distance du secteur d'intervention (H2, TC et D200) - Tous "]
["Hébergement (H2 ou TC)",null,null,null,null,{"$f":"IF($G$104=\"\",\"\",IF($G$104=Menus!$A$327,Menus!$B$327,IF($G$104=Menus!$A$328,Menus!$B$328,IF($G$104=Menus!$A$329,Menus!$B$329,IF($G$104=Menus!$A$330,Menus!$B$330,IF($G$104<=Menus!$B$328,$G$104,\"Max \"&TEXT(Menus!$B$328,\"0,0%\")))))))","v":""}]
["Distance du secteur d'intervention (D200)",null,null,null,null,{"$f":"IFERROR(VLOOKUP($G$105,Menus!$A$338:$B$339,2,FALSE),\"\")","v":""}]
["Majoration pour la certification (CEAF3 ou ISO3)"]
["Majoration pour la certification (CEAF3 ou ISO3) - Tous"]
["Certification (CEAF3 ou ISO3)",null,null,null,null,{"$f":"IFERROR(VLOOKUP($G$108,Menus!$A$342:$B$344,2,FALSE),\"\")","v":""}]
["Vérification"]
["Vérification - Tous"]
["Délimitation des secteurs (taux par kilomètre délimité)"]
["Nombre de kilomètres délimités"]
["Inventaire après traitement (taux par placette inventoriée)"]
["Nombre de placettes inventoriées"]
["Critère 3","Arbre étude",null,null,{"$f":"IFERROR(SUM($F$115:$F$116)*'Calculs grille'!$I$85,0)","v":0},{"$f":"IF($G$115=\"Oui\",1,IF($G$115=\"Non\",0,\"\"))","v":""}]
[null,"AAC 5 ans",null,null,null,{"$f":"IF($G$116=\"Oui\",1,IF($G$116=\"Non\",0,\"\"))","v":""}]
["Critère 4","Coefficient de distribution des tiges résineuses de 1m ou 1,2m ou 1,5m de hauteur selon le traitement",null,null,{"$f":"IFERROR(SUM($F$117:$F$120)*'Calculs grille'!$I$86,0)","v":0},{"$f":"IF($G$117=\"Oui\",1,IF($G$117=\"Non\",0,\"\"))","v":""}]
[null,"Coefficient de distribution des souches peu importe la hauteur, avec ou sans fautes",null,null,null,{"$f":"IF($G$118=\"Oui\",1,IF($G$118=\"Non\",0,\"\"))","v":""}]
[null,"Coefficient de distribution des feuillus commerciaux et non commerciaux résiduels",null,null,null,{"$f":"IF($G$119=\"Oui\",1,IF($G$119=\"Non\",0,\"\"))","v":""}]
[null,"Coefficient de distribution des essences en raréfaction (THO, PIB, PIR)",null,null,null,{"$f":"IF($G$120=\"Oui\",1,IF($G$120=\"Non\",0,\"\"))","v":""}]
["Critère 5","Hauteur de toutes les tiges",null,null,{"$f":"IFERROR(SUM($F$121:$F$123)*'Calculs grille'!$I$84,0)","v":0},{"$f":"IF($G$121=\"Oui\",1,IF($G$121=\"Non\",0,\"\"))","v":""}]
[null,"Dénombrement des résineux de 1m ou 1,2m ou 1,5m de hauteur selon le traitement",null,null,null,{"$f":"IF($G$122=\"Oui\",1,IF($G$122=\"Non\",0,\"\"))","v":""}]
[null,"Dénombrement des tiges d'avenir éclaircies (dégagées ou nettoyées) par essence",null,null,null,{"$f":"IF($G$123=\"Oui\",1,IF($G$123=\"Non\",0,\"\"))","v":""}]
["Nombre total de critères",null,null,null,null,null,{"$f":"SUM($F$115:$F$123)","v":0}]
["Vérification - Majoration pour l'hébergement et la distance du secteur d'intervention (H3 et D200)"]
["Vérification - Majoration pour l'hébergement et la distance du secteur d'intervention (H3 et D200) - Tous"]
["Hébergement (H3)",null,null,null,null,{"$f":"IF($G$127=\"\",\"\",IF($G$127=Menus!$A$333,Menus!$B$333,IF($G$127=Menus!$A$334,Menus!$B$334,IF($G$127=Menus!$A$335,Menus!$B$335,IF($G$127<=Menus!$B$334,$G$127,\"Max \"&TEXT(Menus!$B$334,\"0,0%\"))))))","v":""}]
["Distance du secteur d'intervention (D200)",null,null,null,null,{"$f":"IFERROR(VLOOKUP($G$128,Menus!$A$338:$B$339,2,FALSE),\"\")","v":""}]
["Total"]
["Calculs - Dégagement mécanique"]
["Taux d'exécution de base",null,null,null,null,null,{"$f":"IFERROR($G$20,0)","v":0}]
["Taux PE2",null,null,null,null,null,{"$f":"IFERROR((SUMPRODUCT($D$56:$D$60,$E$56:$E$60)/$E$61),0)","v":0}]
["Taux sous-total exécution",null,null,null,null,null,{"$f":"IFERROR(SUM($G$131:$G$132),0)","v":0}]
["Taux H2 ou TC",null,null,null,null,null,{"$f":"IFERROR(($G$133*$F$104),0)","v":0}]
["Taux D200",null,null,null,null,null,{"$f":"IFERROR(($G$133*$F$105),0)","v":0}]
["Taux CEAF3 ou ISO3",null,null,null,null,null,{"$f":"IFERROR((SUM($G$133:$G$135)*$F$108),0)","v":0}]
["Taux exécution total et majoration(s) admissible(s)",null,null,null,null,null,{"$f":"IFERROR((ROUND(SUM($G$133:$G$136),2)),0)","v":0}]
["Taux vérification",null,null,null,null,null,{"$f":"IFERROR(((($G$111*$G$112)+((($G$113+((SUM($F$115:$F$116)*'Calculs grille'!$I$85))+(SUM($F$117:$F$120)*'Calculs grille'!$I$86)+((SUM($F$121:$F$123)*'Calculs grille'!$I$84))))*$G$114))/$G$141),0)","v":0}]
["Taux H3 et/ou D200",null,null,null,null,null,{"$f":"IFERROR(($G$138*SUM($F$127:$F$128)),0)","v":0}]
["Taux exécution et vérification total",null,null,null,null,null,{"$f":"IFERROR((ROUND(SUM($G$137:$G$139),2)),0)","v":0}]
["Superficie brute",null,null,null,null,null,{"$f":"IFERROR(ROUND($F$61,2),0)","v":0}]
["Superficie nette (excluant les andains)",null,null,null,null,null,{"$f":"IFERROR(ROUND($E$61,2),0)","v":0}]
["Total exécution",null,null,null,null,null,{"$f":"IFERROR(($G$137*$G$142),0)","v":0}]
["Total vérification",null,null,null,null,null,{"$f":"IFERROR((ROUND(SUM($G$138:$G$139),2)*$G$141),0)","v":0}]
["Grand total admissible",null,null,null,null,null,{"$f":"IFERROR(SUM($G$143:$G$144),0)","v":0}]
["Calculs - Gaulis I (interspécifique et sans espacement)"]
["Taux d'exécution de base",null,null,null,null,null,{"$f":"IFERROR($G$25,0)","v":0}]
["Taux PE2",null,null,null,null,null,{"$f":"IFERROR((SUMPRODUCT($D$64:$D$68,$E$64:$E$68)/$E$69),0)","v":0}]
["Taux sous-total exécution",null,null,null,null,null,{"$f":"IFERROR(SUM($G$147:$G$148),0)","v":0}]
["Taux H2 ou TC",null,null,null,null,null,{"$f":"IFERROR(($G$149*$F$104),0)","v":0}]
["Taux D200",null,null,null,null,null,{"$f":"IFERROR(($G$149*$F$105),0)","v":0}]
["Taux CEAF3 ou ISO3",null,null,null,null,null,{"$f":"IFERROR((SUM($G$149:$G$151)*$F$108),0)","v":0}]
["Taux exécution total et majoration(s) admissible(s)",null,null,null,null,null,{"$f":"IFERROR((ROUND(SUM($G$149:$G$152),2)),0)","v":0}]
["Taux vérification",null,null,null,null,null,{"$f":"IFERROR(((($G$111*$G$112)+((($G$113+((SUM($F$115:$F$116)*'Calculs grille'!$I$85))+(SUM($F$117:$F$120)*'Calculs grille'!$I$86)+((SUM($F$121:$F$123)*'Calculs grille'!$I$84))))*$G$114))/$G$157),0)","v":0}]
["Taux H3 et/ou D200",null,null,null,null,null,{"$f":"IFERROR(($G$154*SUM($F$127:$F$128)),0)","v":0}]
["Taux exécution et vérification total",null,null,null,null,null,{"$f":"IFERROR(ROUND(SUM($G$153:$G$155),2),0)","v":0}]
["Superficie brute",null,null,null,null,null,{"$f":"IFERROR(ROUND($F$69,2),0)","v":0}]
["Superficie nette (excluant les andains)",null,null,null,null,null,{"$f":"IFERROR(ROUND($E$69,2),0)","v":0}]
["Total exécution",null,null,null,null,null,{"$f":"IFERROR(($G$153*$G$158),0)","v":0}]
["Total vérification",null,null,null,null,null,{"$f":"IFERROR((ROUND(SUM($G$154:$G$155),2)*$G$157),0)","v":0}]
["Grand total admissible",null,null,null,null,null,{"$f":"IFERROR(SUM($G$159:$G$160),0)","v":0}]
["Calculs - Gaulis II (intraspécifique avec espacement OU résineux sans espacement)"]
["Taux d'exécution de base",null,null,null,null,null,{"$f":"IFERROR($G$30,0)","v":0}]
["Taux PE2",null,null,null,null,null,{"$f":"IFERROR((SUMPRODUCT($D$72:$D$76,$E$72:$E$76)/$E$77),0)","v":0}]
["Taux sous-total exécution",null,null,null,null,null,{"$f":"IFERROR(SUM($G$163:$G$164),0)","v":0}]
["Taux H2 ou TC",null,null,null,null,null,{"$f":"IFERROR(($G$165*$F$104),0)","v":0}]
["Taux D200",null,null,null,null,null,{"$f":"IFERROR(($G$165*$F$105),0)","v":0}]
["Taux CEAF3 ou ISO3",null,null,null,null,null,{"$f":"IFERROR((SUM($G$165:$G$167)*$F$108),0)","v":0}]
["Taux exécution total et majoration(s) admissible(s)",null,null,null,null,null,{"$f":"IFERROR((ROUND(SUM($G$165:$G$168),2)),0)","v":0}]
["Taux vérification",null,null,null,null,null,{"$f":"IFERROR(((($G$111*$G$112)+((($G$113+((SUM($F$115:$F$116)*'Calculs grille'!$I$85))+(SUM($F$117:$F$120)*'Calculs grille'!$I$86)+((SUM($F$121:$F$123)*'Calculs grille'!$I$84))))*$G$114))/$G$173),0)","v":0}]
["Taux H3 et/ou D200",null,null,null,null,null,{"$f":"IFERROR(($G$170*SUM($F$127:$F$128)),0)","v":0}]
["Taux exécution et vérification total",null,null,null,null,null,{"$f":"IFERROR((ROUND(SUM($G$169:$G$171),2)),0)","v":0}]
["Superficie brute",null,null,null,null,null,{"$f":"IFERROR(ROUND($F$77,2),0)","v":0}]
["Superficie nette (excluant les andains)",null,null,null,null,null,{"$f":"IFERROR(ROUND($E$77,2),0)","v":0}]
["Total exécution",null,null,null,null,null,{"$f":"IFERROR(($G$169*$G$174),0)","v":0}]
["Total vérification",null,null,null,null,null,{"$f":"IFERROR((ROUND(SUM($G$170:$G$171),2)*$G$173),0)","v":0}]
["Grand total admissible",null,null,null,null,null,{"$f":"IFERROR(SUM($G$175:$G$176),0)","v":0}]
["Calculs - EPC par puit de lumière ET Taille de formation avec martelage"]
["Taux d'exécution de base",null,null,null,null,null,{"$f":"IFERROR(SUM($G$37:$G$38),0)","v":0}]
["Taux PE2",null,null,null,null,null,{"$f":"IFERROR((SUMPRODUCT($D$80:$D$84,$E$80:$E$84)/$E$85),0)","v":0}]
["Taux sous-total exécution",null,null,null,null,null,{"$f":"IFERROR(SUM($G$179:$G$180),0)","v":0}]
["Taux H2 ou TC",null,null,null,null,null,{"$f":"IFERROR(($G$181*$F$104),0)","v":0}]
["Taux D200",null,null,null,null,null,{"$f":"IFERROR(($G$181*$F$105),0)","v":0}]
["Taux CEAF3 ou ISO3",null,null,null,null,null,{"$f":"IFERROR((SUM($G$181:$G$183)*$F$108),0)","v":0}]
["Taux exécution total et majoration(s) admissible(s)",null,null,null,null,null,{"$f":"IFERROR((ROUND(SUM($G$181:$G$184),2)),0)","v":0}]
["Taux vérification",null,null,null,null,null,{"$f":"IFERROR(((($G$111*$G$112)+((($G$113+((SUM($F$115:$F$116)*'Calculs grille'!$I$85))+(SUM($F$117:$F$120)*'Calculs grille'!$I$86)+((SUM($F$121:$F$123)*'Calculs grille'!$I$84))))*$G$114))/$G$189),0)","v":0}]
["Taux H3 et/ou D200",null,null,null,null,null,{"$f":"IFERROR(($G$186*SUM($F$127:$F$128)),0)","v":0}]
["Taux exécution et vérification total",null,null,null,null,null,{"$f":"IFERROR((ROUND(SUM($G$185:$G$187),2)),0)","v":0}]
["Superficie brute",null,null,null,null,null,{"$f":"IFERROR(ROUND($F$85,2),0)","v":0}]
["Superficie nette (excluant les andains)",null,null,null,null,null,{"$f":"IFERROR(ROUND($E$85,2),0)","v":0}]
["Total exécution",null,null,null,null,null,{"$f":"IFERROR(($G$185*$G$190),0)","v":0}]
["Total vérification",null,null,null,null,null,{"$f":"IFERROR((ROUND(SUM($G$186:$G$187),2)*$G$189),0)","v":0}]
["Grand total admissible",null,null,null,null,null,{"$f":"IFERROR(SUM($G$191:$G$192),0)","v":0}]
["Calculs - Élagage pour fins de qualité du pin blanc et rouge"]
["Taux d'exécution de base",null,null,null,null,null,{"$f":"IFERROR($G$44,0)","v":0}]
["Taux PE2",null,null,null,null,null,{"$f":"IFERROR((SUMPRODUCT($E$88:$E$92,$G$88:$G$92)/$G$93),0)","v":0}]
["Taux sous-total exécution",null,null,null,null,null,{"$f":"IFERROR(SUM($G$195:$G$196),0)","v":0}]
["Taux H2 ou TC",null,null,null,null,null,{"$f":"IFERROR(($G$197*$F$104),0)","v":0}]
["Taux D200",null,null,null,null,null,{"$f":"IFERROR(($G$197*$F$105),0)","v":0}]
["Taux CEAF3 ou ISO3",null,null,null,null,null,{"$f":"IFERROR((SUM($G$197:$G$199)*F$108),0)","v":0}]
["Taux exécution total et majoration(s) admissible(s)",null,null,null,null,null,{"$f":"IFERROR((ROUND(SUM($G$197:$G$200),2)),0)","v":0}]
["Taux vérification",null,null,null,null,null,{"$f":"IFERROR(((($G$111*$G$112)+((($G$113+((SUM($F$115:$F$116)*'Calculs grille'!$I$85))+(SUM($F$117:$F$120)*'Calculs grille'!$I$86)+((SUM($F$121:$F$123)*'Calculs grille'!$I$84))))*$G$114))/$G$205),0)","v":0}]
["Taux H3 et/ou D200",null,null,null,null,null,{"$f":"IFERROR(($G$202*SUM($F$127:$F$128)),0)","v":0}]
["Taux exécution et vérification total",null,null,null,null,null,{"$f":"IFERROR((ROUND(SUM($G$201:$G$203),2)),0)","v":0}]
["Superficie",null,null,null,null,null,{"$f":"IFERROR(ROUND($G$93,2),0)","v":0}]
["Total exécution",null,null,null,null,null,{"$f":"IFERROR(($G$201*$G$205),0)","v":0}]
["Total vérification",null,null,null,null,null,{"$f":"IFERROR((ROUND(SUM($G$202:$G$203),2)*$G$205),0)","v":0}]
["Grand total admissible",null,null,null,null,null,{"$f":"IFERROR(SUM($G$206:$G$207),0)","v":0}]
["Calculs - Taille phytosanitaire"]
["Taux d'exécution de base",null,null,null,null,null,{"$f":"IFERROR($G$50,0)","v":0}]
["Taux PE2",null,null,null,null,null,{"$f":"IFERROR((SUMPRODUCT($E$96:$E$100,$G$96:$G$100)/$G$101),0)","v":0}]
["Taux sous-total exécution",null,null,null,null,null,{"$f":"IFERROR(SUM($G$210:$G$211),0)","v":0}]
["Taux H2 ou TC",null,null,null,null,null,{"$f":"IFERROR(($G$212*$F$104),0)","v":0}]
["Taux D200",null,null,null,null,null,{"$f":"IFERROR(($G$212*$F$105),0)","v":0}]
["Taux CEAF3 ou ISO3",null,null,null,null,null,{"$f":"IFERROR((SUM($G$212:$G$214)*$F$108),0)","v":0}]
["Taux exécution total et majoration(s) admissible(s)",null,null,null,null,null,{"$f":"IFERROR((ROUND(SUM($G$212:$G$215),2)),0)","v":0}]
["Taux vérification",null,null,null,null,null,{"$f":"IFERROR(((($G$111*$G$112)+((($G$113+((SUM($F$115:$F$116)*'Calculs grille'!$I$85))+(SUM($F$117:$F$120)*'Calculs grille'!$I$86)+((SUM($F$121:$F$123)*'Calculs grille'!$I$84))))*$G$114))/$G$220),0)","v":0}]
["Taux H3 et/ou D200",null,null,null,null,null,{"$f":"IFERROR(($G$217*SUM($F$127:$F$128)),0)","v":0}]
["Taux exécution et vérification total",null,null,null,null,null,{"$f":"IFERROR((ROUND(SUM($G$216:$G$218),2)),0)","v":0}]
["Superficie",null,null,null,null,null,{"$f":"IFERROR(ROUND($G$101,2),0)","v":0}]
["Total exécution",null,null,null,null,null,{"$f":"IFERROR(($G$216*$G$220),0)","v":0}]
["Total vérification",null,null,null,null,null,{"$f":"IFERROR((ROUND(SUM($G$217:$G$218),2)*$G$220),0)","v":0}]
["Grand total admissible",null,null,null,null,null,{"$f":"IFERROR(SUM($G$221:$G$222),0)","v":0}]
[]
["Remarques"]
[]
["J'atteste que les renseignements fournis dans ce document afin de calculer le taux du traitement sont complets et conformes à la vérité, au meilleur de mes connaissances."]
[]
[]
[]
["Nom et prénom de l'ingénieur forestier",null,null,null,null,null,"No de permis"]
[null,null,null,null,null,null,{"$f":"TODAY()","v":"2018-01-17"}]
[]
["Signature de l'ingénieur forestier",null,null,null,null,null,"Date (AAAA-MM-JJ)"]
[]
[]
["Section réservée au suivi du contrat"]
[]
[null,"Numéro de la prescription :",{"$f":"IF($G$8<>\"\",$G$8,\"\")","v":""}]
[]
[null,"Numéro du contrat :"]
[null,"Numéro du projet :"]
[null,"U.G. :"]
[null,"MRC :"]
[null,"Code de traitement DICA : ",{"$f":"IF($G$9<>\"\",$G$9,\"\")","v":""}]
[null,"Code de traitement RATF :",{"$f":"IF($G$10<>\"\",$G$10,\"\")","v":""}]
[null,"Type d'attribution :"]
[null,"Taux AOP :"]
[null,"Nom de l'entrepreneur :"]
[null,"Numéro de fournisseur :"]
[null,"Date de début :"]
[null,"Date de fin :"]
[null,"Commentaires :"]

{"sheet":"Éclaircie commerciale EAF","index":3,"n_rows":81,"n_cols":7,"rows_kept":81,"cut":false,"hidden":false,"merged":[[38,0,38,4],[32,4,32,5],[32,0,32,3],[33,0,33,6],[35,0,35,6],[37,0,37,6],[34,0,34,5],[36,0,36,4],[31,0,31,1],[31,2,31,3],[29,0,29,1],[30,0,30,1],[29,2,29,3],[30,2,30,3],[29,4,29,5],[30,4,30,5],[31,4,31,5],[12,0,12,5],[13,0,13,5],[18,0,18,5],[19,1,19,5],[20,0,20,5],[22,0,22,6],[23,0,23,6],[26,0,26,1],[27,0,27,1],[28,0,28,1],[26,4,26,5],[24,0,24,6],[25,0,25,6],[6,0,6,5],[7,0,7,5],[8,0,8,5],[9,0,9,5],[11,0,11,5],[10,0,10,6],[27,4,27,5],[28,4,28,5],[26,2,26,3],[27,2,27,3],[28,2,28,3],[21,0,21,5],[14,0,14,6],[15,0,15,6],[16,0,16,6],[17,0,17,6],[5,0,5,5],[0,0,0,6],[3,0,3,6],[4,0,4,5],[2,0,2,5],[1,0,1,5],[39,0,39,6],[40,0,40,6],[41,0,41,5],[44,0,44,5],[45,0,45,5],[42,0,42,5],[43,0,43,5],[49,0,49,5],[50,0,50,5],[46,0,46,5],[48,0,48,5],[47,0,47,5],[66,2,67,4],[51,0,51,6],[54,0,54,6],[64,0,64,4],[55,0,57,5],[55,6,57,6],[58,0,58,5],[59,0,60,5],[59,6,60,6],[61,0,61,5],[53,0,53,6],[52,0,52,6]]}
[]
["Annexe au calcul des taux des traitements non commerciaux                                                                                                                                                                                                                                             2018-2019                                                                                                                                                                                                                                                                              Éclaircie commerciale EAF                                                                                          (réservé aux entreprises d'aménagement forestier)                                                                                                           Forêt publique"]
[" *** Veuillez saisir les informations dans les cellules blanches seulement ***",null,null,null,null,null,"Version 1 : 2018-01-17"]
["Identification"]
["Unité d'aménagement (UA)"]
["Secteur d'intervention"]
["Unité de compilation"]
["Numéro de la prescription"]
["Traitement (code DICA)"]
["Traitement (code RATF)"]
["Traitement d'éducation de peuplement à taux variable"]
["Traitement",null,null,null,null,null,"Inscrire une valeur"]
["Taux de base",null,null,null,null,null,{"$f":"IFERROR(VLOOKUP($G$12,Menus!$A$378:$C$379,2,FALSE),\"\")","v":0}]
["Unité de mesure",null,null,null,null,null,{"$f":"IFERROR(VLOOKUP($G$12,Menus!$A$378:$C$379,3,FALSE),\"\")","v":"-"}]
["Taux d'exécution à déterminer selon la formule suivante"]
[{"$f":"IF($G$12=Formules!$B$13,Formules!$D$13,\"\")","v":""}]
[{"$f":"\"Valeurs spécifiques à remplir selon le traitement - \"&G12","v":"Valeurs spécifiques à remplir selon le traitement - Inscrire une valeur"}]
["Valeurs spécifiques à remplir selon le traitement - Éclaircie commerciale EAF"]
["Volume net à prélever (m³/hectare)"]
["VREC","Volume moyen des tiges à récolter (m³/tige)"]
["Taux par mètre cube calculé à partir de l'équation et des variables reliées au traitement",null,null,null,null,null,{"$f":"IFERROR((('Calculs grille'!$I$103*$G$20^'Calculs grille'!$I$102)+'Calculs grille'!$I$104),0)","v":0}]
["Taux par hectare calculé à partir de l'équation et des variables reliées au traitement",null,null,null,null,null,{"$f":"IFERROR(($G$19*$G$21),0)","v":0}]
[{"$f":"\"Majorations applicables à l'exécution - \"&G12","v":"Majorations applicables à l'exécution - Inscrire une valeur"}]
[{"$f":"IF($G$12='Majorations applicables'!$B$29,'Majorations applicables'!$K$29,\"\")","v":""}]
["Majoration pour la pente (PE2)"]
["Majoration pour la pente (PE2) - Éclaircie commerciale EAF"]
["Classe de pente numérique",null,"Taux calculé",null,"Écart",null,"Superficie (hectare)"]
["Pente A",null,{"$f":"IFERROR($G$22,0)","v":0},null,{"$f":"IFERROR($C$28-$G$22,0)","v":0}]
["Pente B",null,{"$f":"IFERROR($G$22,0)","v":0},null,{"$f":"IFERROR($C$29-$G$22,0)","v":0}]
["Pente C",null,{"$f":"IFERROR($G$22*(1+'Majorations applicables'!$A$46),0)","v":0},null,{"$f":"IFERROR($C$30-$G$22,0)","v":0}]
["Pente D",null,{"$f":"IFERROR($G$22*(1+'Majorations applicables'!$A$47),0)","v":0},null,{"$f":"IFERROR($C$31-$G$22,0)","v":0}]
["Pente E",null,{"$f":"IFERROR($G$22*(1+'Majorations applicables'!$A$48),0)","v":0},null,{"$f":"IFERROR($C$32-$G$22,0)","v":0}]
[null,null,null,null,"Total",null,{"$f":"IFERROR(SUM($G$28:$G$32),0)","v":0}]
["Majoration pour le rubannage des sentiers de débardage (RUB1)"]
["Espacement entre les sentier (m)"]
["Majoration pour les opérations manuelles (MAN)"]
["Type d'opérations",null,null,null,null,{"$f":"IFERROR(VLOOKUP($G$37,Menus!$A$386:$B$387,2,FALSE),\"\")","v":""}]
["Majoration pour l'hébergement et la distance du secteur d'intervention (H5)"]
["Hébergement (H5)",null,null,null,null,{"$f":"IFERROR(VLOOKUP($G$39,Menus!$A$382:$B$383,2,FALSE),\"\")","v":""}]
["Total"]
["Calculs -  Éclaircie commerciale EAF"]
["Taux d'exécution par mètre cube",null,null,null,null,null,{"$f":"IFERROR($G$21,0)","v":0}]
["Taux d'exécution par hectare",null,null,null,null,null,{"$f":"IFERROR($G$22,0)","v":0}]
["Taux PE2",null,null,null,null,null,{"$f":"IFERROR((SUMPRODUCT($E$28:$E$32,$G$28:$G$32)/$G$33),0)","v":0}]
["Taux sous-total exécution",null,null,null,null,null,{"$f":"IFERROR(SUM($G$43:$G$44),0)","v":0}]
["Taux RUB1",null,null,null,null,null,{"$f":"IFERROR(IF(OR($G$35=\"Pas de rubannage des sentiers\",$G$35<15),0,IF($G$35<>ROUND($G$35,0),\"Valeur «Espacement entre les sentiers» non valide\",('Calculs grille'!$I$105*(POWER($G$35,-1)))*($G$45/$G$43))),0)","v":0}]
["Taux MAN",null,null,null,null,null,{"$f":"IFERROR(($G$45*$F$37),0)","v":0}]
["Taux H5",null,null,null,null,null,{"$f":"IFERROR((SUM($G$45:$G$47)*$F$39),0)","v":0}]
["Taux exécution total et majoration(s) admissible(s)",null,null,null,null,null,{"$f":"IFERROR((ROUND(SUM($G$45:$G$48),2)),0)","v":0}]
["Superficie",null,null,null,null,null,{"$f":"IFERROR(ROUND($G$33,2),0)","v":0}]
["Grand total admissible",null,null,null,null,null,{"$f":"IFERROR(($G$49*$G$50),0)","v":0}]
[]
["Remarques"]
[]
["J'atteste que les renseignements fournis dans ce document afin de calculer le taux du traitement sont complets et conformes à la vérité, au meilleur de mes connaissances."]
[]
[]
[]
["Nom et prénom de l'ingénieur forestier",null,null,null,null,null,"No de permis"]
[null,null,null,null,null,null,{"$f":"TODAY()","v":"2018-01-17"}]
[]
["Signature de l'ingénieur forestier",null,null,null,null,null,"Date (AAAA-MM-JJ)"]
[]
[]
["Section réservée au suivi du contrat"]
[]
[null,"Numéro de la prescription :",{"$f":"IF($G$8<>\"\",$G$8,\"\")","v":""}]
[]
[null,"Numéro du contrat :"]
[null,"Numéro du projet :"]
[null,"U.G. :"]
[null,"MRC :"]
[null,"Code de traitement DICA :",{"$f":"IF($G$9<>\"\",$G$9,\"\")","v":""}]
[null,"Code de traitement RATF :",{"$f":"IF($G$10<>\"\",$G$10,\"\")","v":""}]
[null,"Type d'attribution : "]
[null,"Taux AOP : "]
[null,"Nom de l'entrepreneur : "]
[null,"Numéro de fournisseur : "]
[null,"Date de début :"]
[null,"Date de fin :"]
[null,"Commentaires :"]

{"sheet":"Travaux de planification","index":4,"n_rows":87,"n_cols":7,"rows_kept":87,"cut":false,"hidden":false,"merged":[[70,0,70,4],[72,2,73,4],[8,0,8,6],[20,0,20,1],[20,3,20,4],[15,0,15,1],[16,0,16,1],[18,0,18,6],[15,3,15,4],[16,3,16,4],[13,0,13,6],[17,0,17,1],[12,3,12,4],[10,3,10,4],[11,3,11,4],[17,3,17,4],[5,0,5,5],[6,0,6,5],[7,0,7,5],[9,0,9,1],[9,3,9,4],[0,0,0,6],[3,0,3,6],[4,0,4,5],[2,0,2,5],[1,0,1,4],[46,0,46,1],[44,0,44,6],[52,0,52,6],[30,0,43,0],[30,1,33,1],[34,1,42,1],[49,0,49,6],[43,2,43,3],[42,2,42,3],[41,2,41,3],[40,2,40,3],[39,2,39,3],[33,2,33,3],[32,2,32,3],[31,2,31,3],[30,4,33,4],[67,0,67,5],[61,0,63,5],[65,0,66,5],[27,0,27,6],[28,0,28,6],[29,0,29,6],[46,3,46,4],[45,3,45,4],[45,0,45,1],[34,4,42,4],[38,2,38,3],[37,2,37,3],[36,2,36,3],[35,2,35,3],[34,2,34,3],[30,2,30,3],[64,0,64,5],[47,0,47,1],[48,0,48,1],[47,3,47,4],[48,3,48,4],[50,0,50,4],[51,0,51,4],[58,0,58,6],[59,0,59,6],[65,6,66,6],[54,0,54,5],[55,0,55,5],[56,0,56,5],[14,3,14,4],[14,0,14,1],[19,3,19,4],[19,0,19,1],[26,0,26,1],[26,3,26,4],[25,3,25,4],[25,0,25,1],[61,6,63,6],[60,0,60,6],[53,0,53,5],[57,0,57,6],[10,0,10,1],[11,0,11,1],[12,0,12,1],[21,0,21,6],[24,0,24,1],[23,0,23,1],[24,3,24,4],[23,3,23,4],[22,3,22,4],[22,0,22,1]]}
[]
["Annexe au calcul des taux des traitements non commerciaux                                                                                                                                                                                                                                             2018-2019                                                                                                                                                                                                                                                                              Travaux de planification                                                                                                                                        Forêt publique"]
[" *** Veuillez saisir les informations dans les cellules blanches seulement ***",null,null,null,null,null,"Version 1 : 2018-01-17"]
["Identification"]
["Unité d'aménagement (UA)"]
["Secteur d'intervention"]
["Unité de compilation"]
["Numéro de la prescription"]
["Recherche de secteur d'intervention potentiel (terrain)"]
["Traitement",null,"Valeur","Unité",null,"Total","Quantité"]
["Préparation de terrain",null,{"$f":"'Calculs grille'!$I$87","v":5},"Nombre d'hectares recherchés",null,{"$f":"IFERROR(($C$11*$G$11),0)","v":0}]
["Régénération artificielle",null,{"$f":"'Calculs grille'!$I$87","v":5},"Nombre d'hectares recherchés",null,{"$f":"IFERROR(($C$12*$G$12),0)","v":0}]
["Éducation de peuplement",null,{"$f":"'Calculs grille'!$I$88","v":9},"Nombre d'hectares recherchés",null,{"$f":"IFERROR(($C$13*$G$13),0)","v":0}]
["Secteur d'intervention proposé"]
["Traitement",null,"Valeur","Unité",null,"Total","Quantité"]
["Préparation de terrain",null,{"$f":"'Calculs grille'!$I$89","v":11},"Nombres d'hectares trouvés",null,{"$f":"IFERROR(($C$16*$G$16),0)","v":0}]
["Régénération artificielle",null,{"$f":"'Calculs grille'!$I$89","v":11},"Nombres d'hectares trouvés",null,{"$f":"IFERROR(($C$17*$G$17),0)","v":0}]
["Éducation de peuplement",null,{"$f":"'Calculs grille'!$I$90","v":16},"Nombres d'hectares trouvés",null,{"$f":"IFERROR(($C$18*$G$18),0)","v":0}]
["Confection du plan de sondage"]
["Traitement",null,"Valeur","Unité",null,"Total","Quantité"]
["Plan de sondage",null,{"$f":"'Calculs grille'!$I$91","v":2},"Nombre d'hectares inventoriés",null,{"$f":"IFERROR(($C$21*$G$21),0)","v":0}]
["Inventaire avant traitement"]
["Traitement",null,"Valeur","Unité",null,"Total","Quantité"]
["Préparation de terrain (sauf drainage sylvicole) et régénération artificielle",null,{"$f":"'Calculs grille'!$I$96","v":31},"Nombre de PE inventoriées",null,{"$f":"IFERROR(($C$24*$G$24),0)","v":0}]
["Préparation de terrain (drainage sylvicole - plan et devis)",null,{"$f":"'Calculs grille'!$I$97","v":30},"Nombre de km ou Mm³ du devis",null,{"$f":"IFERROR(($C$25*$G$25),0)","v":0}]
["Éducation de peuplement (dégagement, nettoiement et éclaircie précommerciale)",null,{"$f":"'Calculs grille'!$I$92","v":94},"Nombre de PE inventoriées",null,{"$f":"IFERROR((($C$26+(SUM($F$31:$F$34)*'Calculs grille'!$I$93)+(SUM($F$35:$F$43)*'Calculs grille'!$I$94)+(SUM($F$44)*'Calculs grille'!$I$95))*$G$26),0)","v":0}]
["Éducation de peuplement (élagage et taille de formation)",null,{"$f":"'Calculs grille'!$I$98","v":43},"Nombre de PE inventoriées",null,{"$f":"IFERROR(($C$27*$G$27),0)","v":0}]
["Inventaire avant traitement pour éducation de peuplement (dégagement, nettoiement et éclaircie précommerciale)"]
["Critères - Inventaire avant traitement pour éducation de peuplement (dégagement, nettoiement et éclaircie précommerciale) SEULEMENT calculé selon la formule suivante"]
[{"$f":"Formules!D15","v":"Taux ($/PE) = 94 + 0,64 * (NCT) + 3,22 * (NCP) + 6,44 * (TE)"}]
["Critères","NCT","Accessibilité",null,{"$f":"IFERROR(SUM($F$31:$F$34)*'Calculs grille'!$I$93,0)","v":0},{"$f":"IF($G$31=\"Oui\",1,IF($G$31=\"Non\",0,\"\"))","v":""}]
[null,null,"Groupes d'espèces indicatrices",null,null,{"$f":"IF($G$32=\"Oui\",1,IF($G$32=\"Non\",0,\"\"))","v":""}]
[null,null,"Pente",null,null,{"$f":"IF($G$33=\"Oui\",1,IF($G$33=\"Non\",0,\"\"))","v":""}]
[null,null,"Rugosité",null,null,{"$f":"IF($G$34=\"Oui\",1,IF($G$34=\"Non\",0,\"\"))","v":""}]
[null,"NCP                                                                 (maximum 7 critères)","Hauteur du résineux en compétition avec le stocking de feuillus commerciaux",null,{"$f":"IFERROR(IF(SUM($F$35:$F$43)<=7,SUM($F$35:$F$43)*'Calculs grille'!$I$94,\"Maximum 7 critères\"),0)","v":0},{"$f":"IF($G$35=\"Oui\",1,IF($G$35=\"Non\",0,\"\"))","v":""}]
[null,null,"Hauteur moyenne des feuillus non-commerciaux",null,null,{"$f":"IF($G$36=\"Oui\",1,IF($G$36=\"Non\",0,\"\"))","v":""}]
[null,null,"Coefficient de distribution libre de croître et éclaircie",null,null,{"$f":"IF($G$37=\"Oui\",1,IF($G$37=\"Non\",0,\"\"))","v":""}]
[null,null,"Nombre de faces en compétition",null,null,{"$f":"IF($G$38=\"Oui\",1,IF($G$38=\"Non\",0,\"\"))","v":""}]
[null,null,"Pourcentage de recouvrement par essence",null,null,{"$f":"IF($G$39=\"Oui\",1,IF($G$39=\"Non\",0,\"\"))","v":""}]
[null,null,"Présence d'arbres fruitiers",null,null,{"$f":"IF($G$40=\"Oui\",1,IF($G$40=\"Non\",0,\"\"))","v":""}]
[null,null,"Présence du charançon",null,null,{"$f":"IF($G$41=\"Oui\",1,IF($G$41=\"Non\",0,\"\"))","v":""}]
[null,null,"Qualification des feuillus potentiels",null,null,{"$f":"IF($G$42=\"Oui\",1,IF($G$42=\"Non\",0,\"\"))","v":""}]
[null,null,"Coefficient de distribution des feuillus commerciaux ou non",null,null,{"$f":"IF($G$43=\"Oui\",1,IF($G$43=\"Non\",0,\"\"))","v":""}]
[null,"TE","Type écologique",null,{"$f":"IFERROR(SUM($F$44)*'Calculs grille'!$I$95,0)","v":0},{"$f":"IF($G$44=\"Oui\",1,IF($G$44=\"Non\",0,\"\"))","v":""}]
["Délimitation des secteurs"]
["Traitement",null,"Valeur","Unité",null,"Total","Quantité"]
["Préparation de terrain",null,{"$f":"'Calculs grille'!$I$99","v":28},"Nombre de km délimités",null,{"$f":"IFERROR(($C$47*$G$47),0)","v":0}]
["Régénération artificielle",null,{"$f":"'Calculs grille'!$I$99","v":28},"Nombre de km délimités",null,{"$f":"IFERROR(($C$48*$G$48),0)","v":0}]
["Éducation de peuplement",null,{"$f":"'Calculs grille'!$I$100","v":137},"Nombre de km délimités",null,{"$f":"IFERROR(($C$49*$G$49),0)","v":0}]
["Majoration pour l'hébergement et la distance du secteur d'intervention (H3 et D200)"]
["Hébergement (H3)",null,null,null,null,{"$f":"IF($G$51=\"\",\"\",IF($G$51=Menus!$A$475,Menus!$B$475,IF($G$51=Menus!$A$476,Menus!$B$476,IF($G$51=Menus!$A$477,Menus!$B$477,IF($G$51<=Menus!$B$476,$G$51,\"Max \"&TEXT(Menus!B476,\"0,0%\"))))))","v":""}]
["Distance du secteur d'intervention (D200)",null,null,null,null,{"$f":"IFERROR(VLOOKUP($G$52,Menus!$A$480:$B$481,2,FALSE),\"\")","v":""}]
["Total"]
["Montant de base admissible",null,null,null,null,null,{"$f":"IFERROR((IF(SUM($F$35:$F$43)>7,\"Maximum 7 critères NCP\",SUM($F$11:$F$13,$F$16:$F$18,$F$21,$F$24:$F$25,$F$27,$F$47:$F$49)+($C$26+(SUM($F$31:$F$34)*'Calculs grille'!$I$93)+(SUM($F$35:$F$43)*'Calculs grille'!$I$94)+(SUM($F$44)*'Calculs grille'!$I$95))*$G$26)),0)","v":0}]
["Taux H3",null,null,null,null,null,{"$f":"IFERROR((IF($G$54=\"Maximum 7 critères NCP\",0,$G$54*SUM($F$51))),0)","v":0}]
["Taux D200 (non applicable pour le plan de sondage)",null,null,null,null,null,{"$f":"IFERROR((IF($G$54=\"Maximum 7 critères NCP\",0,($G$54-$F$21)*$F$52)),0)","v":0}]
["Grand total admissible",null,null,null,null,null,{"$f":"IFERROR((ROUND(SUM($G$54:$G$56),2)),0)","v":0}]
[]
["Remarques"]
[]
["J'atteste que les renseignements fournis dans ce document afin de calculer le taux du traitement sont complets et conformes à la vérité, au meilleur de mes connaissances."]
[]
[]
[]
["Nom et prénom de l'ingénieur forestier",null,null,null,null,null,"No de permis"]
[null,null,null,null,null,null,{"$f":"TODAY()","v":"2018-01-17"}]
[]
["Signature de l'ingénieur forestier",null,null,null,null,null,"Date (AAAA-MM-JJ)"]
[]
[]
["Section réservée au suivi du contrat"]
[]
[null,"Numéro de la prescription :",{"$f":"IF($G$8<>\"\",$G$8,\"\")","v":""}]
[]
[null,"Numéro du contrat :"]
[null,"Numéro du projet :"]
[null,"U.G. :"]
[null,"MRC :"]
[null,"Code de traitement DICA :"]
[null,"Code de traitement RATF :"]
[null,"Type d'attribution : "]
[null,"Taux AOP : "]
[null,"Nom de l'entrepreneur : "]
[null,"Numéro de fournisseur : "]
[null,"Date de début :"]
[null,"Date de fin :"]
[null,"Commentaires :"]

{"sheet":"Dispersion 2018-2019","index":5,"n_rows":70,"n_cols":4,"rows_kept":70,"cut":false,"hidden":false,"merged":[[3,0,3,3],[5,1,5,3],[4,1,4,3],[69,0,69,3],[0,0,0,3],[1,0,1,2],[67,0,67,3],[2,0,2,2]]}
[]
["         Annexe au calcul des taux des traitements non commerciaux                                          2018-2019                                                                                                                                                                                                                                                                                                                                                                                                                                                                                                                                                   Indice de dispersion                                                                                                                                Forêt publique"]
[null,null,null,"Version 1 : 2018-01-17"]
["Indice de dispersion et majoration par UA et par catégorie de préparation de terrain"]
["DISP1","Un indice de dispersion dont la valeur est supérieure à 1 permet une majoration de 3,8% par unité entière. La majoration est calculée au prorata et la valeur maximale est de 34,2%. La majoration maximale est atteinte avec un indice de dispersion de 9 ou plus."]
["DISP2","Un indice de dispersion dont la valeur est supérieure à 4 permet une majoration de 1,4% par unité entière. La majoration est calculée au prorata et la valeur maximale est de 22,4%. La majoration maximale est atteinte avec un indice de dispersion de 19 ou plus."]
["Unité d'aménagement 2018 (UA)","Indice de dispersion (km/ha)","Scarifiage Herse\n (DISP1)","Déblaiement\nExcavatrice (DISP2)"]
["01171",3.5166796592040961,{"$f":"IF(B8<=1,0,IF(AND(B8>1,B8<=9),ROUND((TRUNC(B8)*0.038)+((B8-TRUNC(B8))*0.038),4),IF(B8>9,0.342)))","v":0.1336},{"$f":"IF(B8<=4,0,IF(AND(B8>4,B8<=19),ROUND(((TRUNC(B8)-3)*0.014)+((B8-TRUNC(B8))*0.014),4),IF(B8>19,0.224)))","v":0}]
["01272",3.0232730614449435,0.1149,0]
["02371",1.3563315048805851,5.1499999999999997E-2,0]
["02471",1.068210264965946,4.0599999999999997E-2,0]
["02571",1.0456115540045701,3.9699999999999999E-2,0]
["02651",2.9765780970857918,0.11310000000000001,0]
["02661",2.2155660093979006,8.4199999999999997E-2,0]
["02662",1.9771253944647651,7.51E-2,0]
["02663",1.2776593053969028,4.8599999999999997E-2,0]
["02664",1.3058283454671207,4.9599999999999998E-2,0]
["02665",1.3598419946524545,5.1700000000000003E-2,0]
["02666",2.1931654748398395,8.3299999999999999E-2,0]
["02751",0.87373476241261383,0,0]
["03153",0,0,0]
["03171",2.339460871936089,8.8900000000000007E-2,0]
["03351",3.1850417959595752,0.121,0]
["03451",0,0,0]
["03571",10.98126084118498,0.34200000000000003,0.11169999999999999]
["04151",2.9184611601146884,0.1109,0]
["04251",2.1182710714801902,8.0500000000000002E-2,0]
["04351",0.994657651212696,0,0]
["04352",1.3083043209867609,4.9700000000000001E-2,0]
["05151",0,0,0]
["06151",0,0,0]
["06271",1.9775735503507259,7.51E-2,0]
["06452",4.8794375915746082,0.18540000000000001,2.63E-2]
["06471",2.4611719558822189,9.35E-2,0]
["07151",1.652992117350379,6.2799999999999995E-2,0]
["07152",3.2376322050020403,0.123,0]
["07251",2.8697449686410779,0.1091,0]
["07351",4.9478588314455436,0.188,2.7300000000000001E-2]
["07352",2.5683654129608553,{"$f":"IF(B39<=1,0,IF(AND(B39>1,B39<=9),ROUND((TRUNC(B39)*0.038)+((B39-TRUNC(B39))*0.038),4),IF(B39>9,0.342)))","v":9.7600000000000006E-2},{"$f":"IF(B39<=4,0,IF(AND(B39>4,B39<=19),ROUND(((TRUNC(B39)-3)*0.014)+((B39-TRUNC(B39))*0.014),4),IF(B39>19,0.224)))","v":0}]
["07451",1.6643098528657208,6.3200000000000006E-2,0]
["08151",2.3443633552905698,8.9099999999999999E-2,0]
["08152",3.3236578866686242,0.1263,0]
["08251",3.7525535172212692,0.1426,0]
["08351",2.9184768172995716,0.1109,0]
["08451",0.81662215163666529,0,0]
["08462",2.4262444121823341,9.2200000000000004E-2,0]
["08551",2.0557835978347589,7.8100000000000003E-2,0]
["08562",0,0,0]
["08651",3.1736198976284431,0.1206,0]
["08652",0.85831572103583376,0,0]
["08663",0,0,0]
["08664",1.6848677216578001,6.4000000000000001E-2,0]
["08665",1.7198881681754268,6.54E-2,0]
["08666",2.9435664608828902,0.1119,0]
["08751",1.2194270545479715,4.6300000000000001E-2,0]
["08762",1.1571042052131713,4.3999999999999997E-2,0]
["08763",1.5595481955773922,5.9299999999999999E-2,0]
["08764",1.5240879207166733,5.79E-2,0]
["09351",1.3461199831583448,5.1200000000000002E-2,0]
["09352",0,0,0]
["09471",4.8981350604449334,0.18609999999999999,2.6599999999999999E-2]
["09551",0,0,0]
["09751",2.7066059784748417,0.10290000000000001,0]
["11161",1.9981587901416449,7.5899999999999995E-2,0]
["11262",2.0491608065139131,7.7899999999999997E-2,0]
["11263",3.1711208968448372,{"$f":"IF(B66<=1,0,IF(AND(B66>1,B66<=9),ROUND((TRUNC(B66)*0.038)+((B66-TRUNC(B66))*0.038),4),IF(B66>9,0.342)))","v":0.1205},{"$f":"IF(B66<=4,0,IF(AND(B66>4,B66<=19),ROUND(((TRUNC(B66)-3)*0.014)+((B66-TRUNC(B66))*0.014),4),IF(B66>19,0.224)))","v":0}]
[]
["Indice de dispersion: La distance à vol d'oiseau avec comme point de départ une base régionale, en reliant l'ensemble des secteurs d'intervention à traiter d'un territoire donné et en revenant à la base régionale. La distance est corrigée avec un indice de sinuosité et est divisée par la superficie totale à traiter. Cet indice s'exprime sous la forme d'une distance par hectare traité (km/ha)"]
[]
["Cet indice peut être recalculé dans le cadre de nouveaux plans spéciaux approuvés par l'Unité de gestion"]

{"sheet":"Versions du fichier","index":6,"n_rows":6,"n_cols":3,"rows_kept":6,"cut":false,"hidden":false,"merged":[[0,0,0,16]]}
["Suivi des versions du fichier de l’annexe au calcul des taux des traitements non commerciaux 2018-2019\nForêt publique"]
[0]
["Version 1","Nom du fichier :","Annexe_TSNC_2018-2019_2018-01-17.xlsm"]
[{"$f":"A3","v":"Version 1"},"Date de mise en ligne :","2018-01-17"]
[{"$f":"A4","v":"Version 1"},"Remarques :","• Version initiale proposée pour la période de consultation"]
[{"$f":"A5","v":"Version 1"}]

{"sheet":"Étapes calcul majorations","index":7,"n_rows":37,"n_cols":6,"rows_kept":37,"cut":false,"hidden":false,"merged":[[36,1,36,3],[36,4,36,5]]}
["Famille","Traitement","Équipement ou modalité","Type d'engin forestier","Étapes pour appliquer les majorations à l'exécution","Étapes pour appliquer les majorations à la vérification"]
["Préparation de terrain","Déblaiement des résidus de coupe","Abatteuse groupeuse après feux","S/O","Taux = EXE * (1 + PE2) * (1 + DISP2) * (1 + H1) * (1 + CEAF1 ou ISO1)","Taux = VERIF * (1 + H3 + D200)"]
["Préparation de terrain","Déblaiement des résidus de coupe","Bouteur avec pelle râteau","S/O","Taux = EXE * (1 + PE4) * (1 + DISP2) * (1 + H1) * (1 + CEAF1 ou ISO1)","Taux = VERIF * (1 + H3 + D200)"]
["Préparation de terrain","Déblaiement des résidus de coupe","Excavatrice ou débusqueuse ou abatteuse","Débusqueuse","Taux = EXE * (1 + PE3) * (1 + DISP1) * (1 + H1) * (1 +  CEAF1 ou ISO1)","Taux = VERIF * (1 + H3 + D200)"]
["Préparation de terrain","Déblaiement des résidus de coupe","Excavatrice ou débusqueuse ou abatteuse","Abatteuse lors de la récolte","Taux = EXE * (1 + PE2) * (1 + DISP2) * (1 + H1) * (1 + CEAF1 ou ISO1)","Taux = VERIF * (1 + H3 + D200)"]
["Préparation de terrain","Déblaiement des résidus de coupe","Excavatrice ou débusqueuse ou abatteuse","Excavatrice","Taux = EXE * (1 + PE2) * (1 + DISP2) * (1 + H1) * (1 + CEAF1 ou ISO1)","Taux = VERIF * (1 + H3 + D200)"]
["Préparation de terrain","Scarifiage par monticule ou inversion par placeau ou décapage par placeau","Excavatrice","Abatteuse lors de la récolte","Taux = EXE * (1 + PE2) * (1 + DISP2) * (1 + H1) * (1 + CEAF1 ou ISO1)","Taux = VERIF * (1 + H3 + D200)"]
["Préparation de terrain","Scarifiage par monticule ou inversion par placeau ou décapage par placeau","Excavatrice","Excavatrice","Taux = EXE * (1 + PE2) * (1 + DISP2) * (1 + H1) * (1 + CEAF1 ou ISO1)","Taux = VERIF * (1 + H3 + D200)"]
["Préparation de terrain","Drainage sylvicole","Milieu boisé","S/O","Taux = EXE * (1 + H1) * (1 + CEAF1 ou ISO1)","Taux = VERIF * (1 + H3 + D200)"]
["Préparation de terrain","Drainage sylvicole","Milieu dénudé","S/O","Taux = EXE * (1 + H1) * (1 + CEAF1 ou ISO1)","Taux = VERIF * (1 + H3 + D200)"]
["Préparation de terrain","Scarifiage par hersage ou labour","Herses forestières","S/O","Taux = EXE * (1 +  PA2 + PE2) * (1 + DISP1) * (1 + H1) * (1 + CEAF1 ou ISO1)","Taux = VERIF * (1 + H3 + D200)"]
["Préparation de terrain","Scarifiage par mixage par placeau","Taupe ou pioche forestière","S/O","Taux = EXE * (1 + H1 + D200) * (1 + CEAF1 ou ISO1)","Taux = VERIF * (1 + H3 + D200)"]
["Préparation de terrain","Scarifiage par monticule avec scarificateur","Bracke M-36a avec débardeur","S/O","Taux = EXE * (1 + PE1) * (1 + DISP1) * (1 + H1) * (1 + CEAF1 ou ISO1)","Taux = VERIF * (1 + H3 + D200)"]
["Préparation de terrain","Scarifiage par monticule avec scarificateur","Bracke M-36a avec porteur","S/O","Taux = EXE * (1 + PE1) * (1 + DISP1) * (1 + H1) * ( 1 + CEAF1 ou ISO1)","Taux = VERIF * (1 + H3 + D200)"]
["Préparation de terrain","Scarifiage par monticule ou inversion par placeau ou décapage par placeau","Excavatrice","Excavatrice","Taux = EXE * (1 + PE2) * (1 + DISP2) * (1 + H1) * ( 1 + CEAF1 ou ISO1)","Taux = VERIF * (1 + H3 + D200)"]
["Préparation de terrain","Scarifiage par monticule ou inversion par placeau ou décapage par placeau","Excavatrice","Abatteuse lors de la récolte","Taux = EXE * (1 + PE2) * (1 + DISP2) * (1 + H1) * ( 1 + CEAF1 ou ISO1)","Taux = VERIF * (1 + H3 + D200)"]
["Préparation de terrain","Scarifiage par sillon avec scarificateur","Bracke T-26 avec débardeur, Types TTS hydrauliques, Donaren ou Requin","S/O","Taux = EXE * (1 + PA0) * (1 + PA1) * (1 + PE1) * (1 + DISP1) * (1 + H1) * (1 + CEAF1 ou ISO1)","Taux = VERIF * (1 + H3 + D200)"]
["Préparation de terrain","Scarifiage par sillon avec scarificateur","Bracke T-26 avec porteur","S/O","Taux = EXE * (1 + PA0) * (1 + PA1) * (1 + PE1) * (1 + DISP1) * (1 + H1) * (1 + CEAF1 ou ISO1)","Taux = VERIF * (1 + H3 + D200)"]
["Préparation de terrain","Scarifiage par sillon avec scarificateur","Rouleau écraseur et scarificateur à disques passifs","S/O","Taux = EXE * (1 + PE2) * (1 + DISP2) * (1 + H1) * (1 + CEAF1 ou ISO1)","Taux = VERIF * (1 + H3 + D200)"]
["Préparation de terrain","Scarifiage par sillon avec scarificateur","Types TTS passifs","S/O","Taux = EXE * (1 + PA0) * (1 + PA1) * (1 + PE1) * (1 + DISP1) * (1 + H1) * (1 + CEAF1 ou ISO1)","Taux = VERIF * (1 + H3 + D200)"]
["Préparation de terrain","Scarifiage par sillon avec scarificateur","Wadell","S/O","Taux = EXE * (1 + PA0) * (1 + PA1) * (1 + PE1) * (1 + DISP1) * (1 + H1) * (1 + CEAF1 ou ISO1)","Taux = VERIF * (1 + H3 + D200)"]
["Régénération artificielle","Ensemencement terrestre manuel","S/O","S/O","Taux = EXE * (1 + PE2) * (1 + H2 ou TC + D200) * (1 + CEAF2 ou ISO2)","Taux = VERIF * (1 + H3 + D200)"]
["Régénération artificielle","Plantation uniforme et regarni en plein manuel sauf PEH","S/O","S/O","Taux = EXE * (1 + H2 ou TC + D200) * (1 + CEAF2 ou ISO2)) + TRA","Taux = VERIF * (1 + H3 + D200)"]
["Régénération artificielle","Plantation uniforme et regarni en plein manuel sentier préparé sauf PEH","S/O","S/O","Taux = EXE * (1 + H2 ou TC + D200) * (1 + CEAF2 ou ISO2)) + TRA","Taux = VERIF * (1 + H3 + D200)"]
["Régénération artificielle","Plantation uniforme et regarni mécanique (Scarificateur-planteur Bracke P-11a)","S/O","S/O","Taux = EXE * (1 +  H2) * (1 + CEAF2 ou ISO2) + TRA","Taux = VERIF * (1 + H3 + D200)"]
["Régénération artificielle","Plantation uniforme PEH","S/O","S/O","Taux = EXE * (1 + H2 ou TC + D200) * (1 + CEAF2 ou ISO2) + TRA","Taux = VERIF * (1 + H3 + D200)"]
["Régénération artificielle","Regarni de sentier et enrichissement manuel sauf PEH","S/O","S/O","Taux = EXE * (1 + H2 ou TC + D200) * (1 + CEAF2 ou ISO2) + TRA","Taux = VERIF * (1 + H3 + D200)"]
["Éducation de peuplement","Dégagement mécanique","S/O","S/O","Taux = EXE * (1 + PE2) * (1 + H2 ou TC + D200) * (1 + CEAF3 ou ISO3)","Taux = VERIF * (1 + H3 + D200)"]
["Éducation de peuplement","Élagage pour fins de qualité du pin blanc et rouge","S/O","S/O","Taux = EXE * (1 + PE2) * (1 + H2 ou TC + D200) * (1 + CEAF3 ou ISO3)","Taux = VERIF * (1 + H3 + D200)"]
["Éducation de peuplement","EPC par puit de lumière ET Taille de formation avec martelage","S/O","S/O","Taux = EXE * (1 + PE2) * (1 + H2 ou TC + D200) * (1 + CEAF3 ou ISO3)","Taux = VERIF * (1 + H3 + D200)"]
["Éducation de peuplement","Gaulis I (interspécifique et sans espacement)","S/O","S/O","Taux = EXE * (1 + PE2) * (1 + H2 ou TC + D200) * (1 + CEAF3 ou ISO3)","Taux = VERIF * (1 + H3 + D200)"]
["Éducation de peuplement","Gaulis II (intraspécifique avec espacement OU résineux sans espacement)","S/O","S/O","Taux = EXE * (1 + PE2) * (1 + H2 ou TC + D200) * (1 + CEAF3 ou ISO3)","Taux = VERIF * (1 + H3 + D200)"]
["Éducation de peuplement","Taille phytosanitaire","S/O","S/O","Taux = EXE * (1 + PE2) * (1 + H2 ou TC + D200) * (1 + CEAF3 ou ISO3)","Taux = VERIF * (1 + H3 + D200)"]
["Éclaircie commerciale EAF","Éclaircie commerciale EAF","S/O","S/O","Taux = (EXE * (1 + PE2) * (1 + MAN)) +  (1 + PE2) * RUB) * (1 + H5)","Taux = VERIF * (1 + H3 + D200)"]
["Travaux de planification","Travaux de planification","S/O","S/O","Taux = EXE * (1 + H3) + (EXE - Plan de sondage) * D200","Taux = VERIF * (1 + H3 + D200)"]
[]
["Exemple","Traitement = Préparation de terrain  => Déblaiement des résidus de coupe  => Abatteuse groupeuse après feux\nTaux = EXE * (1 + PE2) * (1 + DISP2) * (1 + H1) * (1 + CEAF1 ou ISO1)\nEXE: 100 $;   PE2: 6,1 % ;   DISP1: 3,8% ;    H1: 3,75% ;   CEAF1: 0,42%",null,null,"Taux = 100 * (1 + 0,061) * (1 + 0,038) * (1 + 0,0375) * (1 + 0,0042)\nTaux = 100 * 1,061 * 1,038 * 1,0375 * 1,0042\nTaux = 114,74$"]

{"sheet":"Calculs grille","index":8,"n_rows":113,"n_cols":10,"rows_kept":113,"cut":false,"hidden":true,"merged":[[0,6,1,6],[0,5,1,5],[0,9,1,9],[0,0,1,0],[0,1,1,1],[0,2,1,2],[0,3,1,3],[0,4,1,4],[0,8,1,8]]}
["Famille","Type_1","Type_2","Type_3","Paiement","Intrant","code","2018-2019","2018-2019","Source 18-19"]
[null,null,null,null,null,null,null,"Non \narrondis"]
["Préparation de site","Scarifiage en sillon avec scarificateur","Scarificateurs à disques passifs","Type TTS passifs","Taux fixe","Taux à l'hectare","Type TTS passifs",213.04370735649223,213,"='[Fichier calcul grille_VTSNC_ 2018-2019.xlsx]Feuille de calcul'!Z4"]
["Préparation de site","Scarifiage en sillon avec scarificateur","Scarificateurs à disques passifs","Rouleau écraseur et scarificateur à disques passifs","Taux fixe","Taux à l'hectare","Rouleau écraseur et scarificateur à disques passifs",726.10922773486539,726,"='[Fichier calcul grille_VTSNC_ 2018-2019.xlsx]Feuille de calcul'!Z5"]
["Préparation de site","Scarifiage en sillon avec scarificateur","Scarificateurs à disques hydrauliques","Bracke T-26 avec débardeur, Types TTS hydrauliques, Donaren, Equisyl ou Requin","Taux fixe","Taux à l'hectare","Bracke T-26 avec débardeur, Types TTS hydrauliques, Donaren, Equisyl ou Requin",312.70498270840034,313,"='[Fichier calcul grille_VTSNC_ 2018-2019.xlsx]Feuille de calcul'!Z6"]
["Préparation de site","Scarifiage en sillon avec scarificateur","Scarificateurs à disques hydrauliques","Bracke T-26 avec porteur","Taux fixe","Taux à l'hectare","Bracke T-26 avec porteur",355.37242456917471,355,"='[Fichier calcul grille_VTSNC_ 2018-2019.xlsx]Feuille de calcul'!Z8"]
["Préparation de site","Scarifiage en sillon avec scarificateur","Scarificateurs à cônes hydrauliques","Wadell","Taux fixe","Taux à l'hectare","Wadell",374.13108627663803,374,"='[Fichier calcul grille_VTSNC_ 2018-2019.xlsx]Feuille de calcul'!Z9"]
["Préparation de site","Scarifiage en sillon avec scarificateur","Scarificateurs à monticules","Bracke M-36a avec débardeur","Taux fixe","Taux à l'hectare","Bracke M-36a avec débardeur",319.94314178407336,320,"='[Fichier calcul grille_VTSNC_ 2018-2019.xlsx]Feuille de calcul'!Z10"]
["Préparation de site","Scarifiage en sillon avec scarificateur","Scarificateurs à monticules","Bracke M-36a avec porteur","Taux fixe","Taux à l'hectare","Bracke M-36a avec porteur",383.62453232242387,384,"='[Fichier calcul grille_VTSNC_ 2018-2019.xlsx]Feuille de calcul'!Z11"]
["Préparation de site","Scarifiage en sillon avec scarificateur","Scarifiage en herse/labour","Herses forestières","Taux fixe","Taux à l'hectare","Herses forestières",408.45645148509061,408,"='[Fichier calcul grille_VTSNC_ 2018-2019.xlsx]Feuille de calcul'!Z12"]
["Préparation de site","Scarifiage en sillon avec scarificateur","Scarifiage par mixage par placeau","Taupe ou pioche forestière","Taux fixe","Taux à l'hectare","Taupe ou pioche forestière",598.33209656352869,598,"='[Fichier calcul grille_VTSNC_ 2018-2019.xlsx]Feuille de calcul'!Z13"]
["Préparation de site","Scarifiage et déblaiement","Scarifiage par monticule ou inversion par placeau ou décapage par placeau ET\nDéblaiement des résidus de coupe","Excavatrice ou débusqueuse ou abatteuse","Taux variable","Taux moyen","Taux moyen",751.60258191365233,752,"='[Fichier calcul grille_VTSNC_ 2018-2019.xlsx]Feuille de calcul'!Z14"]
["Préparation de site","Scarifiage et déblaiement","Scarifiage par monticule ou inversion par placeau ou décapage par placeau ET\nDéblaiement des résidus de coupe","Excavatrice ou débusqueuse ou abatteuse","Taux variable","Variable 1","Excavatrice ou débusqueuse ou abatteuse",27136.020595559035,27136,"='[Fichier calcul grille_VTSNC_ 2018-2019.xlsx]Feuille de calcul'!Z15"]
["Préparation de site","Scarifiage et déblaiement","Déblaiement des résidus de coupe avec bouteur  avec pelle râteau","Bouteur avec pelle râteau","Taux fixe","Taux à l'hectare","Bouteur avec pelle râteau",754.02724130756133,754,"='[Fichier calcul grille_VTSNC_ 2018-2019.xlsx]Feuille de calcul'!Z16"]
["Préparation de site","Scarifiage et déblaiement","Déblaiement des résidus de coupe avec abatteuse groupeuse après feux","Abatteuse groupeuse","Taux fixe","Taux à l'hectare","Abatteuse groupeuse",891.89067550807329,892,"='[Fichier calcul grille_VTSNC_ 2018-2019.xlsx]Feuille de calcul'!Z17"]
["Préparation de site","Drainage sylvicole","Milieu dénudé","Excavatrice","Taux fixe","Taux à l'hectare","Excavatrice",2311.2195130428559,2311,"='[Fichier calcul grille_VTSNC_ 2018-2019.xlsx]Feuille de calcul'!Z18"]
["Préparation de site","Drainage sylvicole","Milieu boisé","Excavatrice","Taux fixe","Taux à l'hectare","Excavatrice",2567.9872159688989,2568,"='[Fichier calcul grille_VTSNC_ 2018-2019.xlsx]Feuille de calcul'!Z19"]
["Régénération artificielle","Plantation uniforme et regarni manuel sauf PEH","Constante","Constante","Taux variable","Constante","Constante",107.5303551396886,107.5,"='[Fichier calcul grille_VTSNC_ 2018-2019.xlsx]Feuille de calcul'!Z23"]
["Régénération artificielle","Plantation uniforme et regarni manuel sauf PEH","PR","PR","Taux variable","Variable 1","PR",-65.109007482391078,-65.11,"='[Fichier calcul grille_VTSNC_ 2018-2019.xlsx]Feuille de calcul'!Z24"]
["Régénération artificielle","Plantation uniforme et regarni manuel sauf PEH","1/(DE*DS)","1/(DE*DS)","Taux variable","1/(DE*DS)","1/(DE*DS)",425014.5573115673,425015,"='[Fichier calcul grille_VTSNC_ 2018-2019.xlsx]Feuille de calcul'!Z25"]
["Régénération artificielle","Plantation uniforme et regarni manuel sauf PEH","Gabarit 7 : RacN PFD","Gabarit 7 : RacN PFD","Taux variable","Gabarit 7 : RacN PFD","Gabarit 7 : RacN PFD",350.80073943203996,351,"='[Fichier calcul grille_VTSNC_ 2018-2019.xlsx]Feuille de calcul'!Z26"]
["Régénération artificielle","Plantation uniforme et regarni manuel sauf PEH","Gabarit 5 : Rec PFD","Gabarit 5 : Rec PFD","Taux variable","Gabarit 5 : Rec PFD","Gabarit 5 : Rec PFD",298.7930673440062,299,"='[Fichier calcul grille_VTSNC_ 2018-2019.xlsx]Feuille de calcul'!Z27"]
["Régénération artificielle","Plantation uniforme et regarni manuel sauf PEH","Gabarit 4 : Rec 200cc","Gabarit 4 : Rec 200cc","Taux variable","Gabarit 4 : Rec 200cc","Gabarit 4 : Rec 200cc",260.82909646133527,261,"='[Fichier calcul grille_VTSNC_ 2018-2019.xlsx]Feuille de calcul'!Z28"]
["Régénération artificielle","Plantation uniforme et regarni manuel sauf PEH","Gabarit 3 : Rec 45-110","Gabarit 3 : Rec 45-110","Taux variable","Gabarit 3 : Rec 45-110","Gabarit 3 : Rec 45-110",148.51610505853952,149,"='[Fichier calcul grille_VTSNC_ 2018-2019.xlsx]Feuille de calcul'!Z29"]
["Régénération artificielle","Plantation uniforme et regarni manuel sauf PEH","Gabarit 2 : Rec 67-50","Gabarit 2 : Rec 67-50","Taux variable","Gabarit 2 : Rec 67-50","Gabarit 2 : Rec 67-50",86.974470772450658,87,"='[Fichier calcul grille_VTSNC_ 2018-2019.xlsx]Feuille de calcul'!Z30"]
["Régénération artificielle","Plantation uniforme et regarni manuel sauf PEH","Gabarit 1 : Rec 113-25","Gabarit 1 : Rec 113-25","Taux variable","Gabarit 1 : Rec 113-25","Gabarit 1 : Rec 113-25",82.011779601611536,82,"='[Fichier calcul grille_VTSNC_ 2018-2019.xlsx]Feuille de calcul'!Z31"]
["Régénération artificielle","Plantation et regarni mécanique (Scarificateur-planteur (Bracke P-11a)","1500 plants/ha et +","Récipient 45-110","Taux fixe","Taux à l'hectare","d2",1264.5601152550284,1265,"='[Fichier calcul grille_VTSNC_ 2018-2019.xlsx]Feuille de calcul'!Z47"]
["Régénération artificielle","Plantation et regarni mécanique (Scarificateur-planteur (Bracke P-11a)","1500 plants/ha et +","Récipient 25-200","Taux fixe","Taux à l'hectare","d2",1291.3900367335475,1291,"='[Fichier calcul grille_VTSNC_ 2018-2019.xlsx]Feuille de calcul'!Z48"]
["Régénération artificielle","Plantation et regarni mécanique (Scarificateur-planteur (Bracke P-11a)","1499 plants/ha et -","Récipient 45-110","Taux fixe","Taux à l'hectare","d2",1379.2562607597974,1379,"='[Fichier calcul grille_VTSNC_ 2018-2019.xlsx]Feuille de calcul'!Z49"]
["Régénération artificielle","Plantation et regarni mécanique (Scarificateur-planteur (Bracke P-11a)","1499 plants/ha et -","Récipient 25-200","Taux fixe","Taux à l'hectare","d2",1406.0899773317003,1406,"='[Fichier calcul grille_VTSNC_ 2018-2019.xlsx]Feuille de calcul'!Z50"]
["Régénération artificielle","Plantation uniforme PEH","Racine nue Plant de forte dimension",null,"Taux fixe","Taux à l'hectare","d2",667.35474273071213,667,"='[Fichier calcul grille_VTSNC_ 2018-2019.xlsx]Feuille de calcul'!Z51"]
["Régénération artificielle","Plantation par enrichissement","Enrichissement (350p/ha) ou Regarni pins/feuillus (< 799p/ha)","300 plants/ha par puit de lumière","Taux fixe","Taux à l'hectare",null,719.33160900294797,719,"='[Fichier calcul grille_VTSNC_ 2018-2019.xlsx]Feuille de calcul'!Z52"]
["Régénération artificielle","Ensemencement","Ensemencement","Terrestre manuel","Taux fixe","Taux à l'hectare",null,195.29136878394485,195,"='[Fichier calcul grille_VTSNC_ 2018-2019.xlsx]Feuille de calcul'!Z53"]
["Fertilisation"]
["Éducation de peuplement","Dégagement par coupe mécanique","Dégagement mécanique de la régénération","Dénombrement à 1m","Taux variable","Taux moyen","Taux moyen",1254.2882665887214,1254,"='[Fichier calcul grille_VTSNC_ 2018-2019.xlsx]Feuille de calcul'!Z58"]
["Éducation de peuplement","Dégagement par coupe mécanique","Dégagement mécanique de la régénération","Dénombrement à 1m","Taux variable","Variable 1","Variable 1",831.57789074626146,832,"='[Fichier calcul grille_VTSNC_ 2018-2019.xlsx]Feuille de calcul'!Z59"]
["Éducation de peuplement","Dégagement par coupe mécanique","Dégagement mécanique de la régénération","Dénombrement à 1m","Taux variable","Variable 2","Variable 2",11.740200005486235,11.74,"=ARRONDI('[Fichier calcul grille_VTSNC_ 2018-2019.xlsx]Feuille de calcul'!Z60;2)"]
["Éducation de peuplement","Dégagement par coupe mécanique","Dégagement mécanique de la régénération","Dénombrement à 1m","Taux variable","Variable 3","Variable 3",4.0699360019018941E-3,4.1000000000000003E-3,"='[Fichier calcul grille_VTSNC_ 2018-2019.xlsx]Feuille de calcul'!Z61"]
["Éducation de peuplement","Dégagement par coupe mécanique","Dégagement mécanique de la régénération","Dénombrement à 1m","Taux variable","Variable 4","Variable 4",135.79498006345742,135.79,"='[Fichier calcul grille_VTSNC_ 2018-2019.xlsx]Feuille de calcul'!Z62"]
["Éducation de peuplement","Entretien de la strate gaulis (2 m de hauteur moyenne)","Secteur d'intervention sans choix de tige, soit inter spécifique (par groupe d'essence, résineux / feuillus) et sans espacement ","Gaulis I","Taux variable","Taux moyen","Taux moyen",1075.4697330784254,1075,"='[Fichier calcul grille_VTSNC_ 2018-2019.xlsx]Feuille de calcul'!Z63"]
["Éducation de peuplement","Entretien de la strate gaulis (2 m de hauteur moyenne)","Secteur d'intervention sans choix de tige, soit inter spécifique (par groupe d'essence, résineux / feuillus) et sans espacement ","Gaulis I","Taux variable","Variable 1","Variable 1",805.55546874992081,805.56,"='[Fichier calcul grille_VTSNC_ 2018-2019.xlsx]Feuille de calcul'!Z64"]
["Éducation de peuplement","Entretien de la strate gaulis (2 m de hauteur moyenne)","Secteur d'intervention sans choix de tige, soit inter spécifique (par groupe d'essence, résineux / feuillus) et sans espacement ","Gaulis I","Taux variable","Variable 2","Variable 2",1.0324409957852384E-2,1.03E-2,"='[Fichier calcul grille_VTSNC_ 2018-2019.xlsx]Feuille de calcul'!Z65"]
["Éducation de peuplement","Entretien de la strate gaulis (2 m de hauteur moyenne)","Secteur d'intervention sans choix de tige, soit inter spécifique (par groupe d'essence, résineux / feuillus) et sans espacement ","Gaulis I","Taux variable","Variable 3","Variable 3",-196.88014280634434,196.88,"='[Fichier calcul grille_VTSNC_ 2018-2019.xlsx]Feuille de calcul'!Z66"]
["Éducation de peuplement","Entretien de la strate gaulis (2 m de hauteur moyenne)","Secteur d'intervention sans choix de tige, soit inter spécifique (par groupe d'essence, résineux / feuillus) et sans espacement ","Gaulis II","Taux variable","Taux moyen","Taux moyen",1299.2410617924577,1299,"='[Fichier calcul grille_VTSNC_ 2018-2019.xlsx]Feuille de calcul'!Z67"]
["Éducation de peuplement","Entretien de la strate gaulis (2 m de hauteur moyenne)","Secteur d'intervention sans choix de tige, soit inter spécifique (par groupe d'essence, résineux / feuillus) et sans espacement ","Gaulis II","Taux variable","Variable 1","Variable 1",567.6348382856562,567.63,"='[Fichier calcul grille_VTSNC_ 2018-2019.xlsx]Feuille de calcul'!Z68"]
["Éducation de peuplement","Entretien de la strate gaulis (2 m de hauteur moyenne)","Secteur d'intervention sans choix de tige, soit inter spécifique (par groupe d'essence, résineux / feuillus) et sans espacement ","Gaulis II","Taux variable","Variable 2","Variable 2",4387.8341980331143,4387.83,"='[Fichier calcul grille_VTSNC_ 2018-2019.xlsx]Feuille de calcul'!Z69"]
["Éducation de peuplement","Éclaircie précommerciale par puits de lumière",null,null,"Taux variable","Taux moyen (Exécution- Martelage-Taille)","Taux moyen (exe-mart-tail)",1337.959848528345,1338,"='[Fichier calcul grille_VTSNC_ 2018-2019.xlsx]Feuille de calcul'!Z70"]
["Éducation de peuplement","Éclaircie précommerciale par puits de lumière",null,null,"Taux variable","Variable 1","Variable 1",0.4470027153587412,0.44700000000000001,"='[Fichier calcul grille_VTSNC_ 2018-2019.xlsx]Feuille de calcul'!Z71"]
["Éducation de peuplement","Éclaircie précommerciale par puits de lumière",null,null,"Taux variable","Variable 2","Pour équation",null,0.1452]
["Éducation de peuplement","Éclaircie précommerciale par puits de lumière",null,null,"Taux variable","Variable 3 Martelage","Variable 3 - Martelage",36.962312737252468,37,"='[Fichier calcul grille_VTSNC_ 2018-2019.xlsx]Feuille de calcul'!Z72"]
["Éducation de peuplement","Éclaircie précommerciale par puits de lumière",null,null,"Taux variable","Variable 4 Martelage","Variable 4 - Martelage",0.12036897310339933,0.12039999999999999,"='[Fichier calcul grille_VTSNC_ 2018-2019.xlsx]Feuille de calcul'!Z73"]
["Éducation de peuplement","Éclaircie précommerciale par puits de lumière",null,null,"Taux variable","Variable 5 Martelage","Variable 5 - Martelage",98.632178837555884,98.63,"='[Fichier calcul grille_VTSNC_ 2018-2019.xlsx]Feuille de calcul'!Z74"]
["Éducation de peuplement","Éclaircie précommerciale par puits de lumière",null,null,"Taux variable","Variable 6 Taille","Variable 6 - Taille",42.911689317306049,42.91,"='[Fichier calcul grille_VTSNC_ 2018-2019.xlsx]Feuille de calcul'!Z75"]
["Éducation de peuplement","Éclaircie précommerciale par puits de lumière",null,null,"Taux variable","Variable 7","Variable 7 - Constante totale",782.28607715083695,782.29,"='[Fichier calcul grille_VTSNC_ 2018-2019.xlsx]Feuille de calcul'!Z76"]
["Éducation de peuplement","Éclaircie précommerciale par puits de lumière",null,null,"Taux variable","Martelage+Taille","Pour équation",148.21146028005001,148.21,"='[Fichier calcul grille_VTSNC_ 2018-2019.xlsx]Feuille de calcul'!Z78"]
["Éducation de peuplement","Éclaircie précommerciale par puits de lumière",null,null,"Taux variable","Taille","Variable 8  - Constante exécution",634.07461687078694,634.07000000000005,"='[Fichier calcul grille_VTSNC_ 2018-2019.xlsx]Feuille de calcul'!Z77"]
["Éducation de peuplement","Éclaircie précommerciale par puits de lumière",null,null,"Constante","EPC","Variable 9 -  Constante martelage et taille",148.21146028005001,148.21,"='[Fichier calcul grille_VTSNC_ 2018-2019.xlsx]Feuille de calcul'!Z78"]
["Éducation de peuplement","Éclaircie précommerciale par puits de lumière",null,null,"Constante","Martelage","Variable 10 - Constante martelage",30.801927281043721,30.8,"='[Fichier calcul grille_VTSNC_ 2018-2019.xlsx]Feuille de calcul'!Z79"]
["Éducation de peuplement","Éclaircie précommerciale par puits de lumière",null,null,"Constante","Taille","Variable 11 - Constante taille",117.40953299900629,117.41,"='[Fichier calcul grille_VTSNC_ 2018-2019.xlsx]Feuille de calcul'!Z80"]
["Éducation de peuplement","Élagage pour fins de qualité",null,null,"Taux variable","Taux moyen","Taux moyen",1451.972077936083,1452,"='[Fichier calcul grille_VTSNC_ 2018-2019.xlsx]Feuille de calcul'!Z81"]
["Éducation de peuplement","Élagage pour fins de qualité",null,null,"Taux variable","Variable 1","Variable 1",2.4012193585818367E-2,2.4E-2,"='[Fichier calcul grille_VTSNC_ 2018-2019.xlsx]Feuille de calcul'!Z82"]
["Éducation de peuplement","Élagage pour fins de qualité",null,null,"Taux variable","Variable 2","Variable 2",0.34928956718492871,0.3493,"='[Fichier calcul grille_VTSNC_ 2018-2019.xlsx]Feuille de calcul'!Z83"]
["Éducation de peuplement","Élagage pour fins de qualité",null,null,"Taux variable","Variable 3","Variable 3",0.58168074803499514,0.58169999999999999,"='[Fichier calcul grille_VTSNC_ 2018-2019.xlsx]Feuille de calcul'!Z84"]
["Éducation de peuplement","Élagage pour fins de qualité",null,null,"Taux variable","Variable 4","Variable 4",5.8097795212516658E-2,5.8099999999999999E-2,"='[Fichier calcul grille_VTSNC_ 2018-2019.xlsx]Feuille de calcul'!Z85"]
["Éducation de peuplement","Élagage pour fins de qualité",null,null,"Taux variable","Variable 5","Variable 5",0.49186119819573548,0.4919,"='[Fichier calcul grille_VTSNC_ 2018-2019.xlsx]Feuille de calcul'!Z86"]
["Éducation de peuplement","Élagage pour fins de qualité",null,null,"Taux variable","Variable 6 Martelage","variable6 martelage",117.38410675306386,117.38,"='[Fichier calcul grille_VTSNC_ 2018-2019.xlsx]Feuille de calcul'!Z87"]
["Éducation de peuplement","Élagage pour fins de qualité",null,null,"Taux variable","Variable 7 Martelage","variable7 martelage",175.70774878494143,175.71,"='[Fichier calcul grille_VTSNC_ 2018-2019.xlsx]Feuille de calcul'!Z88"]
["Éducation de peuplement","Élagage pour fins de qualité",null,null,"Taux variable","Variable 8","Variable 8",556.38009528115742,556.38,"='[Fichier calcul grille_VTSNC_ 2018-2019.xlsx]Feuille de calcul'!Z89"]
["Éducation de peuplement","Taille Phytosanitaire",null,null,"Taux variable","Taux moyen","Taux moyen",471.78335721578429,472,"='[Fichier calcul grille_VTSNC_ 2018-2019.xlsx]Feuille de calcul'!Z90"]
["Éducation de peuplement","Taille Phytosanitaire",null,null,"Taux variable","Variable 1","Variable 1",1.8563719340470724E-2,1.8599999999999998E-2,"='[Fichier calcul grille_VTSNC_ 2018-2019.xlsx]Feuille de calcul'!Z91"]
["Éducation de peuplement","Taille Phytosanitaire",null,null,"Taux variable","Variable 2","Variable 2",8.8970020741524297E-2,8.8999999999999996E-2,"='[Fichier calcul grille_VTSNC_ 2018-2019.xlsx]Feuille de calcul'!Z92"]
["Éducation de peuplement","Taille Phytosanitaire",null,null,"Taux variable","Variable 3","Variable 3",5.6143931663862681E-2,5.6099999999999997E-2,"='[Fichier calcul grille_VTSNC_ 2018-2019.xlsx]Feuille de calcul'!Z93"]
["Éducation de peuplement","Taille Phytosanitaire",null,null,"Taux variable","Variable 4","Variable 4",0.47586509821548106,0.47589999999999999,"='[Fichier calcul grille_VTSNC_ 2018-2019.xlsx]Feuille de calcul'!Z94"]
["Éducation de peuplement","Taille Phytosanitaire",null,null,"Taux variable","Variable 5","Variable 5",0.10119490908768794,0.1,"=ARRONDI('[Fichier calcul grille_VTSNC_ 2018-2019.xlsx]Feuille de calcul'!Z95;2)"]
["Éducation de peuplement","Taille Phytosanitaire",null,null,"Taux variable","Variable 6","Variable 6",0.44971742036396445,0.44969999999999999,"='[Fichier calcul grille_VTSNC_ 2018-2019.xlsx]Feuille de calcul'!Z96"]
["Éducation de peuplement","Taille Phytosanitaire",null,null,"Taux variable","Variable 7","Variable 7",537.66870040997514,538,"='[Fichier calcul grille_VTSNC_ 2018-2019.xlsx]Feuille de calcul'!Z97"]
["Travaux technique","Valeur de vérification technique","Inventaire après traitement","Traitement de préparation de site mécanisé","Taux variable","Constante","Constante",37.250347140306637,37,"='[Fichier calcul grille_VTSNC_ 2018-2019.xlsx]Feuille de calcul'!Z100"]
["Travaux technique","Valeur de vérification technique","Inventaire après traitement","Traitement de préparation de site mécanisé","Taux variable","Critère 1","Variable 1",2.1728272575680707,2.17,"='[Fichier calcul grille_VTSNC_ 2018-2019.xlsx]Feuille de calcul'!Z101"]
["Travaux technique","Valeur de vérification technique","Inventaire après traitement","Traitement de préparation de site manuelle","Taux fixe","Constante","Constante",22.047403334181396,22,"='[Fichier calcul grille_VTSNC_ 2018-2019.xlsx]Feuille de calcul'!Z102"]
["Travaux technique","Valeur de vérification technique","Inventaire après traitement","Traitement de préparation de site drainage sylvicole","Taux fixe","Constante","Constante",41.085154349563666,41,"='[Fichier calcul grille_VTSNC_ 2018-2019.xlsx]Feuille de calcul'!Z103"]
["Travaux technique","Valeur de vérification technique","Inventaire après traitement","Traitement de régénération artificielle","Taux variable","Constante","Constante",35.575899354859537,36,"='[Fichier calcul grille_VTSNC_ 2018-2019.xlsx]Feuille de calcul'!Z104"]
["Travaux technique","Valeur de vérification technique","Inventaire après traitement","Traitement de régénération artificielle","Taux variable","Variable 1","Variable 1",0.44480926045956332,0.44,"='[Fichier calcul grille_VTSNC_ 2018-2019.xlsx]Feuille de calcul'!Z105"]
["Travaux technique","Valeur de vérification technique","Inventaire après traitement","Traitement d'éducation","Taux variable","Constante","Constante",89.389275938063477,89,"='[Fichier calcul grille_VTSNC_ 2018-2019.xlsx]Feuille de calcul'!Z106"]
["Travaux technique","Valeur de vérification technique","Inventaire après traitement","Traitement d'éducation","Taux variable","Variable 3","Variable 3",6.7050106820553959,6.71,"='[Fichier calcul grille_VTSNC_ 2018-2019.xlsx]Feuille de calcul'!Z107"]
["Travaux technique","Valeur de vérification technique","Inventaire après traitement","Traitement d'éducation","Taux variable","Variable 1","Variable 1",3.3525053410276979,3.35,"='[Fichier calcul grille_VTSNC_ 2018-2019.xlsx]Feuille de calcul'!Z108"]
["Travaux technique","Valeur de vérification technique","Inventaire après traitement","Traitement d'éducation","Taux variable","Variable 2","Variable 2",0.67050106820553945,0.67,"='[Fichier calcul grille_VTSNC_ 2018-2019.xlsx]Feuille de calcul'!Z109"]
["Travaux technique","Valeur de planification","Recherche de secteur d'intervention potentiel (terrain)","Traitement de préparation de site et régénération artificielle","Taux fixe",null,"Constante",4.8079253077613728,5,"='[Fichier calcul grille_VTSNC_ 2018-2019.xlsx]Feuille de calcul'!Z110"]
["Travaux technique","Valeur de planification","Recherche de secteur d'intervention potentiel (terrain)","Traitement d'éducation","Taux fixe",null,"Constante",9.1167053028159817,9,"='[Fichier calcul grille_VTSNC_ 2018-2019.xlsx]Feuille de calcul'!Z111"]
["Travaux technique","Valeur de planification","Recherche de secteur d'intervention trouvé (terrain)","Traitement de préparation de site et régénération artificielle","Taux fixe",null,"Constante",11.198074823197159,11,"='[Fichier calcul grille_VTSNC_ 2018-2019.xlsx]Feuille de calcul'!Z112"]
["Travaux technique","Valeur de planification","Recherche de secteur d'intervention trouvé (terrain)","Traitement d'éducation","Taux fixe",null,"Constante",16.20154717311264,16,"='[Fichier calcul grille_VTSNC_ 2018-2019.xlsx]Feuille de calcul'!Z113"]
["Travaux technique","Valeur de planification","Confection du plan de sondage",null,"Taux fixe",null,"Constante",1.8811650994636291,2,"='[Fichier calcul grille_VTSNC_ 2018-2019.xlsx]Feuille de calcul'!Z114"]
["Travaux technique","Valeur de planification","Inventaire avant traitement","Traitement d'éducation (dégagement, nettoiement et éclaircie précommerciale)","Taux variable","Variable 1","Constante",93.6922021590958,94,"='[Fichier calcul grille_VTSNC_ 2018-2019.xlsx]Feuille de calcul'!Z115"]
["Travaux technique","Valeur de planification","Inventaire avant traitement","Traitement d'éducation (dégagement, nettoiement et éclaircie précommerciale)","Taux variable","Variable 2","Variable 1",0.64058124394458038,0.64,"='[Fichier calcul grille_VTSNC_ 2018-2019.xlsx]Feuille de calcul'!Z116"]
["Travaux technique","Valeur de planification","Inventaire avant traitement","Traitement d'éducation (dégagement, nettoiement et éclaircie précommerciale)","Taux variable","Variable 3","Variable 2",3.2197636208793381,3.22,"='[Fichier calcul grille_VTSNC_ 2018-2019.xlsx]Feuille de calcul'!Z117"]
["Travaux technique","Valeur de planification","Inventaire avant traitement","Traitement d'éducation (dégagement, nettoiement et éclaircie précommerciale)","Taux variable","Variable 4","Variable 3",6.4395272417586762,6.44,"='[Fichier calcul grille_VTSNC_ 2018-2019.xlsx]Feuille de calcul'!Z118"]
["Travaux technique","Valeur de planification","Inventaire avant traitement","Traitement de préparation de site (sauf drainage sylvicole) et régénération artificielle","Taux fixe",null,"Constante",30.631900831242923,31,"='[Fichier calcul grille_VTSNC_ 2018-2019.xlsx]Feuille de calcul'!Z119"]
["Travaux technique","Valeur de planification","Inventaire avant traitement","Traitement de préparation de site (drainage sylvicole - plan et devis)","Taux fixe",null,"Constante",29.650028171216508,30,"='[Fichier calcul grille_VTSNC_ 2018-2019.xlsx]Feuille de calcul'!Z120"]
["Travaux technique","Valeur de planification","Inventaire avant traitement","Traitement d'éducation (élagage et taille)","Taux fixe",null,"Constante",42.827818469534961,43,"='[Fichier calcul grille_VTSNC_ 2018-2019.xlsx]Feuille de calcul'!Z121"]
["Travaux technique","Valeur de planification","Délimitation de secteurs","Traitement de préparation de site et régénération artificielle","Taux fixe",null,"Constante",27.753304577597927,28,"='[Fichier calcul grille_VTSNC_ 2018-2019.xlsx]Feuille de calcul'!Z122"]
["Travaux technique","Valeur de planification","Délimitation de secteurs","Traitement d'éducation","Taux fixe",null,"Constante",136.80289252360305,137,"='[Fichier calcul grille_VTSNC_ 2018-2019.xlsx]Feuille de calcul'!Z123"]
["Éclaircie commerciale","Première éclaircie commerciale de plantation résineuse réservé aux entreprises d'aménagement forestier","Majoration manuelle","Majoration manuelle",null,"Majoration manuelle","Majoration manuelle",0.35,0.35,"Valeurs ECEAF 2018 - SSP"]
["Éclaircie commerciale","Première éclaircie commerciale de plantation résineuse réservé aux entreprises d'aménagement forestier","Formule taux","Formule taux",null,{"$f":"\"Taux ($/m3) = (\"&I103&\" * VREC exp \"&I102&\" ) + \"&I104","v":"Taux ($/m3) = (4,861 * VREC exp -0,682 ) + 8,916"},"Formule taux",-0.68200000000000005,-0.68200000000000005,"Valeurs ECEAF 2018 - SSP"]
["Éclaircie commerciale","Première éclaircie commerciale de plantation résineuse réservé aux entreprises d'aménagement forestier","Formule taux","Formule taux",null,"Variable 1","Formule taux",4.8609999999999998,4.8609999999999998,"Valeurs ECEAF 2018 - SSP"]
["Éclaircie commerciale","Première éclaircie commerciale de plantation résineuse réservé aux entreprises d'aménagement forestier","Formule taux","Formule taux",null,"Variable 2","Formule taux",8.9160000000000004,8.9160000000000004,"Valeurs ECEAF 2018 - SSP"]
["Éclaircie commerciale","Première éclaircie commerciale de plantation résineuse réservé aux entreprises d'aménagement forestier","Formule RUB1","Formule RUB1",null,"Variable 3","Formule RUB1",1145,1145,"Valeurs ECEAF 2018 - SSP"]
["Travaux technique","Valeur des activités liées au martelage pour les traitements commerciaux","Délimitation de secteurs",null,"Taux fixe",null,"Constante",75.85640034239141,76,"='[Fichier calcul grille_VTSNC_ 2018-2019.xlsx]Feuille de calcul'!Z127"]
["Travaux technique","Valeur des activités liées au martelage pour les traitements commerciaux","Martelage",null,"Taux variable","Taux moyen","Constante",0,8.9160000000000004,"='[Fichier calcul grille_VTSNC_ 2018-2019.xlsx]Feuille de calcul'!Z127"]
["Travaux technique","Valeur des activités liées au martelage pour les traitements commerciaux","Martelage",null,"Taux variable","Constante","Constante",144.2301160715844,144.22999999999999,"='[Fichier calcul grille_VTSNC_ 2018-2019.xlsx]Feuille de calcul'!Z130"]
["Travaux technique","Valeur des activités liées au martelage pour les traitements commerciaux","Martelage",null,"Taux variable","Variable 1","Variable 1",35.682471036101894,35.68,"='[Fichier calcul grille_VTSNC_ 2018-2019.xlsx]Feuille de calcul'!Z131"]
["Travaux technique","Valeur des activités liées au martelage pour les traitements commerciaux","Martelage",null,"Taux variable","Variable 2","Variable 2",4.0921964158999149,4.09,"='[Fichier calcul grille_VTSNC_ 2018-2019.xlsx]Feuille de calcul'!Z132"]
["Travaux technique","Valeur des activités liées au martelage pour les traitements commerciaux","Martelage en éclaircie commerciale en peuplement résineux (ou mixte à tendance résineuse)","Martelage négatif","Taux fixe",null,"Constante",183.44823091251104,183,"='[Fichier calcul grille_VTSNC_ 2018-2019.xlsx]Feuille de calcul'!Z133"]
["Travaux technique","Valeur des activités liées au martelage pour les traitements commerciaux","Martelage en éclaircie commerciale en peuplement résineux (ou mixte à tendance résineuse)","Martelage positif","Taux fixe",null,"Constante",95.61940559305981,96,"='[Fichier calcul grille_VTSNC_ 2018-2019.xlsx]Feuille de calcul'!Z134"]
["Travaux technique","Valeur des activités liées au martelage pour les traitements commerciaux","Inventaire après martelage",null,"Taux fixe",null,"Constante",23.229439282451846,23,"='[Fichier calcul grille_VTSNC_ 2018-2019.xlsx]Feuille de calcul'!Z135"]

{"sheet":"Menus","index":9,"n_rows":544,"n_cols":9,"rows_kept":544,"cut":false,"hidden":true,"merged":[[482,0,482,2],[467,0,467,2],[423,0,423,2],[0,0,0,8],[262,0,262,2],[159,0,159,2],[374,0,374,2]]}
["Onglet «Préparation de terrain»"]
[]
["Traitement unique_INDIRECT_sans_underscore","Traitement unique_INDIRECT","Traitement","Équipement","Machinerie_INDIRECT_1","Machinerie_INDIRECT_2","Machinerie_INDIRECT_3","Taux","Unité"]
["Déblaiement des résidus de coupe","PRT_Déblaiement_des_résidus_de_coupe","Déblaiement_des_résidus_de_coupe","Abatteuse groupeuse après feux",null,null,null,{"$f":"'Calculs grille'!$I$15","v":892},"$/hectare"]
["Drainage sylvicole","PRT_Drainage_sylvicole","Déblaiement_des_résidus_de_coupe","Bouteur avec pelle râteau",null,null,null,{"$f":"'Calculs grille'!$I$14","v":754},"$/hectare"]
["Scarifiage par hersage ou labour","PRT_Scarifiage_par_hersage_ou_labour","Déblaiement_des_résidus_de_coupe","Excavatrice ou débusqueuse ou abatteuse","PRT_Excavatrice_ou_debusqueuse_ou_abatteuse_R","PRT_Excavatrice_ou_debusqueuse_ou_abatteuse_TP","PRT_Excavatrice_ou_debusqueuse_ou_abatteuse_VEH","Variable","$/hectare"]
["Scarifiage par mixage par placeau","PRT_Scarifiage_par_mixage_par_placeau","Scarifiage_par_monticule_avec_scarificateur","Bracke M-36a avec débardeur",null,null,null,{"$f":"'Calculs grille'!$I$8","v":320},"$/hectare"]
["Scarifiage par monticule avec scarificateur","PRT_Scarifiage_par_monticule_avec_scarificateur","Scarifiage_par_monticule_avec_scarificateur","Bracke M-36a avec porteur",null,null,null,{"$f":"'Calculs grille'!$I$9","v":384},"$/hectare"]
["Scarifiage par monticule ou inversion par placeau ou décapage par placeau","PRT_Scarifiage_par_monticule_ou_inversion_par_placeau_ou_décapage_par_placeau","Drainage_sylvicole","Milieu boisé",null,null,null,{"$f":"'Calculs grille'!$I$17","v":2568},"$/km ou Mm³"]
["Scarifiage par sillon avec scarificateur","PRT_Scarifiage_par_sillon_avec_scarificateur","Drainage_sylvicole","Milieu dénudé",null,null,null,{"$f":"'Calculs grille'!$I$16","v":2311},"$/km ou Mm³"]
["Inscrire une valeur","PRT_Inscrire_une_valeur","Scarifiage_par_monticule_ou_inversion_par_placeau_ou_décapage_par_placeau","Excavatrice","PRT_Excavatrice_R","PRT_Excavatrice_TP","PRT_Excavatrice_VEH","Variable","$/hectare"]
[null,null,"Scarifiage_par hersage_ou_labour","Herses forestières",null,null,null,{"$f":"'Calculs grille'!$I$10","v":408},"$/hectare"]
[null,null,"Scarifiage_par_mixage_par_placeau","Taupe ou pioche forestière",null,null,null,{"$f":"'Calculs grille'!$I$11","v":598},"$/Mmicrosites"]
[null,null,"Scarifiage_par_sillon_avec_scarificateur","Bracke T-26 avec débardeur, Types TTS hydrauliques, Donaren ou Requin",null,null,null,{"$f":"'Calculs grille'!$I$5","v":313},"$/hectare"]
[null,null,"Scarifiage_par_sillon_avec_scarificateur","Bracke T-26 avec porteur",null,null,null,{"$f":"'Calculs grille'!$I$6","v":355},"$/hectare"]
[null,null,"Scarifiage_par_sillon_avec_scarificateur","Rouleau écraseur et scarificateur à disques passifs",null,null,null,{"$f":"'Calculs grille'!$I$4","v":726},"$/hectare"]
[null,null,"Scarifiage_par_sillon_avec_scarificateur","Types TTS passifs",null,null,null,{"$f":"'Calculs grille'!$I$3","v":213},"$/hectare"]
[null,null,"Scarifiage_par_sillon_avec_scarificateur","Wadell",null,null,null,{"$f":"'Calculs grille'!$I$7","v":374},"$/hectare"]
[null,null,"Inscrire_une_valeur","Inscrire une valeur",null,null,null,0,"-"]
[]
["PA0"]
["Réduction selon la distance entre les passages ","Nb Microsite /ha désiré"]
[3.5,"2800 et + microsites par hectare"]
[4,"2200- 2799 microsites par hectare"]
[4.5,"2000- 2199 microsites par hectare"]
[5,"1600 - 1999 microsites par hectare"]
["Distance entre les passages (inscrire une distance)"]
["Constante 1",1.4659]
["Constante 2",-7.6499999999999999E-2]
["Formule référencée",{"$f":"\" =ARRONDI(\"&B28&\" EXP (\"&B29&\" * DP);4)\"","v":" =ARRONDI(1,4659 EXP (-0,0765 * DP);4)"}]
[]
["H1"]
["AVEC hébergement (inscrire un taux)",0]
["AVEC hébergement (taux maximum)",3.7499999999999999E-2]
["SANS hébergement",0]
[]
["H3"]
["AVEC hébergement (inscrire un taux)",0]
["AVEC hébergement (taux maximum)",9.0999999999999998E-2]
["SANS hébergement",0]
[]
["D200"]
["Distance de 0 à 199 kilomètres",0]
["Distance de 200 kilomètres et plus",5.8000000000000003E-2]
[]
["CEAF1 et ISO1"]
["CEAF",4.1999999999999997E-3]
["ISO",5.1000000000000004E-3]
["Pas de majoration",0]
[]
["Taux variable selon formule"]
["Constante",null,2.718]
["TP : Type de couvert","Débusqueuse : Types de couvert résineux-feuillus-mixte",0,"PRT_Debusqueuse_Type_de_peuplement_résineux_feuillus_mixtes_VEH"]
[null,"Excavatrice : Types de couvert feuillus ou mixte",1,"PRT_Excavatrice_Type_de_peuplement_feuillus_ou_mixtes_VEH"]
[null,"Excavatrice : Type de couvert résineux",0,"PRT_Excavatrice_Type_de_peuplement_résineux_VEH"]
["TR : Type de procédé de récolte","Peuplement brûlé: aucune récolte de bois",1,"PRT_Peuplement_brule"]
[null,"Peuplement brûlé: récolte de bois ou peuplement en régénération de moins de 7m",0,"PRT_Peuplement_brule"]
[null,"Peuplement vert: ébranchage et écimage à la souche",1,"PRT_Peuplement_vert"]
[null,"Peuplement vert: ébranchage et écimage en bordure de route",0,"PRT_Peuplement_vert"]
["PER : Type de perturbation","Peuplement brûlé",1]
[null,"Peuplement vert",0]
["Type d'engin forestier","Abatteuse lors de la récolte",3]
[null,"Excavatrice",2]
[null,"Débusqueuse",1]
[]
["Taux variable"]
[0.08]
[0.22]
[0.33]
[0.85]
["Superficie préparée (inscrire un pourcentage)"]
[]
["Délimitation des secteur"]
[0]
[{"$f":"'Calculs grille'!$I$99","v":28}]
[]
["Vérification"]
["Taux - mécanisé",0]
[null,{"$f":"'Calculs grille'!$I$77","v":37}]
["Taux - manuel",0]
[null,{"$f":"'Calculs grille'!$I$79","v":22}]
["Taux - Drainage",0]
[null,{"$f":"'Calculs grille'!$I$80","v":41}]
[]
["Critères"]
["Oui"]
["Non"]
[]
["Codes_DICA"]
["DEBL-PART"]
["DEBL-PLEIN"]
["DEBR"]
["DR_APP"]
["DR_SYS"]
["SCA_DECAP- PART"]
["SCA_DECAP- PLEIN"]
["SCA_HERS- PART"]
["SCA_HERS- PLEIN"]
["SCA_INV-PART"]
["SCA_INV-PLEIN"]
["SCA_MIX-PART"]
["SCA_MIX-PLEIN"]
["SCA_MONT- PART"]
["SCA_MONT- PLEIN"]
["SCA_SILL- PART"]
["SCA_SILL-PLEIN"]
[]
["Codes_RATF"]
["AGR"]
["AGRP"]
["BPR"]
["BPRPA"]
["BRM36D"]
["BRM36DP"]
["BRM36P"]
["BRM36PP"]
["DEBR"]
["DH"]
["DHAD"]
["DHADP"]
["DHAP"]
["DHAPP"]
["DHP"]
["DO"]
["DOP"]
["DRAPPMB"]
["DRAPPMD"]
["DRAV"]
["DRAVP"]
["DRDV"]
["DRDVP"]
["DREV"]
["DREVP"]
["DRSYSMB"]
["DRSYSMD"]
["EQSLY"]
["EQSLYP"]
["HERSE"]
["HERSEP"]
["REQ"]
["REQP"]
["ROUECA"]
["ROUECAP"]
["SCAIPV"]
["SCAIPVP"]
["SCAMV"]
["SCAMVP"]
["SCAPV"]
["SCAPVP"]
["TAUPIOF"]
["TAUPIOFP"]
["TTS"]
["TTSP"]
["WAD"]
["WADP"]
[]
[]
[]
[]
["Onglet «Régénération artificielle»"]
[]
["Traitement unique","Taux","Unité"]
["Ensemencement terrestre manuel",{"$f":"'Calculs grille'!I33","v":195},"$/ha"]
["Plantation uniforme et regarni en plein manuel sauf PEH","Variable","$/Mplants"]
["Plantation uniforme et regarni en plein manuel sentier préparé sauf PEH","Variable","$/Mplants"]
["Plantation uniforme et regarni mécanique (Scarificateur-planteur Bracke P-11a)","Variable selon le gabarit des plants","$/Mplants"]
["Plantation uniforme PEH",{"$f":"'Calculs grille'!I31","v":667},"$/Mplants"]
["Regarni de sentier et enrichissement manuel sauf PEH","Variable","$/Mplants"]
["Inscrire une valeur",0,"-"]
[]
["Préparation de terrain"]
["AVEC préparation de terrain",1]
["SANS préparation de terrain",0]
[]
["Gabarit"]
["PFD livré en récipient",{"$f":"'Calculs grille'!I22","v":299}]
["Racine nue PFD",{"$f":"'Calculs grille'!I21","v":351}]
["Récipient 25-200",{"$f":"'Calculs grille'!I23","v":261}]
["Récipient 45-110",{"$f":"'Calculs grille'!I24","v":149}]
["Récipient 67-50",{"$f":"'Calculs grille'!I25","v":87}]
["Récipient 113-25",{"$f":"'Calculs grille'!I26","v":82}]
[]
["Traitements de plantation mécanique"]
["Récipient 45-110, densité inférieure ou égale à 1499 plants/ha",{"$f":"'Calculs grille'!I29","v":1379}]
["Récipient 45-110, densité supérieure ou égale à 1500 plants/ha",{"$f":"'Calculs grille'!I27","v":1265}]
["Récipient 25-200, densité inférieure ou égale à 1499 plants/ha",{"$f":"'Calculs grille'!I30","v":1406}]
["Récipient 25-200, densité supérieure ou égale à 1500 plants/ha",{"$f":"'Calculs grille'!I28","v":1291}]
[]
["H2 ou TC"]
["AVEC hébergement (inscrire un taux)",0]
["AVEC hébergement (taux maximum)",0.126]
["AVEC transport collectif",4.9000000000000002E-2]
["SANS majoration",0]
[]
["H3"]
["AVEC hébergement (inscrire un taux)",0]
["AVEC hébergement (taux maximum)",9.0999999999999998E-2]
["SANS hébergement",0]
[]
["D200"]
["Distance de 0 à 199 kilomètres",0]
["Distance de 200 kilomètres et plus",5.8000000000000003E-2]
[]
["CEAF2 et ISO2"]
["CEAF",1.1999999999999999E-3]
["ISO",1.5E-3]
["Pas de majoration",0]
[]
["Délimitation des secteur"]
[0]
[{"$f":"'Calculs grille'!I99","v":28}]
[]
["Taux vérification"]
[0]
[{"$f":"'Calculs grille'!I81","v":36}]
[]
["Vérification - Critères"]
["Oui"]
["Non"]
[]
["Vérification traçabilité des plants"]
["Oui",1.83]
["Non",0]
[]
["Codes DICA"]
["ENS_TER-MANU"]
["PL_AGRO-MEL"]
["PL_AGRO-MONO"]
["PL_ENR-MEL"]
["PL_ENR-MONO"]
["PL_REG-MEL"]
["PL_REG-MONO"]
["PL_U-MEL"]
["PL_U-MONO"]
[]
["Codes_RATF"]
["ENR"]
["ENSM"]
["P110"]
["P200"]
["P25"]
["P50"]
["PLGE"]
["PPFDBAC"]
["PPFDR"]
["PPFDRN"]
["PPHBO"]
["RPFDBAC"]
["RPFDR"]
["RPFDRN"]
["RR110"]
["RR200"]
["RR25"]
["RR50"]
["SCAPL110P"]
["SCAPL110R"]
["SCAPL200P"]
["SCAPL200R"]
[]
[]
[]
[]
["Onglet «Éducation de peuplement»"]
[]
["Traitement unique"]
["Dégagement mécanique"]
["Élagage pour fins de qualité du pin blanc et rouge"]
["EPC par puit de lumière ET Taille de formation avec martelage"]
["Gaulis I (interspécifique et sans espacement)"]
["Gaulis II (intraspécifique avec espacement OU résineux sans espacement)"]
["Taille phytosanitaire"]
["Inscrire une valeur"]
[]
["Dégagement"]
["Mode","Plantation ou regarni de plantation",0]
[null,"Régénération naturelle ou regarni de régénération naturelle",1]
[]
["Gaulis I"]
["CP","Peuplement naturel",1]
[null,"Plantation avec SRLC >= 20%",1]
[null,"Plantation avec SRLC < 20% et DI > 20 000",1.165]
[null,"SRLC <20% et DI =< 20 000",1]
[]
["Gaulis II"]
["TP","Mixte à tendance résineuse",1.1000000000000001]
[null,"Peuplier",0.8]
[null,"Résineux",1]
["CP","Peuplement naturel avec espacement",1]
[null,"Plantation avec espacement et un coefficient de distribution  >=75%",1]
[null,"Plantation avec espacement et un coefficient de distribution < 75%",0.88]
[null,"Plantation sans espacement et peuplement naturel sans espacement",0.88]
[]
["EPC Puit lumière"]
["TAIL","AVEC taille de formation",1]
[null,"SANS taille de formation",0]
[]
["EPC Puit lumière"]
["Martelage","AVEC Martelage",1]
[null,"SANS Martelage",0]
[]
["EPC Puit lumière"]
["EPC","AVEC EPC",1]
[null,"SANS EPC",0]
[]
["Élagage Qualité"]
["LONGELA","Élagage de 3,99 mètres et moins",0]
[null,"Élagage de 4,00 mètres et plus",1]
[]
["MP"]
["Martelage de 100 tiges/ha",{"$f":"'Calculs grille'!I66","v":117.38}]
["Martelage de 400 tiges/ha",{"$f":"'Calculs grille'!I67","v":175.71}]
["SANS martelage",0]
[]
["Délimitation des secteurs"]
[0]
[{"$f":"'Calculs grille'!I100","v":137}]
[]
["Taux vérification"]
[0]
[{"$f":"'Calculs grille'!I83","v":89}]
[]
["Vérification critères"]
["Oui"]
["Non"]
[]
["H2 ou TC"]
["AVEC hébergement (inscrire un taux)",0]
["AVEC hébergement (taux maximum)",0.126]
["AVEC transport collectif",4.9000000000000002E-2]
["SANS majoration",0]
[]
["H3"]
["AVEC hébergement (inscrire un taux)",0]
["AVEC hébergement (taux maximum)",9.0999999999999998E-2]
["SANS hébergement",0]
[]
["D200"]
["Distance de 0 à 199 kilomètres",0]
["Distance de 200 kilomètres et plus",5.8000000000000003E-2]
[]
["CEAF3 et ISO3"]
["CEAF",2.3E-3]
["ISO",3.8E-3]
["Pas de majoration",0]
[]
["Codes_DICA"]
["DEG_MEC"]
["DEP"]
["ELAG"]
["EPC_PUITS"]
["EPC_SYS"]
["NET_MEC"]
["TAILFOR_CLASS"]
["TAILFOR_SYST"]
["TAILPHY"]
[]
["Codes_RATF"]
["DEP"]
["DMAR"]
["DMRV1M"]
["ELAGV"]
["EPCPUIT13V"]
["EPCSYSSG"]
["NETSG"]
["NETSG85"]
["NETTOIMAV"]
["NETTOIMEV"]
["TAILFC"]
["TAILFS"]
["TAILV"]
[]
[]
[]
[]
["Onglet «Éclaircie commerciale EAF»"]
[]
["Traitement unique","Taux","Unité"]
["Éclaircie commerciale EAF","Variable","$/m³"]
["Inscrire une valeur",0,"-"]
[]
["H5"]
["AVEC hébergement",4.5999999999999999E-2]
["SANS hébergement",0]
[]
["MAN"]
["Opérations MANUELLES",{"$f":"'Calculs grille'!I101","v":0.35}]
["Opérations MÉCANISÉES",0]
[]
["RUB1"]
["Pas de rubannage des sentiers"]
[15]
[16]
[17]
[18]
[19]
[20]
[21]
[22]
[23]
[24]
[25]
[]
["Codes DICA"]
["EC_MIXTE-BAS"]
["EC_MIXTE-HAUT"]
["EC_MIXTE-NEUTRE"]
["EC_SEL-BAS"]
["EC_SEL-HAUT"]
["EC_SEL-NEUTRE"]
["EC_SYS"]
[]
["Codes_RATF"]
["ECMIXBASPR"]
["ECMIXHAUPR"]
["ECMIXNEUPR"]
["ECSELBASPR"]
["ECSELHAUPR"]
["ECSELNEUPR"]
["ECSYPR"]
[]
[]
[]
[]
["Onglet «Martelage»"]
[]
["Traitement unique","Taux","Unité"]
["Martelage","Variable","$/ha"]
["Martelage négatif - EC (résineux ou mixte résineux)",{"$f":"'Calculs grille'!I111","v":183},"$/ha"]
["Martelage positif - EC (résineux ou mixte résineux)",{"$f":"'Calculs grille'!I112","v":96},"$/ha"]
["Inscrire une valeur",0,"-"]
[]
["Type de coupe","Facteur"]
["CRS",0.64200000000000002]
["CPI",1]
["CPR",1]
["CJ",1]
["EC feuillus et pins",1]
[]
["H3"]
["AVEC hébergement (inscrire un taux)",0]
["AVEC hébergement (taux maximum)",9.0999999999999998E-2]
["SANS hébergement",0]
[]
["D200"]
["Distance de 0 à 199 kilomètres",0]
["Distance de 200 kilomètres et plus",5.8000000000000003E-2]
[]
["Délimitation des secteurs"]
[0]
[{"$f":"'Calculs grille'!I106","v":76}]
[]
["Taux vérification"]
[0]
[{"$f":"'Calculs grille'!I113","v":23}]
[]
["Codes_DICA"]
["N/A"]
[]
["Codes_RATF"]
["INVAPM"]
["MARTGE"]
["MECON"]
["MECOP"]
[]
[]
[]
[]
["Onglet «Travaux de planification»"]
[]
["Critères"]
["Oui"]
["Non"]
[]
["H3"]
["AVEC hébergement (inscrire un taux)",0]
["AVEC hébergement (taux maximum)",9.0999999999999998E-2]
["SANS hébergement",0]
[]
["D200"]
["Distance de 0 à 199 kilomètres",0]
["Distance de 200 kilomètres et plus",5.8000000000000003E-2]
[]
["Autres"]
[]
["UA_2018"]
["01171"]
["01272"]
["02371"]
["02471"]
["02571"]
["02651"]
["02661"]
["02662"]
["02663"]
["02664"]
["02665"]
["02666"]
["02751"]
["03153"]
["03171"]
["03351"]
["03451"]
["03571"]
["04151"]
["04251"]
["04351"]
["04352"]
["05151"]
["06151"]
["06271"]
["06452"]
["06471"]
["07151"]
["07152"]
["07251"]
["07351"]
["07352"]
["07451"]
["08151"]
["08152"]
["08251"]
["08351"]
["08451"]
["08462"]
["08551"]
["08562"]
["08651"]
["08652"]
["08663"]
["08664"]
["08665"]
["08666"]
["08751"]
["08762"]
["08763"]
["08764"]
["09351"]
["09352"]
["09471"]
["09551"]
["09751"]
["11161"]
["11262"]
["11263"]

{"sheet":"Traitements admissibles","index":10,"n_rows":212,"n_cols":11,"rows_kept":212,"cut":false,"hidden":true,"merged":[]}
["Famille","Traitement ","Variante","Modalité sylvicole","Phase","Code DICA","Code RATF","Description","Admissibilité","Unité","Type de taux"]
["Traitements de préparation de terrain","Déblaiement de la végétation et des résidus de coupes",null,"Partiel",null,"DEBL-PART","BPRPA","Déblaiement des résidus de coupe, bouteur avec pelle et râteau, partiel","O","ha","Fixe"]
["Traitements de préparation de terrain","Déblaiement de la végétation et des résidus de coupes",null,"Partiel",null,"DEBL-PART","AGRP","Déblaiement des résidus de coupe, abatteuse groupeuse, après feux, partiel","O","ha","Fixe"]
["Traitements de préparation de terrain","Déblaiement de la végétation et des résidus de coupes",null,"Partiel",null,"DEBL-PART","DRDVP","Déblaiement des résidus de coupe avec débusqueuse, partiel, Taux variable","O","ha","Formule"]
["Traitements de préparation de terrain","Déblaiement de la végétation et des résidus de coupes",null,"Partiel",null,"DEBL-PART","DREVP","Déblaiement des résidus de coupe avec excavatrice, partiel, Taux variable","O","ha","Formule"]
["Traitements de préparation de terrain","Déblaiement de la végétation et des résidus de coupes",null,"Partiel",null,"DEBL-PART","DRAVP","Déblaiement des résidus des coupes avec abatteuse, partiel, Taux variable","O","ha","Formule"]
["Traitements de préparation de terrain","Déblaiement de la végétation et des résidus de coupes",null,"En plein",null,"DEBL-PLEIN","BPR","Déblaiement des résidus de coupe avec bouteur pelle râteau, en plein","O","ha","Fixe"]
["Traitements de préparation de terrain","Déblaiement de la végétation et des résidus de coupes",null,"En plein",null,"DEBL-PLEIN","AGR","Déblaiement des résidus de coupe avec abatteuse groupeuse, après feux, en plein","O","ha","Fixe"]
["Traitements de préparation de terrain","Déblaiement de la végétation et des résidus de coupes",null,"En plein",null,"DEBL-PLEIN","DRDV","Déblaiement des résidus de coupe avec débusqueuse, en plein, Taux variable","O","ha","Formule"]
["Traitements de préparation de terrain","Déblaiement de la végétation et des résidus de coupes",null,"En plein",null,"DEBL-PLEIN","DREV","Déblaiement des résidus de coupe avec excavatrice, en plein, Taux variable","O","ha","Formule"]
["Traitements de préparation de terrain","Déblaiement de la végétation et des résidus de coupes",null,"En plein",null,"DEBL-PLEIN","DRAV","Déblaiement des résidus des coupes avec abatteuse, en plein, Taux variable","O","ha","Formule"]
["Traitements de préparation de terrain","Élimination des tiges résiduelles",null,null,null,"ETR","ETR","Élimination des tiges résiduelles","N","ha","Aucun"]
["Traitements de préparation de terrain","Débroussaillement de la végétation et des résidus de coupes",null,null,null,"DEBR","DEBR","Débroussaillement de la végétation et des résidus de coupes","N","ha","Aucun"]
["Traitements de préparation de terrain","Brûlage dirigé",null,null,null,"BRU","BRU","Brûlage dirigé","N","ha","Aucun"]
["Traitements de préparation de terrain","Scarifiage","Sillon","Partiel",null,"SCA_SILL-PART","TTSP","Scarifiage par sillon, Scarificateur à disque TTS passifs, partiel","O","ha","Fixe"]
["Traitements de préparation de terrain","Scarifiage","Sillon","Partiel",null,"SCA_SILL-PART","DOP","Scarifiage par sillon, Scarificateur à disques hydrauliques, Donaren, partiel","O","ha","Fixe"]
["Traitements de préparation de terrain","Scarifiage","Sillon","Partiel",null,"SCA_SILL-PART","EQSLYP","Scarifiage par sillon, Scarificateur à disques hydrauliques, Equisly, partiel","O","ha","Fixe"]
["Traitements de préparation de terrain","Scarifiage","Sillon","Partiel",null,"SCA_SILL-PART","DHP","Scarifiage par sillon, Scarificateur à disques hydrauliques, TTS hydraulique, partiel","O","ha","Fixe"]
["Traitements de préparation de terrain","Scarifiage","Sillon","Partiel",null,"SCA_SILL-PART","REQP","Scarifiage par sillon, Scarificateur à disques hydrauliques, Requin, partiel","O","ha","Fixe"]
["Traitements de préparation de terrain","Scarifiage","Sillon","Partiel",null,"SCA_SILL-PART","DHADP","Scarifiage par sillon, Scarificateur à disques hydrauliques, Bracke T-26 avec débardeur, partiel","O","ha","Fixe"]
["Traitements de préparation de terrain","Scarifiage","Sillon","Partiel",null,"SCA_SILL-PART","DHAPP","Scarifiage par sillon, Scarificateur à disques hydrauliques, Bracke T-26, avec porteur, partiel","O","ha","Fixe"]
["Traitements de préparation de terrain","Scarifiage","Sillon","Partiel",null,"SCA_SILL-PART","WADP","Scarifiage par sillon, Scarificateur à cônes hydrauliques, type Wadell, partiel","O","ha","Fixe"]
["Traitements de préparation de terrain","Scarifiage","Sillon","Partiel",null,"SCA_SILL-PART","ROUECAP","Scarifiage par sillon, Rouleau écraseur et scarificateur à disques passifs, partiel","O","ha","Fixe"]
["Traitements de préparation de terrain","Scarifiage","Sillon","En plein",null,"SCA_SILL-PLEIN","TTS","Scarifiage par sillon, Scarificateur à disque TTS passifs, en plein","O","ha","Fixe"]
["Traitements de préparation de terrain","Scarifiage","Sillon","En plein",null,"SCA_SILL-PLEIN","DO","Scarifiage par sillon, Scarificateur à disques hydrauliques, Donaren, en plein","O","ha","Fixe"]
["Traitements de préparation de terrain","Scarifiage","Sillon","En plein",null,"SCA_SILL-PLEIN","EQSLY","Scarifiage par sillon, Scarificateur à disques hydrauliques, Equisly, en plein","O","ha","Fixe"]
["Traitements de préparation de terrain","Scarifiage","Sillon","En plein",null,"SCA_SILL-PLEIN","DH","Scarifiage par sillon, Scarificateur à disques hydrauliques, TTS hydraulique, en plein","O","ha","Fixe"]
["Traitements de préparation de terrain","Scarifiage","Sillon","En plein",null,"SCA_SILL-PLEIN","REQ","Scarifiage par sillon, Scarificateur à disques hydrauliques, Requin, en plein","O","ha","Fixe"]
["Traitements de préparation de terrain","Scarifiage","Sillon","En plein",null,"SCA_SILL-PLEIN","DHAD","Scarifiage par sillon, Scarificateur à disques hydrauliques, Bracke T-26, avec débardeur, en plein","O","ha","Fixe"]
["Traitements de préparation de terrain","Scarifiage","Sillon","En plein",null,"SCA_SILL-PLEIN","DHAP","Scarifiage par sillon, Scarificateur à disques hydrauliques, Bracke T-26, avec porteur, en plein","O","ha","Fixe"]
["Traitements de préparation de terrain","Scarifiage","Sillon","En plein",null,"SCA_SILL-PLEIN","WAD","Scarifiage par sillon, Scarificateur à cônes hydrauliques, type Wadell, en plein","O","ha","Fixe"]
["Traitements de préparation de terrain","Scarifiage","Sillon","En plein",null,"SCA_SILL-PLEIN","ROUECA","Scarifiage par sillon, Rouleau écraseur et scarificateur à disques passifs, en plein","O","ha","Fixe"]
["Traitements de préparation de terrain","Scarifiage","Hersage / labour","Partiel",null,"SCA_HERS-PART","HERSEP","Herse forestière, partiel","O","ha","Fixe"]
["Traitements de préparation de terrain","Scarifiage","Hersage / labour","En plein",null,"SCA_HERS-PLEIN","HERSE","Herse forestière","O","ha","Fixe"]
["Traitements de préparation de terrain","Scarifiage","Inversion par placeau","Partiel",null,"SCA_INV-PART","SCAIPVP","Scarifiage inversion par placeau avec excavatrice, partiel, taux variable","O","ha","Formule"]
["Traitements de préparation de terrain","Scarifiage","Inversion par placeau","En plein",null,"SCA_INV-PLEIN","SCAIPV","Scarifiage inversion par placeau avec excavatrice, taux variable","O","ha","Formule"]
["Traitements de préparation de terrain","Scarifiage","Mixage par placeau","Partiel",null,"SCA_MIX-PART","TAUPIOFP","Scarifiage en mixage par placeau, taupe ou pioche forestière, partiel","O","ha","Fixe"]
["Traitements de préparation de terrain","Scarifiage","Mixage par placeau","En plein",null,"SCA_MIX-PLEIN","TAUPIOF","Taupe ou pioche forestière","O","ha","Fixe"]
["Traitements de préparation de terrain","Scarifiage","Décapage par placeau","Partiel",null,"SCA_DECAP-PART","SCAPVP","Scarifiage décapage par placeau, avec excavatrice, partiel, taux variable","O","ha","Formule"]
["Traitements de préparation de terrain","Scarifiage","Décapage par placeau","En plein",null,"SCA_DECAP-PLEIN","SCAPV","Scarifiage décapage par placeau, avec excavatrice, taux variable","O","ha","Formule"]
["Traitements de préparation de terrain","Scarifiage","Monticule","Partiel",null,"SCA_MONT-PART","BRM36DP","Scarifiage en monticule avec scarificateur, Bracke M-36a avec débardeur, partiel","O","ha","Fixe"]
["Traitements de préparation de terrain","Scarifiage","Monticule","Partiel",null,"SCA_MONT-PART","BRM36PP","Scarifiage en monticule avec scarificateur, Bracke M-36a avec porteur, partiel","O","ha","Fixe"]
["Traitements de préparation de terrain","Scarifiage","Monticule","Partiel",null,"SCA_MONT-PART","SCAMVP","Scarifiage en monticule avec excavatrice, taux variable, partiel","O","ha","Formule"]
["Traitements de préparation de terrain","Scarifiage","Monticule","En plein",null,"SCA_MONT-PLEIN","BRM36D","Scarifiage en monticule avec scarificateur, Bracke M-36a avec débardeur","O","ha","Fixe"]
["Traitements de préparation de terrain","Scarifiage","Monticule","En plein",null,"SCA_MONT-PLEIN","BRM36P","Scarifiage en monticule avec scarificateur, Bracke M-36a avec porteur","O","ha","Fixe"]
["Traitements de préparation de terrain","Scarifiage","Monticule","En plein",null,"SCA_MONT-PLEIN","SCAMV","Scarifiage en monticule avec excavatrice, taux variable","O","ha","Formule"]
["Traitements de préparation de terrain","Amendement","Fertilisation",null,null,"AMEND_FER","AMENDFER","Amendement, fertilisation","O","ha","Attente"]
["Traitements de préparation de terrain","Amendement","Chaulage",null,null,"AMEND_CHAUX","AMENDCHAU","Amendement, Chaulage","O","ha","Attente"]
["Traitements de préparation de terrain","Amendement","Amendement organique",null,null,"AMEND_ORG","AMENDORG","Amendement, organique","O","ha","Attente"]
["Traitements de préparation de terrain","Drainage","D'appoint",null,null,"DR_APP","DRAPPMD","Drainage d'appoint, milieu dénudé","O","km ou Mm³","Fixe"]
["Traitements de préparation de terrain","Drainage","D'appoint",null,null,"DR_APP","DRAPPMB","Drainage d'appoint, milieu boisé","O","km ou Mm³","Fixe"]
["Traitements de préparation de terrain","Drainage","Systématique",null,null,"DR_SYS","DRSYSMD","Drainage systématique, milieu dénudé","O","km ou Mm³","Fixe"]
["Traitements de préparation de terrain","Drainage","Systématique",null,null,"DR_SYS","DRSYSMB","Drainage systématique, milieu boisé","O","km ou Mm³","Fixe"]
["Traitements de la régénération","Plantation","Uniforme ","Mélange d'essences",null,"PL_U-MEL","P25","Plantation 113-25","O","Mplants","Formule"]
["Traitements de la régénération","Plantation","Uniforme ","Mélange d'essences",null,"PL_U-MEL","P50","Plantation 67-50","O","Mplants","Formule"]
["Traitements de la régénération","Plantation","Uniforme ","Mélange d'essences",null,"PL_U-MEL","P110","Plantation 45-110","O","Mplants","Formule"]
["Traitements de la régénération","Plantation","Uniforme ","Mélange d'essences",null,"PL_U-MEL","P200","Plantation 25-200","O","Mplants","Formule"]
["Traitements de la régénération","Plantation","Uniforme ","Mélange d'essences",null,"PL_U-MEL","PPFDBAC","Plantation PFD livré en bac","O","Mplants","Formule"]
["Traitements de la régénération","Plantation","Uniforme ","Mélange d'essences",null,"PL_U-MEL","PPFDR","Plantation PFD livré en récipient","O","Mplants","Formule"]
["Traitements de la régénération","Plantation","Uniforme ","Mélange d'essences",null,"PL_U-MEL","PPFDRN","Plantation PFD en racines nues","O","Mplants","Formule"]
["Traitements de la régénération","Plantation","Uniforme ","Mélange d'essences",null,"PL_U-MEL","PLGE","Plantation uniforme et regarni manuel sauf PEH","N","Mplants","Formule"]
["Traitements de la régénération","Plantation","Uniforme ","Mélange d'essences",null,"PL_U-MEL","SCAPL110P","Plantation mécanique 45-110,  Scarificateur planteur Bracke P-11a, 1500 plants et +","O","Mplants","Fixe"]
["Traitements de la régénération","Plantation","Uniforme ","Mélange d'essences",null,"PL_U-MEL","SCAPL200P","Plantation mécanique 25-200,  Scarificateur planteur Bracke P-11a, 1500 plants et +","O","Mplants","Fixe"]
["Traitements de la régénération","Plantation","Uniforme ","Monospécifique",null,"PL_U-MONO","P25","Plantation 113-25","O","Mplants","Formule"]
["Traitements de la régénération","Plantation","Uniforme ","Monospécifique",null,"PL_U-MONO","P50","Plantation 67-50","O","Mplants","Formule"]
["Traitements de la régénération","Plantation","Uniforme ","Monospécifique",null,"PL_U-MONO","P110","Plantation 45-110","O","Mplants","Formule"]
["Traitements de la régénération","Plantation","Uniforme ","Monospécifique",null,"PL_U-MONO","P200","Plantation 25-200","O","Mplants","Formule"]
["Traitements de la régénération","Plantation","Uniforme ","Monospécifique",null,"PL_U-MONO","PPFDBAC","Plantation PFD livré en bac","O","Mplants","Formule"]
["Traitements de la régénération","Plantation","Uniforme ","Monospécifique",null,"PL_U-MONO","PPFDR","Plantation PFD livré en récipient","O","Mplants","Formule"]
["Traitements de la régénération","Plantation","Uniforme ","Monospécifique",null,"PL_U-MONO","PPFDRN","Plantation PFD en racines nues","O","Mplants","Formule"]
["Traitements de la régénération","Plantation","Uniforme ","Monospécifique",null,"PL_U-MONO","PLGE","Plantation uniforme et regarni manuel sauf PEH","N","Mplants","Formule"]
["Traitements de la régénération","Plantation","Uniforme ","Monospécifique",null,"PL_U-MONO","PPHBO","Plantation uniforme de peuplier hybride","O","Mplants","Fixe"]
["Traitements de la régénération","Plantation","Uniforme ","Monospécifique",null,"PL_U-MONO","SCAPL110P","Plantation mécanique 45-110,  Scarificateur planteur Bracke P-11a, 1500 plants et +","O","Mplants","Fixe"]
["Traitements de la régénération","Plantation","Uniforme ","Monospécifique",null,"PL_U-MONO","SCAPL200P","Plantation mécanique 25-200,  Scarificateur planteur Bracke P-11a, 1500 plants et +","O","Mplants","Fixe"]
["Traitements de la régénération","Plantation","Regarni","Mélange d'essences",null,"PL_REG-MEL","RR25","Regarni 113-25","O","Mplants","Formule"]
["Traitements de la régénération","Plantation","Regarni","Mélange d'essences",null,"PL_REG-MEL","RR50","Regarni 67-50","O","Mplants","Formule"]
["Traitements de la régénération","Plantation","Regarni","Mélange d'essences",null,"PL_REG-MEL","RR110","Regarni 45-110","O","Mplants","Formule"]
["Traitements de la régénération","Plantation","Regarni","Mélange d'essences",null,"PL_REG-MEL","RR200","Regarni 25-200","O","Mplants","Formule"]
["Traitements de la régénération","Plantation","Regarni","Mélange d'essences",null,"PL_REG-MEL","RPFDBAC","Regarni PFD livré en bac","O","Mplants","Formule"]
["Traitements de la régénération","Plantation","Regarni","Mélange d'essences",null,"PL_REG-MEL","RPFDR","Regarni PFD livré en récipient","O","Mplants","Formule"]
["Traitements de la régénération","Plantation","Regarni","Mélange d'essences",null,"PL_REG-MEL","RPFDRN","Regarni PFD en racines nues","O","Mplants","Formule"]
["Traitements de la régénération","Plantation","Regarni","Mélange d'essences",null,"PL_REG-MEL","PLGE","Plantation uniforme et regarni manuel sauf PEH","N","Mplants","Formule"]
["Traitements de la régénération","Plantation","Regarni","Mélange d'essences",null,"PL_REG-MEL","SCAPL110R","Regarni mécanique 45-110,  Scarificateur planteur Bracke P-11a, 1499 plants et -","O","Mplants","Fixe"]
["Traitements de la régénération","Plantation","Regarni","Mélange d'essences",null,"PL_REG-MEL","SCAPL200R","Regarni mécanique 25-200,  Scarificateur planteur Bracke P-11a, 1499 plants et -","O","Mplants","Fixe"]
["Traitements de la régénération","Plantation","Regarni","Monospécifique",null,"PL_REG-MONO","RR25","Regarni 113-25","O","Mplants","Formule"]
["Traitements de la régénération","Plantation","Regarni","Monospécifique",null,"PL_REG-MONO","RR50","Regarni 67-50","O","Mplants","Formule"]
["Traitements de la régénération","Plantation","Regarni","Monospécifique",null,"PL_REG-MONO","RR110","Regarni 45-110","O","Mplants","Formule"]
["Traitements de la régénération","Plantation","Regarni","Monospécifique",null,"PL_REG-MONO","RR200","Regarni 25-200","O","Mplants","Formule"]
["Traitements de la régénération","Plantation","Regarni","Monospécifique",null,"PL_REG-MONO","RPFDBAC","Regarni PFD livré en bac","O","Mplants","Formule"]
["Traitements de la régénération","Plantation","Regarni","Monospécifique",null,"PL_REG-MONO","RPFDR","Regarni PFD livré en récipient","O","Mplants","Formule"]
["Traitements de la régénération","Plantation","Regarni","Monospécifique",null,"PL_REG-MONO","RPFDRN","Regarni PFD en racines nues","O","Mplants","Formule"]
["Traitements de la régénération","Plantation","Regarni","Monospécifique",null,"PL_REG-MONO","PLGE","Plantation uniforme et regarni manuel sauf PEH","N","Mplants","Formule"]
["Traitements de la régénération","Plantation","Regarni","Monospécifique",null,"PL_REG-MONO","SCAPL110R","Regarni mécanique 45-110,  Scarificateur planteur Bracke P-11a, 1499 plants et -","O","Mplants","Fixe"]
["Traitements de la régénération","Plantation","Regarni","Monospécifique",null,"PL_REG-MONO","SCAPL200R","Regarni mécanique 25-200,  Scarificateur planteur Bracke P-11a, 1499 plants et -","O","Mplants","Fixe"]
["Traitements de la régénération","Plantation","Enrichissement","Mélange d'essences",null,"PL_ENR-MEL","ENR","Enrichissement et regarni de feuillus et de pins","O","Mplants","Fixe"]
["Traitements de la régénération","Plantation","Enrichissement","Monospécifique",null,"PL_ENR-MONO","ENR","Enrichissement et regarni de feuillus et de pins","O","Mplants","Fixe"]
["Traitements de la régénération","Plantation","Système agroforestier","Mélange d'essences",null,"PL_AGRO-MEL","P25","Plantation 113-25","O","Mplants","Formule"]
["Traitements de la régénération","Plantation","Système agroforestier","Mélange d'essences",null,"PL_AGRO-MEL","P50","Plantation 67-50","O","Mplants","Formule"]
["Traitements de la régénération","Plantation","Système agroforestier","Mélange d'essences",null,"PL_AGRO-MEL","P110","Plantation 45-110","O","Mplants","Formule"]
["Traitements de la régénération","Plantation","Système agroforestier","Mélange d'essences",null,"PL_AGRO-MEL","P200","Plantation 25-200","O","Mplants","Formule"]
["Traitements de la régénération","Plantation","Système agroforestier","Mélange d'essences",null,"PL_AGRO-MEL","PPFDBAC","Plantation PFD livré en bac","O","Mplants","Formule"]
["Traitements de la régénération","Plantation","Système agroforestier","Mélange d'essences",null,"PL_AGRO-MEL","PPFDR","Plantation PFD livré en récipient","O","Mplants","Formule"]
["Traitements de la régénération","Plantation","Système agroforestier","Mélange d'essences",null,"PL_AGRO-MEL","PPFDRN","Plantation PFD en racines nues","O","Mplants","Formule"]
["Traitements de la régénération","Plantation","Système agroforestier","Mélange d'essences",null,"PL_AGRO-MEL","PLGE","Plantation uniforme et regarni manuel sauf PEH","N","Mplants","Formule"]
["Traitements de la régénération","Plantation","Système agroforestier","Mélange d'essences",null,"PL_AGRO-MEL","SCAPL110P","Plantation mécanique 45-110,  Scarificateur planteur Bracke P-11a, 1500 plants et +","O","Mplants","Fixe"]
["Traitements de la régénération","Plantation","Système agroforestier","Mélange d'essences",null,"PL_AGRO-MEL","SCAPL200P","Plantation mécanique 25-200,  Scarificateur planteur Bracke P-11a, 1500 plants et +","O","Mplants","Fixe"]
["Traitements de la régénération","Plantation","Système agroforestier","Monospécifique",null,"PL_AGRO-MONO","P25","Plantation 113-25","O","Mplants","Formule"]
["Traitements de la régénération","Plantation","Système agroforestier","Monospécifique",null,"PL_AGRO-MONO","P50","Plantation 67-50","O","Mplants","Formule"]
["Traitements de la régénération","Plantation","Système agroforestier","Monospécifique",null,"PL_AGRO-MONO","P110","Plantation 45-110","O","Mplants","Formule"]
["Traitements de la régénération","Plantation","Système agroforestier","Monospécifique",null,"PL_AGRO-MONO","P200","Plantation 25-200","O","Mplants","Formule"]
["Traitements de la régénération","Plantation","Système agroforestier","Monospécifique",null,"PL_AGRO-MONO","PPFDBAC","Plantation PFD livré en bac","O","Mplants","Formule"]
["Traitements de la régénération","Plantation","Système agroforestier","Monospécifique",null,"PL_AGRO-MONO","PPFDR","Plantation PFD livré en récipient","O","Mplants","Formule"]
["Traitements de la régénération","Plantation","Système agroforestier","Monospécifique",null,"PL_AGRO-MONO","PPFDRN","Plantation PFD en racines nues","O","Mplants","Formule"]
["Traitements de la régénération","Plantation","Système agroforestier","Monospécifique",null,"PL_AGRO-MONO","PLGE","Plantation uniforme et regarni manuel sauf PEH","N","Mplants","Formule"]
["Traitements de la régénération","Plantation","Système agroforestier","Monospécifique",null,"PL_AGRO-MONO","PPHBO","Plantation uniforme de peuplier hybride","O","Mplants","Fixe"]
["Traitements de la régénération","Plantation","Système agroforestier","Monospécifique",null,"PL_AGRO-MONO","SCAPL110P","Plantation mécanique 45-110,  Scarificateur planteur Bracke P-11a, 1500 plants et +","O","Mplants","Fixe"]
["Traitements de la régénération","Plantation","Système agroforestier","Monospécifique",null,"PL_AGRO-MONO","SCAPL200P","Plantation mécanique 25-200,  Scarificateur planteur Bracke P-11a, 1500 plants et +","O","Mplants","Fixe"]
["Traitements de la régénération","Ensemencement ","Aérien",null,null,"ENS_AE","ENSA","Ensemencement aérien","O","Mplants","Fixe"]
["Traitements de la régénération","Ensemencement ","Terrestre","Manuel",null,"ENS_TER-MANU","ENSM","Ensemencement terrestre manuel","O","Mplants","Fixe"]
["Traitements de la régénération","Ensemencement ","Terrestre","Mécanisé simultané récolte",null,"ENS_TER-MEC","ENSTMSR","Ensemencement terrestre mécanisé simultanément récolte","O","Mplants","Fixe"]
["Traitements de la régénération","Ensemencement ","Terrestre","Mécanisé simultané prép. terr.",null,"ENS_TER-MEC","ENSMSPT","Ensemencement terrestre mécanisé simultanément préparation de terrain","O","Mplants","Fixe"]
["Traitements de la régénération","Ensemencement ","Terrestre","Mécanisé après prép. terr.",null,"ENS_TER-MEC","ENSAPPT","Ensemencement terrestre mécanisé après préparation de terrain","O","Mplants","Fixe"]
["Traitements d'éducation","Dégagement","Coupe mécanique","Manuelle (machette,hache, …)",null,"DEG_MEC","DMAR","Dégagement manuelle","O","ha","Attente"]
["Traitements d'éducation","Dégagement","Coupe mécanique","Motorisé (avec débrousailleuse)",null,"DEG_MEC","DMRV1M","Dégagement mécanique de la régénération, dénombrement à 1 m, taux variable","O","ha","Formule"]
["Traitements d'éducation","Dégagement","Coupe mécanique","Mécanisée (Outils installés sur débardeur)",null,"DEG_MEC","DME","Dégagement mécanisé, outil installé sur un débardeur","O","ha","Attente"]
["Traitements d'éducation","Dégagement","Annélation",null,null,"DEG_ANN","DANNE","Dégagement annélation","O","ha","Attente"]
["Traitements d'éducation","Dégagement","Phytocides chimiques",null,null,"DEG_PHYC","DEGPHYC","Dégagement, phytocides chimiques","N","ha","Aucun"]
["Traitements d'éducation","Dégagement","Phytocides biologiques",null,null,"DEG_PHYB","DEGPHYB","Dégagement, phytocides biologiques","N","ha","Aucun"]
["Traitements d'éducation","Dégagement","Chaleur (vapeur d'eau)",null,null,null,null,"Pas d'information DICA"]
["Traitements d'éducation","Dégagement","Broutage",null,null,null,null,"Pas d'information DICA"]
["Traitements d'éducation","Nettoiement","Coupe mécanique","Manuelle",null,"NET_MEC","NETTOIMAV","Nettoiement manuelle","O","ha","Attente"]
["Traitements d'éducation","Nettoiement","Coupe mécanique","Manuelle",null,"NET_MEC","NETSG85","Entretien de la strate gaulis, secteur d'intervention avec un choix de tige intra spécifique (par essence) et avec un espacement ou secteur d'intervention avec choix de tige résineuse sans espacement, CP1=0.85","O","ha","Formule"]
["Traitements d'éducation","Nettoiement","Coupe mécanique","Manuelle",null,"NET_MEC","NETSG","Entretien de la strate gaulis, secteur d'intervention sans choix de tige, soit inter spécifique (par groupe d'essence, résineux/feuillus) et sans espacement","O","ha","Formule"]
["Traitements d'éducation","Nettoiement","Coupe mécanique","Mécanisée",null,"NET_MEC","NETTOIMEV","Nettoiement mécanisé","O","ha","Attente"]
["Traitements d'éducation","Nettoiement","Annélation",null,null,"NET_ANN","NETTOIANNE","Nettoiement, annélation","O","ha","Attente"]
["Traitements d'éducation","Nettoiement","Phytocides chimiques",null,null,"NET_PHYC","NETPHYC","Nettoiement, phytocides chimiques","N","ha","Aucun"]
["Traitements d'éducation","Nettoiement","Phytocides biologiques",null,null,"NET_PHYB","NETPHYB","Nettoiement, phytocides biologiques","N","ha","Aucun"]
["Traitements d'éducation","Éclaircie précommerciale (EPC)","Systématique",null,null,"EPC_SYS","EPCSYSSG","Entretien de la strate gaulis, secteur d'intervention avec un choix de tige intra spécifique (par essence) et avec un espacement ou secteur d'intervention avec choix de tige résineuse sans espacement, composition visée peuplier ou CP1=1","O","ha","Formule"]
["Traitements d'éducation","Éclaircie précommerciale (EPC)","Systématique",null,null,"EPC_PUITS","EPCPUIT13V","EPC par puit de lumière, comprend la taille de formation (prescription sylvicole 2013 et +), Taux variable","O","ha","Formule"]
["Traitements d'éducation","Dépressage",null,null,null,"DEP","DEP","Dépressage","O","ha","Attente"]
["Traitements d'éducation","Éclaircie commerciale (EC)","Systématique",null,null,"EC_SYS","ECSYS","Éclaircie commerciale, patron d'intervention systématique","N","ha","Aucun"]
["Traitements d'éducation","Éclaircie commerciale (EC)","Systématique",null,null,"EC_SYS","ECSYPR","Éclaircie commerciale, patron d'intervention systématique, première éclaircie commerciale de plantation résineuse réservée aux entreprises d'aménagement forestier, taux variable","O","$/m3","Formule"]
["Traitements d'éducation","Éclaircie commerciale (EC)","Sélective","Par le bas",null,"EC_SEL-BAS","ECSELBASPR","Éclaircie commerciale sélective par le bas, première éclaircie commerciale de plantation résineuse réservée aux entreprises d'aménagement forestier, taux variable","O","$/m3","Formule"]
["Traitements d'éducation","Éclaircie commerciale (EC)","Sélective","Par le bas",null,"EC_SEL-BAS","ECSELBASSF","Éclaircie commerciale sélective par le bas, peuplement SEPM et mixte à tendance résineuse et feuillus intolérants, taux variable","O","ha","Formule"]
["Traitements d'éducation","Éclaircie commerciale (EC)","Sélective","Par le bas",null,"EC_SEL-BAS","ECSELBASFM","Éclaircie commerciale sélective par le bas, peuplement feuillus tolérants, autres résineux et mixte feuillus, taux variable","O","ha","Formule"]
["Traitements d'éducation","Éclaircie commerciale (EC)","Sélective","Par le haut",null,"EC_SEL-HAUT","ECSELHAUPR","Éclaircie commerciale sélective par le haut, première éclaircie commerciale de plantation résineuse réservée aux entreprises d'aménagement forestier, taux variable","O","$/m3","Formule"]
["Traitements d'éducation","Éclaircie commerciale (EC)","Sélective","Par le haut",null,"EC_SEL-HAUT","ECSELHAUSF","Éclaircie commerciale sélective par le haut, peuplement SEPM et mixte à tendance résineuse et feuillus intolérants, taux variable","O","ha","Formule"]
["Traitements d'éducation","Éclaircie commerciale (EC)","Sélective","Par le haut",null,"EC_SEL-HAUT","ECSELHAUFM","Éclaircie commerciale sélective par le haut, peuplement feuillus tolérants, autres résineux et mixte feuillus, taux variable","O","ha","Formule"]
["Traitements d'éducation","Éclaircie commerciale (EC)","Sélective","Neutre",null,"EC_SEL-NEUTRE","ECSELNEUPR","Éclaircie commerciale sélective neutre, première éclaircie commerciale de plantation résineuse réservée aux entreprises d'aménagement forestier, taux variable","O","$/m3","Formule"]
["Traitements d'éducation","Éclaircie commerciale (EC)","Sélective","Neutre",null,"EC_SEL-NEUTRE","ECSELNEUSF","Éclaircie commerciale sélective neutre, peuplement SEPM et mixte à tendance résineuse et feuillus intolérants, taux variable","O","ha","Formule"]
["Traitements d'éducation","Éclaircie commerciale (EC)","Sélective","Neutre",null,"EC_SEL-NEUTRE","ECSELNEUFM","Éclaircie commerciale sélective neutre, peuplement feuillus tolérants, autres résineux et mixte feuillus, taux variable","O","ha","Formule"]
["Traitements d'éducation","Éclaircie commerciale (EC)","Mixte","Par le bas",null,"EC_MIXTE-BAS","ECMIXBASPR","Éclaircie commerciale mixte par le bas, première éclaircie commerciale de plantation résineuse réservée aux entreprises d'aménagement forestier, taux variable","O","$/m3","Formule"]
["Traitements d'éducation","Éclaircie commerciale (EC)","Mixte","Par le bas",null,"EC_MIXTE-BAS","ECMIXBASSF","Éclaircie commerciale mixte par le bas, peuplement SEPM, feuillus intolérants  et mixte à tendance résineuse, taux variable","O","ha","Formule"]
["Traitements d'éducation","Éclaircie commerciale (EC)","Mixte","Par le bas",null,"EC_MIXTE-BAS","ECMIXBASFM","Éclaircie commerciale mixte par le bas, peuplement feuillus tolérants, autres résineux et mixte feuillus, taux variable","O","ha","Formule"]
["Traitements d'éducation","Éclaircie commerciale (EC)","Mixte","Par le haut",null,"EC_MIXTE-HAUT","ECMIXHAUPR","Éclaircie commerciale mixte par le haut, première éclaircie commerciale de plantation résineuse réservée aux entreprises d'aménagement forestier, taux variable","O","$/m3","Formule"]
["Traitements d'éducation","Éclaircie commerciale (EC)","Mixte","Par le haut",null,"EC_MIXTE-HAUT","ECMIXHAUSF","Éclaircie commerciale mixte par le haut, peuplement SEPM, feuillus intolérants  et mixte à tendance résineuse, taux variable","O","ha","Formule"]
["Traitements d'éducation","Éclaircie commerciale (EC)","Mixte","Par le haut",null,"EC_MIXTE-HAUT","ECMIXHAUFM","Éclaircie commerciale mixte par le haut, peuplement feuillus tolérants, autres résineux et mixte feuillus, taux variable","O","ha","Formule"]
["Traitements d'éducation","Éclaircie commerciale (EC)","Mixte","Neutre",null,"EC_MIXTE-NEUTRE","ECMIXNEUPR","Éclaircie commerciale mixte neutre, première éclaircie commerciale de plantation résineuse réservée aux entreprises d'aménagement forestier, taux variable","O","$/m3","Formule"]
["Traitements d'éducation","Éclaircie commerciale (EC)","Mixte","Neutre",null,"EC_MIXTE-NEUTRE","ECMIXNEUSF","Éclaircie commerciale mixte neutre, peuplement SEPM, feuillus intolérants  et mixte à tendance résineuse, taux variable","O","ha","Formule"]
["Traitements d'éducation","Éclaircie commerciale (EC)","Mixte","Neutre",null,"EC_MIXTE-NEUTRE","ECMIXNEUFM","Éclaircie commerciale patron d'intervention mixte neutre, peuplement feuillus tolérants, autres résineux et mixte feuillus, taux variable","O","ha","Formule"]
["Traitements d'éducation","Élagage",null,null,null,"ELAG","ELAGV","Élagage pour fins de qualité, taux variable","O","ha","Formule"]
["Traitements d'éducation","Taille de formation (Inclut dans l'EPC par puits de lumière)","Classique",null,null,"TAILFOR_CLASS","TAILFC","Voir EPC puit de lumière","N","ha","Aucun"]
["Traitements d'éducation","Taille de formation (Inclut dans l'EPC par puits de lumière)","Systématique",null,null,"TAILFOR_SYST","TAILFS","Voir EPC puit de lumière","N","ha","Aucun"]
["Traitements d'éducation","Coupe d'assainissement",null,null,null,"CAS","CAS","Coupe d'assainissement","N","ha","Aucun"]
["Traitements d'éducation","Taille phytosanitaire",null,null,null,"TAILPHY","TAILV","Taille phytosanitaire, taux variable","O","ha","Formule"]
["Coupes de jardinage","Éclaircie jardinatoire (EJ)","Par pieds d'arbre ",null,"Initiale","EJ_P-INI","EJPINI","Éclaircie jardinatoire par pied d'arbre initiale, Martelage","O","ha","Formule"]
["Coupes de jardinage","Éclaircie jardinatoire (EJ)","Par pieds d'arbre ",null,"Classique ou finale","EJ_P-CLAS","EJPCLAS","Éclaircie jardinatoire par pied d'arbre classique ou finale, Martelage","O","ha","Formule"]
["Coupes de jardinage","Éclaircie jardinatoire (EJ)","Par pieds d'arbre et groupes d'arbres",null,"Initiale","EJ_PG-INI","EJPGINI","Éclaircie jardinatoire par pied d'arbre et groupes d'arbres initiale, Martelage","O","ha","Formule"]
["Coupes de jardinage","Éclaircie jardinatoire (EJ)","Par pieds d'arbre et groupes d'arbres",null,"Classique ou finale","EJ_PG-CLAS","EJPGCLAS","Éclaircie jardinatoire par pied d'arbre et groupes d'arbres, classique ou finale, Martelage","O","ha","Formule"]
["Coupes de jardinage","Coupe de jardinage par pieds d'arbre (CJP)",null,null,"Maintien d'une haute qualité","CJP-HQ","CJPHQ","Coupe de jardinage par pieds d'arbre, maintien d'une haute qualité, Martelage","O","ha","Formule"]
["Coupes de jardinage","Coupe de jardinage par pieds d'arbre (CJP)",null,null,"Maintien d'une qualité modérée","CJP-QM","CJPQM","Coupe de jardinage par pieds d'arbre, maintien d'une qualité modérée, Martelage","O","ha","Formule"]
["Coupes de jardinage","Coupe de jardinage par pieds d'arbre (CJP)",null,null,"Amélioration de la qualité","CJP-AM","CJPAM","Coupe de jardinage par pieds d'arbre, amélioraton de la qualité, Martelage","O","ha","Formule"]
["Coupes de jardinage","Coupe de jardinage par pieds d'arbre et groupes d'arbres (CJPG)",null,null,"Maintien d'une haute qualité","CJPG-HQ","CJPGHQ","Coupe de jardinage par pieds d'arbre et groupes d'arbres, maintien d'une haute qualité, Martelage","O","ha","Formule"]
["Coupes de jardinage","Coupe de jardinage par pieds d'arbre et groupes d'arbres (CJPG)",null,null,"Maintien d'une qualité modérée","CJPG-QM","CJPGQM","Coupe de jardinage par pieds d'arbre et groupes d'arbres, maintien d'une qualité modérée, Martelage","O","ha","Formule"]
["Coupes de jardinage","Coupe de jardinage par pieds d'arbre et groupes d'arbres (CJPG)",null,null,"Amélioration de la qualité","CJPG-AM","CJPGAM","Coupe de jardinage par pieds d'arbre et groupes d'arbres, amélioration de la qualité, Martelage","O","ha","Formule"]
["Coupes de jardinage","Coupe de jardinage par trouées",null,"Sans éclaircie dans la matrice résiduelle",null,"CJT","CJT","Coupe de jardinage par trouées patron d'intervention sans éclaircie dans la matrice résiduelle","N","ha","Aucun"]
["Coupes de jardinage","Coupe de jardinage par trouées",null,"Avec éclaircie dans la matrice résiduelle",null,"CJT-EMR","CJTM","Coupe de jardinage par trouées avec éclaircie dans la matrice résiduelle, Martelage","O","ha","Formule"]
["Coupes de jardinage","Coupe de jardinage par trouées",null,"Avec éclaircie dans la matrice résiduelle",null,"CJT-EMR","CJTMO","Coupe de jardinage par trouées avec éclaircie dans la matrice résiduelle, Opérateur","O","ha","Formule"]
["Coupes de jardinage","Coupe de jardinage par bandes",null,"Sans éclaircie dans la matrice résiduelle",null,"CJB","CJB","Coupe de jardinage par bandes patron d'intervention sans éclaircie dans la matrice résiduelle","N","ha","Aucun"]
["Coupes de jardinage","Coupe de jardinage par bandes",null,"Avec éclaircie dans la matrice résiduelle",null,"CJB-EMR","CJBM","Coupe de jardinage par bandes avec éclaircie dans la matrice résiduelle, Martelage","O","ha","Formule"]
["Coupes de jardinage","Coupe de jardinage par bandes",null,"Avec éclaircie dans la matrice résiduelle",null,"CJB-EMR","CJBMO","Coupe de jardinage par bandes avec éclaircie dans la matrice résiduelle, Opérateur","O","ha","Formule"]
["Travaux de planification","Planification","Recherche de secteurs d'intervention potentiel (terrain)",null,null,null,"SIPPSRA","Recherche secteur d'intervention potentiel, traitement de préparation de terrain et régénération artificielle","O","ha","Fixe"]
["Travaux de planification","Planification","Recherche de secteurs d'intervention potentiel (terrain)",null,null,null,"SIPEP","Recherche secteur d'intervention potentiel, traitement d'éducation de peuplement ","O","ha","Fixe"]
["Travaux de planification","Planification","Secteur d'intervention proposé",null,null,null,"SIPRPSRA","Secteur d'intervention proposé, traitement de préparation de terrain et régénération artificielle","O","ha","Fixe"]
["Travaux de planification","Planification","Secteur d'intervention proposé",null,null,null,"SIPREP","Secteur d'intervention proposé, traitement d'éducation de peuplement ","O","ha","Fixe"]
["Travaux de planification","Planification","Secteur d'intervention proposé",null,null,null,"CPLS","Confection du plan de sondage","O","ha","Fixe"]
["Travaux de planification","Planification","Inventaire avant traitement",null,null,null,"INVAVPSRA","Inv.avant traitement, traitement de préparation de site (sauf drainage sylvicole) et régénération artificielle","O","pe","Fixe"]
["Travaux de planification","Planification","Inventaire avant traitement",null,null,null,"INVAVDSPD","inv. avant traitement, traitement de préparation de site (drainage sylvicole - plan et devis)","O","km ou Mm³","Fixe"]
["Travaux de planification","Planification","Inventaire avant traitement",null,null,null,"INVAVDNE","Inv. avant traitement, traitement d'éducation de peuplement (dégagement, nettoiement, EPC)","O","pe","Formule"]
["Travaux de planification","Planification","Inventaire avant traitement",null,null,null,"INVAVEP","Inv. avant traitement, traitement d'éducation de peuplement (élagage et taille)","O","pe","Fixe"]
["Travaux de planification","Planification","Délimitation des secteurs",null,null,null,"DSPSRA","Délimitation des secteurs, traitement de préparation de site et régénération artificielle","O","km","Fixe"]
["Travaux de planification","Planification","Délimitation des secteurs",null,null,null,"DSEP","Délimitation des secteurs, traitement d'éducation de peuplement","O","km","Fixe"]
["Travaux de planification","Planification","Valeur des activités liées au martelage pour les traitements commerciaux",null,null,null,"DSTC","Délimitation de secteurs","O","km","Fixe"]
["Travaux de planification","Planification","Martelage",null,null,null,"MARTGE","Martelage",0,"ha","Formule"]
["Travaux de planification","Planification","Martelage éclaircie commerciale en peuplement résineux (ou mixte à tendance résineux)",null,null,null,"MECON","Martelage négatif",0,"ha","Formule"]
["Travaux de planification","Planification","Martelage éclaircie commerciale en peuplement résineux (ou mixte à tendance résineux)",null,null,null,"MECOP","Martelage positif",0,"ha","Formule"]
["Travaux de planification","Planification","Martelage éclaircie commerciale en peuplement résineux (ou mixte à tendance résineux)",null,null,null,"INVAPM","Inventaire après martelage","O","ha","Fixe"]
["Travaux de planification","Valeur de la vérification technique","Suivi de la qualité",null,null,null,"SQPSM","Suivi de la qualité, traitement de préparation de site mécanisé","O","ha","Fixe"]
["Travaux de planification","Valeur de la vérification technique","Suivi de la qualité",null,null,null,"SQPSMA","Suivi de la qualité, traitement de préparation de site manuel","O","Mmicrosites","Fixe"]
["Travaux de planification","Valeur de la vérification technique","Suivi de la qualité",null,null,null,"SQDS","Suivi de la qualité, traitement de site drainage sylvicole","O","Km ou Mm³","Fixe"]
["Travaux de planification","Valeur de la vérification technique","Suivi de la qualité",null,null,null,"SQRA","Suivi de la qualité, traitement de régénération artificielle","O","Mplants","Fixe"]
["Travaux de planification","Valeur de la vérification technique","Suivi de la qualité",null,null,null,"SQEP","Suivi de la qualité, traitement d'éducation de peuplement","O","ha","Fixe"]
["Travaux de planification","Valeur de la vérification technique","Inventaire après traitement",null,null,null,"INVAPPSM","Inventaire après traitement, traitement de préparation de site mécanisé","O","pe","Formule"]
["Travaux de planification","Valeur de la vérification technique","Inventaire après traitement",null,null,null,"INVAPPSMA","Inventaire après traitement, traitement de préparation de site manuel","O","pe","Fixe"]
["Travaux de planification","Valeur de la vérification technique","Inventaire après traitement",null,null,null,"INVAPDS","Inventaire après traitement, traitement de site drainage sylvicole","O","Km ou Mm³","Fixe"]
["Travaux de planification","Valeur de la vérification technique","Inventaire après traitement",null,null,null,"INVAPRA","Inventaire après traitement, traitement de régénération artificielle","O","pe","Formule"]
["Travaux de planification","Valeur de la vérification technique","Inventaire après traitement",null,null,null,"INVAPEP","Inventaire après traitement, traitement d'éducation de peuplement","O","pe","Formule"]
["Travaux de planification","Valeur de la vérification technique","Rapport d'exécution",null,null,null,"REPSM","Rapport d'exécution, traitement de préparation de site mécanisé","O","ha","Fixe"]
["Travaux de planification","Valeur de la vérification technique","Rapport d'exécution",null,null,null,"REPSMA","Rapport d'exécution, traitement de préparation de site manuel","O","Mmicrosites","Fixe"]
["Travaux de planification","Valeur de la vérification technique","Rapport d'exécution",null,null,null,"REDS","Rapport d'exécution, traitement de site drainage sylvicole","O","Km ou Mm³","Fixe"]
["Travaux de planification","Valeur de la vérification technique","Rapport d'exécution",null,null,null,"RERA","Rapport d'exécution, traitement de régénération artificielle","O","Mplants","Fixe"]
["Travaux de planification","Valeur de la vérification technique","Rapport d'exécution",null,null,null,"REEP","Rapport d'exécution, traitement d'éducation de peuplement","O","ha","Fixe"]

{"sheet":"Formules","index":11,"n_rows":15,"n_cols":10,"rows_kept":15,"cut":false,"hidden":true,"merged":[]}
["Famille","Traitement","Équation_texte","Équation_reférencé_calculs_grille","Valeur_prescription_1","Valeur_prescription_2","Valeur_prescription_3","Valeur_prescription_4","Valeur_prescription_5","Total"]
["Éducation de peuplement","Dégagement mécanique","Taux ($ / ha) = 832 + (11,74 * RECFFE) + (0,0041 * DI) + (135,79 * MODE)",{"$f":"\"Taux ($ / ha) = \"&'Calculs grille'!I36&\" + (\"&'Calculs grille'!I37&\" * RECFFE) + (\"&'Calculs grille'!I38&\" * DI) + (\"&'Calculs grille'!I39&\" * MODE)\"","v":"Taux ($ / ha) = 832 + (11,74 * RECFFE) + (0,0041 * DI) + (135,79 * MODE)"},"RECFFE","DI","MODE",null,null,{"$f":"E2&\" - \"&F2&\" - \"&G2","v":"RECFFE - DI - MODE"}]
["Éducation de peuplement","Gaulis I (interspécifique et sans espacement)","Taux ($ / ha)  = (805,56 + (0,0103 * DI) - (196,88 * SRLC)) * CP",{"$f":"\"Taux ($ / ha)  = (\"&'Calculs grille'!I41&\" + (\"&'Calculs grille'!I42&\" * DI) - (\"&ABS('Calculs grille'!I43)&\" * SRLC)) * CP\"","v":"Taux ($ / ha)  = (805,56 + (0,0103 * DI) - (196,88 * SRLC)) * CP"},"DI","SRLC","CP",null,null,{"$f":"E3&\" - \"&F3&\" - \"&G3","v":"DI - SRLC - CP"}]
["Éducation de peuplement","Gaulis II (intraspécifique avec espacement OU résineux sans espacement)","Taux ($/ha) = (567,63 * ln (DI) - 4 387,83) * TP * CP1",{"$f":"\"Taux ($/ha) = (\"&'Calculs grille'!I45&\" * ln (DI) - \"&TEXT('Calculs grille'!I46,\"# ####,##\")&\") * TP * CP1\"","v":"Taux ($/ha) = (567,63 * ln (DI) - 4 387,83) * TP * CP1"},"DI","TP","CP",null,null,{"$f":"E4&\" - \"&F4&\" - \"&G4","v":"DI - TP - CP"}]
["Éducation de peuplement","EPC par puit de lumière ET Taille de formation avec martelage","Taux ($/ha) = 0,447 * DENSTIGE * EXP (0,1452 * HTTIGE) + 37 * DENSTIGE / (0,1204 * DENSTIGE + 98,63) + 42,91 * TAIL + 782,29",{"$f":"\"Taux ($/ha) = \"&'Calculs grille'!I48&\" * DENSTIGE * EXP (\"&'Calculs grille'!I49&\" * HTTIGE) + \"&'Calculs grille'!I50&\" * DENSTIGE / (\"&'Calculs grille'!I51&\" * DENSTIGE + \"&'Calculs grille'!I52&\") + \"&'Calculs grille'!I53&\" * TAIL + \"&'Calculs grille'!I54","v":"Taux ($/ha) = 0,447 * DENSTIGE * EXP (0,1452 * HTTIGE) + 37 * DENSTIGE / (0,1204 * DENSTIGE + 98,63) + 42,91 * TAIL + 782,29"},"DENSTIGE","HTTIGE","TAIL",null,null,{"$f":"E5&\" - \"&F5&\" - \"&G5","v":"DENSTIGE - HTTIGE - TAIL"}]
["Éducation de peuplement","Élagage pour fins de qualité du pin blanc et rouge","Taux ($/ha) = ((0,024 * BRAN + 0,3493 + 0,5817 * LONGELA) + (-0,0581 * ln (DENSELA) + 0,4919)) * DENSELA) + MP + 556,38",{"$f":"\"Taux ($/ha) = ((\"&'Calculs grille'!I61&\" * BRAN + \"&'Calculs grille'!I62&\" + \"&'Calculs grille'!I63&\" * LONGELA) + (-\"&'Calculs grille'!I64&\" * ln (DENSELA) + \"&'Calculs grille'!I65&\")) * DENSELA) + MP + \"&'Calculs grille'!I68","v":"Taux ($/ha) = ((0,024 * BRAN + 0,3493 + 0,5817 * LONGELA) + (-0,0581 * ln (DENSELA) + 0,4919)) * DENSELA) + MP + 556,38"},"BRAN","LONGDELA","DENSELA","MP",null,{"$f":"E6&\" - \"&F6&\" - \"&G6&\" - \"&H6","v":"BRAN - LONGDELA - DENSELA - MP"}]
["Éducation de peuplement","Taille phytosanitaire","Taux ($/ha) = ((0,0186 * BRAN + 0,089 + (-0,0561 * ln (DENSELA) + 0,4759)) * DENSELA) + 0,1 * DENSCO + 0,4497 * DENSTF + 538",{"$f":"\"Taux ($/ha) = ((\"&'Calculs grille'!I70&\" * BRAN + \"&'Calculs grille'!I71&\" + (-\"&'Calculs grille'!I72&\" * ln (DENSELA) + \"&'Calculs grille'!I73&\")) * DENSELA) + \"&TEXT('Calculs grille'!I74,\"0,#\")&\" * DENSCO + \"&'Calculs grille'!I75&\" * DENSTF + \"&'Calculs grille'!I76","v":"Taux ($/ha) = ((0,0186 * BRAN + 0,089 + (-0,0561 * ln (DENSELA) + 0,4759)) * DENSELA) + 0,1 * DENSCO + 0,4497 * DENSTF + 538"},"BRAN","DENSELA","DENSCO","DENSTF",null,{"$f":"E7&\" - \"&F7&\" - \"&G7&\" - \"&H7","v":"BRAN - DENSELA - DENSCO - DENSTF"}]
["Préparation de terrain","Excavatrice","Taux ($/ha) = (27 136 * R) / e EXP (1,683 * R - 0,299 * TP  - 0,313 * TR + 0,17 * PER + 2,014)  * VEH",{"$f":"\"Taux ($/ha) = (\"&TEXT('Calculs grille'!I13,\"## ####\")&\" * R) / e EXP (1,683 * R - 0,299 * TP  - 0,313 * TR + 0,17 * PER + 2,014)  * VEH\"","v":"Taux ($/ha) = (27 136 * R) / e EXP (1,683 * R - 0,299 * TP  - 0,313 * TR + 0,17 * PER + 2,014)  * VEH"},"R","TP","TR","PER","VEH",{"$f":"E8&\" - \"&F8&\" - \"&G8&\" - \"&H8&\" - \"&I8","v":"R - TP - TR - PER - VEH"}]
["Préparation de terrain","Excavatrice ou débusqueuse ou abatteuse","Taux ($/ha) = (27 136 * R) / e EXP (1,683 * R - 0,299 * TP  - 0,313 * TR + 0,17 * PER + 2,014)  * VEH",{"$f":"\"Taux ($/ha) = (\"&TEXT('Calculs grille'!I13,\"## ####\")&\" * R) / e EXP (1,683 * R - 0,299 * TP  - 0,313 * TR + 0,17 * PER + 2,014)  * VEH\"","v":"Taux ($/ha) = (27 136 * R) / e EXP (1,683 * R - 0,299 * TP  - 0,313 * TR + 0,17 * PER + 2,014)  * VEH"},"R","TP","TR","PER","VEH",{"$f":"E9&\" - \"&F9&\" - \"&G9&\" - \"&H9&\" - \"&I9","v":"R - TP - TR - PER - VEH"}]
["Régénération artificielle","Plantation uniforme et regarni en plein manuel sauf PEH","Taux ($/Mplants) = 107,5 - 65,11 * PR + 425 015 / (DE * DS)  + GABARIT",{"$f":"\"Taux ($/Mplants) = \"&'Calculs grille'!I18&\" - \"&ABS('Calculs grille'!I19)&\" * PR + \"&TEXT('Calculs grille'!I20,\"## ###\")&\" / (DE * DS)  + GABARIT\"","v":"Taux ($/Mplants) = 107,5 - 65,11 * PR + 425 015 / (DE * DS)  + GABARIT"},"PR","DE","DS","Gabarit",null,{"$f":"E10&\" - \"&F10&\" - \"&G10&\" - \"&H10","v":"PR - DE - DS - Gabarit"}]
["Régénération artificielle","Regarni de sentier et enrichissement manuel sauf PEH","Taux ($/Mplants) = 107,5 - 65,11 * PR + 425 015 / (DE * DS)  + GABARIT",{"$f":"\"Taux ($/Mplants) = \"&'Calculs grille'!I18&\" - \"&ABS('Calculs grille'!I19)&\" * PR + \"&TEXT('Calculs grille'!I20,\"## ###\")&\" / (DE * DS)  + GABARIT\"","v":"Taux ($/Mplants) = 107,5 - 65,11 * PR + 425 015 / (DE * DS)  + GABARIT"},"PR","DE","DS","Gabarit",null,{"$f":"E11&\" - \"&F11&\" - \"&G11&\" - \"&H11","v":"PR - DE - DS - Gabarit"}]
["Régénération artificielle","Plantation uniforme et regarni en plein manuel sentier préparé sauf PEH","Taux ($/Mplants) = 107,5 - 65,11 * PR + 425 015 / (DE * DS)  + GABARIT",{"$f":"\"Taux ($/Mplants) = \"&'Calculs grille'!I18&\" - \"&ABS('Calculs grille'!I19)&\" * PR + \"&TEXT('Calculs grille'!I20,\"## ###\")&\" / (DE * DS)  + GABARIT\"","v":"Taux ($/Mplants) = 107,5 - 65,11 * PR + 425 015 / (DE * DS)  + GABARIT"},"PR","DE","DSA","Gabarit",null,{"$f":"E12&\" - \"&F12&\" - \"&G12&\" - \"&H12","v":"PR - DE - DSA - Gabarit"}]
["Éclaircie commerciale EAF","Éclaircie commerciale EAF","Taux ($/m3) = (4,861 * VREC EXP  -0,682) + 8,916",{"$f":"\"Taux ($/m3) = (\"&'Calculs grille'!I103&\" * VREC EXP  \"&'Calculs grille'!I102&\") + \"&'Calculs grille'!I104","v":"Taux ($/m3) = (4,861 * VREC EXP  -0,682) + 8,916"},"VREC",null,null,null,null,{"$f":"E13","v":"VREC"}]
["Martelage","Martelage","Taux ($/ha) = (144,23 - (35,68 * PF) + (4,09 * NbMSCROP)) * TC",{"$f":"\"Taux ($/ha) = (\"&'Calculs grille'!I108&\" - (\"&'Calculs grille'!I109&\" * PF) + (\"&'Calculs grille'!I110&\" * NbMSCROP)) * TC\"","v":"Taux ($/ha) = (144,23 - (35,68 * PF) + (4,09 * NbMSCROP)) * TC"},"NbMSCROP","TC",null,null,null,{"$f":"E14&\" - \"&F14","v":"NbMSCROP - TC"}]
["Travaux de planification","Inventaire avant traitement pour éducation de peuplement (dégagement, nettoiement et éclaircie précommerciale)","Taux ($/PE) = 94 + 0,64 * (NCT) + 3,22 * (NCP) + 6,44 * (TE)",{"$f":"\"Taux ($/PE) = \"&'Calculs grille'!I92&\" + \"&'Calculs grille'!I93&\" * (NCT) + \"&'Calculs grille'!I94&\" * (NCP) + \"&'Calculs grille'!I95&\" * (TE)\"","v":"Taux ($/PE) = 94 + 0,64 * (NCT) + 3,22 * (NCP) + 6,44 * (TE)"},"NCT","NCP","TE",null,null,{"$f":"E15&\" - \"&F15&\" - \"&G15","v":"NCT - NCP - TE"}]

{"sheet":"Majorations applicables","index":12,"n_rows":58,"n_cols":11,"rows_kept":58,"cut":false,"hidden":true,"merged":[]}
["Total_RechercheV","Onglet","Équipement ou modalité","M1","M2","M3","M4","M5","M6","M7","Total"]
[{"$f":"K2","v":"PE2 - DISP2 - H1 - CEAF1 - ISO1"},"Préparation de terrain","Abatteuse groupeuse après feux","PE2","DISP2","H1","CEAF1","ISO1",null,null,{"$f":"D2& \" - \"&E2&\" - \"&F2&\" - \"&G2&\" - \"&H2","v":"PE2 - DISP2 - H1 - CEAF1 - ISO1"}]
["PE4 - DISP2 - H1 - CEAF1 - ISO1","Préparation de terrain","Bouteur avec pelle râteau","PE4","DISP2","H1","CEAF1","ISO1",null,null,{"$f":"D3& \" - \"&E3&\" - \"&F3&\" - \"&G3&\" - \"&H3","v":"PE4 - DISP2 - H1 - CEAF1 - ISO1"}]
["PE1 - DISP1 - H1 - CEAF1 - ISO1","Préparation de terrain","Bracke M-36a avec débardeur","PE1","DISP1","H1","CEAF1","ISO1",null,null,{"$f":"D4& \" - \"&E4&\" - \"&F4&\" - \"&G4&\" - \"&H4","v":"PE1 - DISP1 - H1 - CEAF1 - ISO1"}]
["PE1 - DISP1 - H1 - CEAF1 - ISO1","Préparation de terrain","Bracke M-36a avec porteur","PE1","DISP1","H1","CEAF1","ISO1",null,null,{"$f":"D5& \" - \"&E5&\" - \"&F5&\" - \"&G5&\" - \"&H5","v":"PE1 - DISP1 - H1 - CEAF1 - ISO1"}]
["PA0 - PA1 - PE1 - DISP1 - H1 - CEAF1 - ISO1","Préparation de terrain","Bracke T-26 avec porteur","PA0","PA1","PE1","DISP1","H1","CEAF1","ISO1",{"$f":"D6& \" - \"&E6&\" - \"&F6&\" - \"&G6&\" - \"&H6&\" - \"&I6&\" - \"&J6","v":"PA0 - PA1 - PE1 - DISP1 - H1 - CEAF1 - ISO1"}]
["H1 - CEAF1 - ISO1","Préparation de terrain","Milieu boisé","H1","CEAF1","ISO1",null,null,null,null,{"$f":"D7& \" - \"&E7&\" - \"&F7","v":"H1 - CEAF1 - ISO1"}]
["H1 - CEAF1 - ISO1","Préparation de terrain","Milieu dénudé","H1","CEAF1","ISO1",null,null,null,null,{"$f":"D8& \" - \"&E8&\" - \"&F8","v":"H1 - CEAF1 - ISO1"}]
["PA2 - PE2 - DISP1 - H1 - CEAF1 - ISO1","Préparation de terrain","Herses forestières","PA2","PE2","DISP1","H1","CEAF1","ISO1",null,{"$f":"D9& \" - \"&E9&\" - \"&F9&\" - \"&G9&\" - \"&H9&\" - \"&I9","v":"PA2 - PE2 - DISP1 - H1 - CEAF1 - ISO1"}]
["PE2 - DISP2 - H1 - CEAF1 - ISO1","Préparation de terrain","Rouleau écraseur et scarificateur à disques passifs","PE2","DISP2","H1","CEAF1","ISO1",null,null,{"$f":"D10& \" - \"&E10&\" - \"&F10&\" - \"&G10&\" - \"&H10","v":"PE2 - DISP2 - H1 - CEAF1 - ISO1"}]
["H1 - D200 - CEAF1 - ISO1","Préparation de terrain","Taupe ou pioche forestière","H1","D200","CEAF1","ISO1",null,null,null,{"$f":"D11& \" - \"&E11&\" - \"&F11&\" - \"&G11","v":"H1 - D200 - CEAF1 - ISO1"}]
["PA0 - PA1 - PE1 - DISP1 - H1 - CEAF1 - ISO1","Préparation de terrain","Types TTS passifs","PA0","PA1","PE1","DISP1","H1","CEAF1","ISO1",{"$f":"D12& \" - \"&E12&\" - \"&F12&\" - \"&G12&\" - \"&H12&\" - \"&I12&\" - \"&J12","v":"PA0 - PA1 - PE1 - DISP1 - H1 - CEAF1 - ISO1"}]
["PA0 - PA1 - PE1 - DISP1 - H1 - CEAF1 - ISO1","Préparation de terrain","Bracke T-26 avec débardeur, Types TTS hydrauliques, Donaren ou Requin","PA0","PA1","PE1","DISP1","H1","CEAF1","ISO1",{"$f":"D13& \" - \"&E13&\" - \"&F13&\" - \"&G13&\" - \"&H13&\" - \"&I13&\" - \"&J13","v":"PA0 - PA1 - PE1 - DISP1 - H1 - CEAF1 - ISO1"}]
["PA0 - PA1 - PE1 - DISP1 - H1 - CEAF1 - ISO1","Préparation de terrain","Wadell","PA0","PA1","PE1","DISP1","H1","CEAF1","ISO1",{"$f":"D14& \" - \"&E14&\" - \"&F14&\" - \"&G14&\" - \"&H14&\" - \"&I14&\" - \"&J14","v":"PA0 - PA1 - PE1 - DISP1 - H1 - CEAF1 - ISO1"}]
[{"$f":"K15","v":"PE2 ou PE3 - DISP2 - H1 - CEAF1 - ISO1"},"Préparation de terrain","Excavatrice","PE2","PE3","DISP2","H1","CEAF1","ISO1",null,{"$f":"D15& \" ou \"&E15&\" - \"&F15&\" - \"&G15&\" - \"&H15&\" - \"&I15","v":"PE2 ou PE3 - DISP2 - H1 - CEAF1 - ISO1"}]
["PE2 ou PE3 - DISP1 ou DISP2 - H1 - CEAF1 - ISO1","Préparation de terrain","Excavatrice ou débusqueuse ou abatteuse","PE2","PE3","DISP1","DISP2","H1","CEAF1","ISO1",{"$f":"D16& \" ou \"&E16&\" - \"&F16&\" ou \"&G16&\" - \"&H16&\" - \"&I16&\" - \"&J16","v":"PE2 ou PE3 - DISP1 ou DISP2 - H1 - CEAF1 - ISO1"}]
[{"$f":"K17","v":"PE2 - H2 - TC - D200 - CEAF3 - ISO3"},"Éducation de peuplement","Dégagement mécanique","PE2","H2","TC","D200","CEAF3","ISO3",null,{"$f":"D17& \" - \"&E17&\" - \"&F17&\" - \"&G17&\" - \"&H17&\" - \"&I17","v":"PE2 - H2 - TC - D200 - CEAF3 - ISO3"}]
["PE2 - H2 - TC - D200 - CEAF3 - ISO3","Éducation de peuplement","Élagage pour fins de qualité du pin blanc et rouge","PE2","H2","TC","D200","CEAF3","ISO3",null,{"$f":"D18& \" - \"&E18&\" - \"&F18&\" - \"&G18&\" - \"&H18&\" - \"&I18","v":"PE2 - H2 - TC - D200 - CEAF3 - ISO3"}]
["PE2 - H2 - TC - D200 - CEAF3 - ISO3","Éducation de peuplement","EPC par puit de lumière ET Taille de formation avec martelage","PE2","H2","TC","D200","CEAF3","ISO3",null,"PE2 - H2 - TC - D200 - CEAF3 - ISO3"]
["PE2 - H2 - TC - D200 - CEAF3 - ISO3","Éducation de peuplement","Gaulis I (interspécifique et sans espacement)","PE2","H2","TC","D200","CEAF3","ISO3",null,"PE2 - H2 - TC - D200 - CEAF3 - ISO3"]
["PE2 - H2 - TC - D200 - CEAF3 - ISO3","Éducation de peuplement","Gaulis II (intraspécifique avec espacement OU résineux sans espacement)","PE2","H2","TC","D200","CEAF3","ISO3",null,"PE2 - H2 - TC - D200 - CEAF3 - ISO3"]
["PE2 - H2 - TC - D200 - CEAF3 - ISO3","Éducation de peuplement","Taille phytosanitaire","PE2","H2","TC","D200","CEAF3","ISO3",null,"PE2 - H2 - TC - D200 - CEAF3 - ISO3"]
["H2 - TC - D200 - CEAF2 - ISO2 - TRA","Régénération artificielle","Plantation uniforme et regarni en plein manuel sauf PEH","H2","TC","D200","CEAF2","ISO2","TRA",null,"H2 - TC - D200 - CEAF2 - ISO2 - TRA"]
["H2 - TC - D200 - CEAF2 - ISO2 - TRA","Régénération artificielle","Regarni de sentier et enrichissement manuel sauf PEH","H2","TC","D200","CEAF2","ISO2","TRA",null,"H2 - TC - D200 - CEAF2 - ISO2 - TRA"]
["H2 - TC - D200 - CEAF2 - ISO2 - TRA","Régénération artificielle","Plantation uniforme et regarni en plein manuel sentier préparé sauf PEH","H2","TC","D200","CEAF2","ISO2","TRA",null,"H2 - TC - D200 - CEAF2 - ISO2 - TRA"]
["H2 - TC - D200 - CEAF2 - ISO2 - TRA","Régénération artificielle","Plantation uniforme PEH","H2","TC","D200","CEAF2","ISO2","TRA",null,"H2 - TC - D200 - CEAF2 - ISO2 - TRA"]
["H2 - CEAF2 - ISO2 - TRA","Régénération artificielle","Plantation uniforme et regarni mécanique (Scarificateur-planteur Bracke P-11a)","H2","CEAF2","ISO2","TRA",null,null,null,{"$f":"D27& \" - \"&E27&\" - \"&F27&\" - \"&G27","v":"H2 - CEAF2 - ISO2 - TRA"}]
["PE2 - H2 - TC - D200 - CEAF2 - ISO2","Régénération artificielle","Ensemencement terrestre manuel","PE2","H2","TC","D200","CEAF2","ISO2",null,"PE2 - H2 - TC - D200 - CEAF2 - ISO2"]
["PE2 - RUB1 - MAN - H5","Éclaircie commerciale EAF","Éclaircie commerciale EAF","PE2","RUB1","MAN","H5",null,null,null,{"$f":"D29&\" - \"&E29&\" - \"&F29&\" - \"&G29","v":"PE2 - RUB1 - MAN - H5"}]
["H3 - D200","Martelage","Martelage","H3","D200",null,null,null,null,null,{"$f":"D30&\" - \"&E30","v":"H3 - D200"}]
["H3 - D200","Martelage","Martelage positif - EC (résineux ou mixte résineux)","H3","D200",null,null,null,null,null,{"$f":"D31&\" - \"&E31","v":"H3 - D200"}]
["H3 - D200","Martelage","Martelage négatif - EC (résineux ou mixte résineux)","H3","D200",null,null,null,null,null,{"$f":"D32&\" - \"&E32","v":"H3 - D200"}]
[]
["PA1"]
[0.89]
[]
["PA2"]
[0.79]
[]
["PE1"]
[5.0999999999999997E-2]
[0.45]
[1.46]
[]
["PE2"]
[7.0000000000000001E-3]
[2.5999999999999999E-2]
[6.0999999999999999E-2]
[]
["PE3"]
[0.11]
[0.19]
[0.23]
[]
["PE4"]
[0.05]
[0.15]
[0.19]

{"sheet":"Log","index":13,"n_rows":2,"n_cols":4,"rows_kept":2,"cut":false,"hidden":true,"merged":[]}
["Usager","Accès","OS","Version Excel"]
["Pouliot, Simon (BMMB)","2018-01-17T07:45:56","Windows (32-bit) NT 6.01",15]

{"sheet":"Martelage","index":14,"n_rows":93,"n_cols":7,"rows_kept":93,"cut":false,"hidden":true,"merged":[[2,0,2,5],[9,0,9,5],[11,0,11,5],[12,0,12,5],[13,0,13,5],[4,0,4,5],[5,0,5,5],[6,0,6,5],[7,0,7,5],[8,0,8,5],[25,0,25,6],[15,0,15,6],[18,0,18,6],[19,0,19,6],[20,1,20,5],[22,1,22,3],[16,0,16,6],[17,0,17,5],[78,2,79,4],[55,0,55,5],[63,0,63,6],[66,0,66,6],[76,0,76,4],[61,0,61,5],[62,0,62,5],[56,0,56,5],[57,0,57,5],[58,0,58,5],[59,0,59,5],[60,0,60,5],[67,0,69,5],[67,6,69,6],[70,0,70,5],[71,0,72,5],[41,0,41,5],[42,0,42,5],[23,0,23,5],[24,0,24,6],[47,0,47,5],[40,0,40,5],[35,0,35,6],[29,0,29,6],[30,0,30,6],[31,0,31,5],[32,0,32,5],[33,0,33,5],[34,0,34,5],[44,0,44,5],[45,0,45,5],[27,0,27,4],[73,0,73,5],[49,0,49,5],[51,0,51,6],[52,0,52,5],[53,0,53,5],[54,0,54,5],[50,0,50,5],[64,0,64,6],[65,0,65,6],[1,0,1,5],[0,0,0,6],[3,0,3,6],[71,6,72,6],[26,0,26,6],[10,0,10,6],[38,0,38,6],[39,0,39,6],[21,1,21,5],[14,0,14,6],[28,0,28,4],[36,0,36,4],[37,0,37,4],[46,0,46,5],[43,0,43,5],[48,0,48,5]]}
[]
["Annexe au calcul des taux des traitements non commerciaux                                                                                                                                                         2018-2019                                                                                                                                                                                                                                                                              Martelage                                                                                                                                    Forêt publique"]
[" *** Veuillez saisir les informations dans les cellules blanches seulement ***",null,null,null,null,null,"Version 1 : 2018-01-17"]
["Identification"]
["Unité d'aménagement (UA)"]
["Secteur d'intervention"]
["Unité de compilation"]
["Numéro de la prescription"]
["Traitement (code DICA)"]
["Traitement (code RATF)"]
["Traitement d'éducation de peuplement à taux fixe ou variable"]
["Traitement",null,null,null,null,null,"Inscrire une valeur"]
["Taux de base",null,null,null,null,null,{"$f":"IF(ISNA(VLOOKUP($G$12,Menus!$A$427:$C$430,2,FALSE)),\"\",VLOOKUP($G$12,Menus!$A$427:$C$430,2,FALSE))","v":0}]
["Unité de mesure",null,null,null,null,null,{"$f":"IF(ISNA(VLOOKUP($G$12,Menus!$A$427:$C$430,3,FALSE)),\"\",VLOOKUP($G$12,Menus!$A$427:$C$430,3,FALSE))","v":"-"}]
["Taux d'exécution à déterminer selon la formule suivante"]
[{"$f":"IF($G$12=Formules!$B$14,Formules!$D$14,\"\")","v":""}]
["Superficie"]
["Superficie du traitement"]
[{"$f":"\"Valeurs spécifiques à remplir selon le traitement - \"&G12","v":"Valeurs spécifiques à remplir selon le traitement - Inscrire une valeur"}]
["Valeurs spécifiques à remplir selon le traitement - Martelage"]
["PF","Proportion de feuillus (Surface terrière des feuillus commerciaux par rapport à la surface terrière totale du peuplement)"]
["NbMSCROP","Nombre de priorité de récolte combinant MSCR et OP                                                       Valeur de 0 à 8 : MO-MP-SO-SP-CO-CP-RO-RP"]
["TC","Type de coupe",null,null,"Valeur",{"$f":"IF(ISNA(VLOOKUP($G$23,Menus!$A$433:$B$437,2,FALSE)),\"\",VLOOKUP($G$23,Menus!$A$433:$B$437,2,FALSE))","v":""}]
["Taux par hectare calculé à partir de l'équation et des variables reliées à l'activité",null,null,null,null,null,{"$f":"IFERROR((('Calculs grille'!$I$108-('Calculs grille'!$I$109)*Martelage!$G$21+('Calculs grille'!$I$110*Martelage!$G$22))*Martelage!$F$23),0)","v":0}]
[{"$f":"\"Majorations applicables à l'exécution - \"&$G$12","v":"Majorations applicables à l'exécution - Inscrire une valeur"}]
[{"$f":"IF($G$12='Majorations applicables'!$C$30,'Majorations applicables'!$K$30,IF($G$12='Majorations applicables'!$C$31,'Majorations applicables'!$K$31,IF($G$12='Majorations applicables'!$C$32,'Majorations applicables'!$K$32,\"\")))","v":""}]
["Majoration pour l'hébergement et la distance du secteur d'intervention (H3 et D200)"]
["Hébergement (H3)",null,null,null,null,{"$f":"IF($G$28=\"\",\"\",IF($G$28=Menus!$A$440,Menus!$B$440,IF($G$28=Menus!$A$441,Menus!$B$441,IF($G$28=Menus!$A$442,Menus!$B$442,IF($G$28<=Menus!$B$441,$G$28,\"Max \"&TEXT(Menus!$B$441,\"0,0%\"))))))","v":""}]
["Distance du secteur d'intervention (D200)",null,null,null,null,{"$f":"IF($G$29=Menus!$A$445,Menus!$B$445,IF($G$29=Menus!$A$446,Menus!$B$446,\"\"))","v":""}]
["Vérification"]
["Vérification - Tous"]
["Délimitation des secteurs (taux par kilomètre délimité)"]
["Nombre de kilomètres délimités"]
["Inventaire après traitement (taux par hectare martelé)"]
["Nombre de placettes inventoriées"]
["Vérification - Majoration pour l'hébergement et la distance du secteur d'intervention (H3 et D200)"]
["Hébergement (H3)",null,null,null,null,{"$f":"IF($G$37=\"\",\"\",IF($G$37=Menus!$A$440,Menus!$B$440,IF($G$37=Menus!$A$441,Menus!$B$441,IF($G$37=Menus!$A$442,Menus!$B$442,IF($G$37<=Menus!$B$441,$G$37,\"Max \"&TEXT(Menus!$B$441,\"0,0%\"))))))","v":""}]
["Distance du secteur d'intervention (D200)",null,null,null,null,{"$f":"IF(G38=Menus!$A$445,Menus!$B$445,IF(G38=Menus!$A$446,Menus!$B$446,\"\"))","v":""}]
["Total"]
["Calculs -  Martelage"]
["Taux d'exécution de base",null,null,null,null,null,{"$f":"IFERROR($G$24,0)","v":0}]
["Taux H3",null,null,null,null,null,{"$f":"IFERROR(($G$41*$F$28),0)","v":0}]
["Taux D200",null,null,null,null,null,{"$f":"IFERROR(($G$41*$F$29),0)","v":0}]
["Taux exécution total et majoration(s) admissible(s)",null,null,null,null,null,{"$f":"IFERROR((ROUND(SUM($G$41:$G$43),2)),0)","v":0}]
["Taux vérification",null,null,null,null,null,{"$f":"IFERROR(((($G$32*$G$33)+($G$34*$G$35))/$G$18),0)","v":0}]
["Taux H3 et/ou D200",null,null,null,null,null,{"$f":"IFERROR(($G$45*SUM($F$37:$F$38)),0)","v":0}]
["Taux exécution et vérification total",null,null,null,null,null,{"$f":"IFERROR((ROUND(SUM($G$44:$G$46),2)),0)","v":0}]
["Superficie (hectares)",null,null,null,null,null,{"$f":"IFERROR($G$18,0)","v":0}]
["Total exécution",null,null,null,null,null,{"$f":"IFERROR(($G$44*$G$48),0)","v":0}]
["Total vérification",null,null,null,null,null,{"$f":"IFERROR((ROUND(SUM($G$45:$G$46),2)*$G$48),0)","v":0}]
["Grand total admissible",null,null,null,null,null,{"$f":"IFERROR(SUM($G$49:$G$50),0)","v":0}]
["Calculs - Martelage positif et négatif  - EC (résineux ou mixte résineux)"]
["Taux d'exécution de base",null,null,null,null,null,{"$f":"IFERROR($G$13,0)","v":0}]
["Taux H3",null,null,null,null,null,{"$f":"IFERROR(($G$53*$F$28),0)","v":0}]
["Taux D200",null,null,null,null,null,{"$f":"IFERROR(($G$53*$F$29),0)","v":0}]
["Taux exécution total et majoration(s) admissible(s)",null,null,null,null,null,{"$f":"IFERROR((ROUND(SUM($G$53:$G$55),2)),0)","v":0}]
["Taux vérification",null,null,null,null,null,{"$f":"IFERROR(((($G$32*$G$33)+($G$34*$G$35))/$G$18),0)","v":0}]
["Taux H3 et/ou D200",null,null,null,null,null,{"$f":"IFERROR(($G$57*SUM($F$37:$F$38)),0)","v":0}]
["Taux exécution et vérification total",null,null,null,null,null,{"$f":"IFERROR((ROUND(SUM($G$56:$G$58),2)),0)","v":0}]
["Superficie",null,null,null,null,null,{"$f":"IFERROR($G$18,0)","v":0}]
["Total exécution",null,null,null,null,null,{"$f":"IFERROR(($G$56*$G$60),0)","v":0}]
["Total vérification",null,null,null,null,null,{"$f":"IFERROR((ROUND(SUM($G$57:$G$58),2)*$G$60),0)","v":0}]
["Grand total admissible",null,null,null,null,null,{"$f":"IFERROR(SUM($G$61:$G$62),0)","v":0}]
[]
["Remarques"]
[]
["J'atteste que les renseignements fournis dans ce document afin de calculer le taux du traitement sont complets et conformes à la vérité, au meilleur de mes connaissances."]
[]
[]
[]
["Nom et prénom de l'ingénieur forestier",null,null,null,null,null,"No de permis"]
[null,null,null,null,null,null,{"$f":"TODAY()","v":"2018-01-17"}]
[]
["Signature de l'ingénieur forestier",null,null,null,null,null,"Date (AAAA-MM-JJ)"]
[]
[]
["Section réservée au suivi du contrat"]
[]
[null,"Numéro de la prescription :",{"$f":"IF($G$8<>\"\",$G$8,\"\")","v":""}]
[]
[null,"Numéro du contrat :"]
[null,"Numéro du projet :"]
[null,"U.G. :"]
[null,"MRC :"]
[null,"Code de traitement DICA :",{"$f":"IF($G$9<>\"\",$G$9,\"\")","v":""}]
[null,"Code de traitement RATF :",{"$f":"IF($G$10<>\"\",$G$10,\"\")","v":""}]
[null,"Type d'attribution : "]
[null,"Taux AOP : "]
[null,"Nom de l'entrepreneur : "]
[null,"Numéro de fournisseur : "]
[null,"Date de début :"]
[null,"Date de fin :"]
[null,"Commentaires :"]